﻿Department family,Entity,Date of payment,Expense type,Expense area,Supplier,Transaction number,Amount in Sterling,Supplier VAT Registration Number
Department of Health,Guys and St Thomas NHS Foundation Trust,04/06/2021,(81400) Medical Surgical Supplies & Equipment,(id:41900) TAP,NHS SUPPLY CHAIN ( CAPITAL FUND ONLY),id:14148808  ,3896.24
Department of Health,Guys and St Thomas NHS Foundation Trust,18/06/2021,(81200) Medical Surgical Supplies & Equipment,(id:41905) TAP,MEDTRONIC LTD,id:14144129 ,1296.00
Department of Health,Guys and St Thomas NHS Foundation Trust,25/06/2021,(84500) Establishment,(id:41906) TAP,CDP  PRINT MANAGEMENT,id:14178052  ,   6.20
Department of Health,Guys and St Thomas NHS Foundation Trust,04/06/2021,(81200) Medical Surgical Supplies & Equipment,(id:41906) TAP,VERATHON MEDICAL UK LTD,id:14142725 , 648.00
Department of Health,Guys and St Thomas NHS Foundation Trust,18/06/2021,(81200) Medical Surgical Supplies & Equipment,(id:41906) TAP,VERATHON MEDICAL UK LTD,id:14168525 ,1296.00
Department of Health,Guys and St Thomas NHS Foundation Trust,18/06/2021,(81100) Dressings,(id:41906) TAP,NHS SUPPLY CHAIN (MAIDSTONE),id:14077336    , 612.20
Department of Health,Guys and St Thomas NHS Foundation Trust,18/06/2021,(81100) Dressings,(id:41906) TAP,NHS SUPPLY CHAIN (MAIDSTONE),id:14093474    , 125.93
Department of Health,Guys and St Thomas NHS Foundation Trust,18/06/2021,(81100) Dressings,(id:41906) TAP,NHS SUPPLY CHAIN (MAIDSTONE),id:13990034    , 134.59
Department of Health,Guys and St Thomas NHS Foundation Trust,18/06/2021,(82600) Uniforms & Clothing,(id:41906) TAP,NHS SUPPLY CHAIN (MAIDSTONE),id:13990034    , 102.96
Department of Health,Guys and St Thomas NHS Foundation Trust,18/06/2021,(81255) Medical Surgical Supplies & Equipment,(id:41906) TAP,NHS SUPPLY CHAIN (MAIDSTONE),id:13990034 ,   1.25
Department of Health,Guys and St Thomas NHS Foundation Trust,18/06/2021,(81255) Medical Surgical Supplies & Equipment,(id:41906) TAP,NHS SUPPLY CHAIN (MAIDSTONE),id:14109556 ,   1.56
Department of Health,Guys and St Thomas NHS Foundation Trust,18/06/2021,(82800) Bedding & Linen,(id:41907) TAP,NHS SUPPLY CHAIN (MAIDSTONE),id:14077336   , 184.35
Department of Health,Guys and St Thomas NHS Foundation Trust,18/06/2021,(81200) Medical Surgical Supplies & Equipment,(id:41907) TAP,NHS SUPPLY CHAIN (MAIDSTONE),id:13990034 ,1504.51
Department of Health,Guys and St Thomas NHS Foundation Trust,18/06/2021,(82600) Uniforms & Clothing,(id:41907) TAP,NHS SUPPLY CHAIN (MAIDSTONE),id:14093474    ,  12.07
Department of Health,Guys and St Thomas NHS Foundation Trust,18/06/2021,(82600) Uniforms & Clothing,(id:41907) TAP,NHS SUPPLY CHAIN (MAIDSTONE),id:14109556    ,  11.52
Department of Health,Guys and St Thomas NHS Foundation Trust,18/06/2021,(81230) Medical Surgical Supplies & Equipment,(id:41907) TAP,NHS SUPPLY CHAIN (MAIDSTONE),id:14136574 , 632.39
Department of Health,Guys and St Thomas NHS Foundation Trust,18/06/2021,(81230) Medical Surgical Supplies & Equipment,(id:850419) TAP,NHS SUPPLY CHAIN (MAIDSTONE),id:14136574,  39.12
Department of Health,Guys and St Thomas NHS Foundation Trust,18/06/2021,(82800) Bedding & Linen,(id:850419) TAP,NHS SUPPLY CHAIN (MAIDSTONE),id:14136574  ,  94.18
Department of Health,Guys and St Thomas NHS Foundation Trust,18/06/2021,(83400) Office Equipment,(id:41918) TAP,NHS SUPPLY CHAIN (MAIDSTONE),id:14077336  ,  31.86
Department of Health,Guys and St Thomas NHS Foundation Trust,18/06/2021,(81200) Medical Surgical Supplies & Equipment,(id:41918) TAP,JOHNSON & JOHNSON MEDICAL LTD,id:14143738, 686.04
Department of Health,Guys and St Thomas NHS Foundation Trust,18/06/2021,(81200) Medical Surgical Supplies & Equipment,(id:41918) TAP,JOHNSON & JOHNSON MEDICAL LTD,id:14146406,2177.93
Department of Health,Guys and St Thomas NHS Foundation Trust,18/06/2021,(81100) Dressings,(id:41918) TAP,NHS SUPPLY CHAIN (MAIDSTONE),id:14136574    , 884.14
Department of Health,Guys and St Thomas NHS Foundation Trust,18/06/2021,(81550) X Ray Equipment Purchase,(id:41918) TAP,NHS SUPPLY CHAIN (MAIDSTONE),id:14093474    , 116.40
Department of Health,Guys and St Thomas NHS Foundation Trust,18/06/2021,(82700) Uniforms & Clothing,(id:41916) TAP,NHS SUPPLY CHAIN (MAIDSTONE),id:14109556    ,  77.93
Department of Health,Guys and St Thomas NHS Foundation Trust,25/06/2021,(84500) Establishment,(id:41916) TAP,CDP  PRINT MANAGEMENT,id:14178052  ,  10.80
Department of Health,Guys and St Thomas NHS Foundation Trust,25/06/2021,(84500) Establishment,(id:41916) TAP,CDP  PRINT MANAGEMENT,id:14178055  ,   7.20
Department of Health,Guys and St Thomas NHS Foundation Trust,18/06/2021,(81100) Dressings,(id:41916) TAP,ELIS UK LIMITED,id:14099135  , 481.20
Department of Health,Guys and St Thomas NHS Foundation Trust,18/06/2021,(81200) Medical Surgical Supplies & Equipment,(id:41916) TAP,NHS SUPPLY CHAIN (MAIDSTONE),id:14136574 , 711.64
Department of Health,Guys and St Thomas NHS Foundation Trust,18/06/2021,(81200) Medical Surgical Supplies & Equipment,(id:41916) TAP,NHS SUPPLY CHAIN (MAIDSTONE),id:14077336 , 911.26
Department of Health,Guys and St Thomas NHS Foundation Trust,18/06/2021,(81200) Medical Surgical Supplies & Equipment,(id:41916) TAP,NHS SUPPLY CHAIN (MAIDSTONE),id:14093474 ,1011.26
Department of Health,Guys and St Thomas NHS Foundation Trust,18/06/2021,(81700) Lab Equipment Purchase,(id:41916) TAP,NHS SUPPLY CHAIN (MAIDSTONE),id:14077336 ,   3.16
Department of Health,Guys and St Thomas NHS Foundation Trust,24/06/2021,(84400) Transport,(id:4851419) TAP,GSTT PROCUREMENT CARD,id:14203235    , 613.92
Department of Health,Guys and St Thomas NHS Foundation Trust,18/06/2021,(84400) Transport,(id:4851419) TAP,CDP  PRINT MANAGEMENT,id:14168669    ,1740.00
Department of Health,Guys and St Thomas NHS Foundation Trust,18/06/2021,(81200) Medical Surgical Supplies & Equipment,(id:4851419) TAP,NHS SUPPLY CHAIN (MAIDSTONE),id:14077336    ,   4.06
Department of Health,Guys and St Thomas NHS Foundation Trust,18/06/2021,(82800) Bedding & Linen,(id:41922) TAP,NHS SUPPLY CHAIN (MAIDSTONE),id:14093474   , 102.21
Department of Health,Guys and St Thomas NHS Foundation Trust,18/06/2021,(81100) Dressings,(id:41922) TAP,NHS SUPPLY CHAIN (MAIDSTONE),id:14093474    ,  24.34
Department of Health,Guys and St Thomas NHS Foundation Trust,11/06/2021,(83610) IT Costs,(id:41890) TAP,OFFICE DEPOT UK LTD,id:14135571    ,1250.84
Department of Health,Guys and St Thomas NHS Foundation Trust,18/06/2021,(82600) Uniforms & Clothing,(id:41883) TAP,NHS SUPPLY CHAIN (MAIDSTONE),id:14109556    ,   6.48
Department of Health,Guys and St Thomas NHS Foundation Trust,18/06/2021,(82800) Bedding & Linen,(id:41883) TAP,NHS SUPPLY CHAIN (MAIDSTONE),id:14077336   , 313.27
Department of Health,Guys and St Thomas NHS Foundation Trust,18/06/2021,(82800) Bedding & Linen,(id:41883) TAP,NHS SUPPLY CHAIN (MAIDSTONE),id:14136574   , 376.11
Department of Health,Guys and St Thomas NHS Foundation Trust,18/06/2021,(81700) Lab Equipment Purchase,(id:41883) TAP,NHS SUPPLY CHAIN (MAIDSTONE),id:14109556 ,  23.72
Department of Health,Guys and St Thomas NHS Foundation Trust,18/06/2021,(81225) Medical Surgical Supplies & Equipment,(id:41883) TAP,NHS SUPPLY CHAIN (MAIDSTONE),id:14109556 , 146.08
Department of Health,Guys and St Thomas NHS Foundation Trust,25/06/2021,(81100) Dressings,(id:41883) TAP,ELIS UK LIMITED,id:14184396  ,1131.85
Department of Health,Guys and St Thomas NHS Foundation Trust,11/06/2021,(81200) Medical Surgical Supplies & Equipment,(id:41883) TAP,JOHNSON & JOHNSON MEDICAL LTD,id:14114943, 224.95
Department of Health,Guys and St Thomas NHS Foundation Trust,18/06/2021,(81200) Medical Surgical Supplies & Equipment,(id:41883) TAP,NHS SUPPLY CHAIN (MAIDSTONE),id:13990034 ,1845.71
Department of Health,Guys and St Thomas NHS Foundation Trust,18/06/2021,(81200) Medical Surgical Supplies & Equipment,(id:41883) TAP,NHS SUPPLY CHAIN (MAIDSTONE),id:14077336 ,2138.33
Department of Health,Guys and St Thomas NHS Foundation Trust,18/06/2021,(83400) Office Equipment,(id:2549419) TAP,NHS SUPPLY CHAIN (MAIDSTONE),id:14093474, 127.68
Department of Health,Guys and St Thomas NHS Foundation Trust,25/06/2021,(84500) Establishment,(id:2549419) TAP,CDP  PRINT MANAGEMENT,id:14178053,  21.70
Department of Health,Guys and St Thomas NHS Foundation Trust,18/06/2021,(82800) Bedding & Linen,(id:2549419) TAP,NHS SUPPLY CHAIN (MAIDSTONE),id:14109556 ,  17.95
Department of Health,Guys and St Thomas NHS Foundation Trust,18/06/2021,(81200) Medical Surgical Supplies & Equipment,(id:41913) TAP,NHS SUPPLY CHAIN (MAIDSTONE),id:14077336 , 498.28
Department of Health,Guys and St Thomas NHS Foundation Trust,18/06/2021,(82800) Bedding & Linen,(id:41913) TAP,NHS SUPPLY CHAIN (MAIDSTONE),id:13990034   ,   7.44
Department of Health,Guys and St Thomas NHS Foundation Trust,18/06/2021,(82800) Bedding & Linen,(id:41913) TAP,NHS SUPPLY CHAIN (MAIDSTONE),id:14077336   ,  60.36
Department of Health,Guys and St Thomas NHS Foundation Trust,18/06/2021,(83400) Office Equipment,(id:41897) TAP,NHS SUPPLY CHAIN (MAIDSTONE),id:14093474  ,1763.87
Department of Health,Guys and St Thomas NHS Foundation Trust,18/06/2021,(83400) Office Equipment,(id:41897) TAP,NHS SUPPLY CHAIN (MAIDSTONE),id:14136574  ,2763.06
Department of Health,Guys and St Thomas NHS Foundation Trust,18/06/2021,(82800) Bedding & Linen,(id:41897) TAP,NHS SUPPLY CHAIN (MAIDSTONE),id:13990034   , 117.05
Department of Health,Guys and St Thomas NHS Foundation Trust,18/06/2021,(81200) Medical Surgical Supplies & Equipment,(id:41897) TAP,JOHNSON & JOHNSON MEDICAL LTD,id:14146396, 145.09
Department of Health,Guys and St Thomas NHS Foundation Trust,25/06/2021,(81200) Medical Surgical Supplies & Equipment,(id:41897) TAP,ELIS UK LIMITED,id:14192962    ,  56.10
Department of Health,Guys and St Thomas NHS Foundation Trust,18/06/2021,(81100) Dressings,(id:41897) TAP,NHS SUPPLY CHAIN (MAIDSTONE),id:13990034    , 997.06
Department of Health,Guys and St Thomas NHS Foundation Trust,25/06/2021,(81400) Medical Surgical Supplies & Equipment,(id:41894) TAP,VYGON (UK) LTD,id:14081523,  14.25
Department of Health,Guys and St Thomas NHS Foundation Trust,18/06/2021,(82800) Bedding & Linen,(id:41894) TAP,NHS SUPPLY CHAIN (MAIDSTONE),id:14077336   ,   3.38
Department of Health,Guys and St Thomas NHS Foundation Trust,18/06/2021,(83400) Office Equipment,(id:41894) TAP,NHS SUPPLY CHAIN (MAIDSTONE),id:14136574  ,  83.14
Department of Health,Guys and St Thomas NHS Foundation Trust,25/06/2021,(81200) Medical Surgical Supplies & Equipment,(id:41894) TAP,ELIS UK LIMITED,id:14193134    ,  40.56
Department of Health,Guys and St Thomas NHS Foundation Trust,25/06/2021,(81200) Medical Surgical Supplies & Equipment,(id:41894) TAP,VYGON (UK) LTD,id:14135640, 523.20
Department of Health,Guys and St Thomas NHS Foundation Trust,18/06/2021,(84500) Establishment,(id:41827) Gastrointestinal Medicine & Surgery,CLARITY TRAVEL MANAGEMENT,id:14178078 , 183.89
Department of Health,Guys and St Thomas NHS Foundation Trust,18/06/2021,(82000) Provisions & Kitchens,(id:41958) Gastrointestinal Medicine & Surgery,NHS SUPPLY CHAIN (MAIDSTONE),id:14109556, 113.35
Department of Health,Guys and St Thomas NHS Foundation Trust,18/06/2021,(83400) Office Equipment,(id:41958) Gastrointestinal Medicine & Surgery,NHS SUPPLY CHAIN (MAIDSTONE),id:14136574,  32.48
Department of Health,Guys and St Thomas NHS Foundation Trust,18/06/2021,(82800) Bedding & Linen,(id:41958) Gastrointestinal Medicine & Surgery,NHS SUPPLY CHAIN (MAIDSTONE),id:14109556 , 241.08
Department of Health,Guys and St Thomas NHS Foundation Trust,18/06/2021,(81255) Medical Surgical Supplies & Equipment,(id:41958) Gastrointestinal Medicine & Surgery,NHS SUPPLY CHAIN (MAIDSTONE),id:13990034    ,   2.18
Department of Health,Guys and St Thomas NHS Foundation Trust,18/06/2021,(81000) Surgical Appliances,(id:41944) Gastrointestinal Medicine & Surgery,MEDI UK LTD,id:14172249    ,  56.14
Department of Health,Guys and St Thomas NHS Foundation Trust,18/06/2021,(81000) Surgical Appliances,(id:41944) Gastrointestinal Medicine & Surgery,MEDI UK LTD,id:14172214    , 310.97
Department of Health,Guys and St Thomas NHS Foundation Trust,25/06/2021,(81000) Surgical Appliances,(id:41944) Gastrointestinal Medicine & Surgery,MEDI UK LTD,id:14193107    ,  89.26
Department of Health,Guys and St Thomas NHS Foundation Trust,25/06/2021,(84500) Establishment,(id:41954) Gastrointestinal Medicine & Surgery,CDP  PRINT MANAGEMENT,id:14178056,   6.70
Department of Health,Guys and St Thomas NHS Foundation Trust,18/06/2021,(83400) Office Equipment,(id:41954) Gastrointestinal Medicine & Surgery,NHS SUPPLY CHAIN (MAIDSTONE),id:13990034, 147.81
Department of Health,Guys and St Thomas NHS Foundation Trust,18/06/2021,(83400) Office Equipment,(id:41954) Gastrointestinal Medicine & Surgery,NHS SUPPLY CHAIN (MAIDSTONE),id:14077336,  69.12
Department of Health,Guys and St Thomas NHS Foundation Trust,18/06/2021,(82800) Bedding & Linen,(id:41954) Gastrointestinal Medicine & Surgery,NHS SUPPLY CHAIN (MAIDSTONE),id:13990034 ,  30.72
Department of Health,Guys and St Thomas NHS Foundation Trust,18/06/2021,(81200) Medical Surgical Supplies & Equipment,(id:41954) Gastrointestinal Medicine & Surgery,NHS SUPPLY CHAIN (MAIDSTONE),id:13990034    ,2212.70
Department of Health,Guys and St Thomas NHS Foundation Trust,18/06/2021,(80010) Drug Costs,(id:41954) Gastrointestinal Medicine & Surgery,NHS SUPPLY CHAIN (MAIDSTONE),id:14109556 ,  18.00
Department of Health,Guys and St Thomas NHS Foundation Trust,18/06/2021,(81000) Surgical Appliances,(id:41956) Gastrointestinal Medicine & Surgery,TALAR MADE ORTHOTICS LTD,id:14174274 ,  58.80
Department of Health,Guys and St Thomas NHS Foundation Trust,18/06/2021,(81100) Dressings,(id:41949) Gastrointestinal Medicine & Surgery,NHS SUPPLY CHAIN (MAIDSTONE),id:14109556  , 308.63
Department of Health,Guys and St Thomas NHS Foundation Trust,18/06/2021,(81100) Dressings,(id:41949) Gastrointestinal Medicine & Surgery,NHS SUPPLY CHAIN (MAIDSTONE),id:14136574  ,  48.00
Department of Health,Guys and St Thomas NHS Foundation Trust,04/06/2021,(81200) Medical Surgical Supplies & Equipment,(id:41949) Gastrointestinal Medicine & Surgery,JOHNSON & JOHNSON MEDICAL LTD,id:14110730   , 657.67
Department of Health,Guys and St Thomas NHS Foundation Trust,11/06/2021,(81200) Medical Surgical Supplies & Equipment,(id:41949) Gastrointestinal Medicine & Surgery,JOHNSON & JOHNSON MEDICAL LTD,id:14137582   , 887.76
Department of Health,Guys and St Thomas NHS Foundation Trust,25/06/2021,(81200) Medical Surgical Supplies & Equipment,(id:41949) Gastrointestinal Medicine & Surgery,JOHNSON & JOHNSON MEDICAL LTD,id:14152659   ,1308.96
Department of Health,Guys and St Thomas NHS Foundation Trust,25/06/2021,(81200) Medical Surgical Supplies & Equipment,(id:41949) Gastrointestinal Medicine & Surgery,MEDTRONIC LTD,id:14150025    ,    12569.90
Department of Health,Guys and St Thomas NHS Foundation Trust,25/06/2021,(81200) Medical Surgical Supplies & Equipment,(id:41949) Gastrointestinal Medicine & Surgery,MEDTRONIC LTD,id:14150034    ,    10764.00
Department of Health,Guys and St Thomas NHS Foundation Trust,18/06/2021,(81200) Medical Surgical Supplies & Equipment,(id:2367419) Gastrointestinal Medicine & Surgery,NHS SUPPLY CHAIN (MAIDSTONE),id:14077336  , 378.35
Department of Health,Guys and St Thomas NHS Foundation Trust,18/06/2021,(81200) Medical Surgical Supplies & Equipment,(id:2367419) Gastrointestinal Medicine & Surgery,NHS SUPPLY CHAIN (MAIDSTONE),id:14109556  , 717.37
Department of Health,Guys and St Thomas NHS Foundation Trust,18/06/2021,(83400) Office Equipment,(id:2367419) Gastrointestinal Medicine & Surgery,NHS SUPPLY CHAIN (MAIDSTONE),id:14136574   ,  97.29
Department of Health,Guys and St Thomas NHS Foundation Trust,18/06/2021,(81225) Medical Surgical Supplies & Equipment,(id:2367419) Gastrointestinal Medicine & Surgery,NHS SUPPLY CHAIN (MAIDSTONE),id:14077336  ,  19.39
Department of Health,Guys and St Thomas NHS Foundation Trust,18/06/2021,(81400) Medical Surgical Supplies & Equipment,(id:41957) Gastrointestinal Medicine & Surgery,NHS SUPPLY CHAIN (MAIDSTONE),id:14136574    , 371.76
Department of Health,Guys and St Thomas NHS Foundation Trust,18/06/2021,(83400) Office Equipment,(id:41917) Gastrointestinal Medicine & Surgery,NHS SUPPLY CHAIN (MAIDSTONE),id:14109556, 252.68
Department of Health,Guys and St Thomas NHS Foundation Trust,18/06/2021,(83400) Office Equipment,(id:41917) Gastrointestinal Medicine & Surgery,NHS SUPPLY CHAIN (MAIDSTONE),id:14077336, 166.05
Department of Health,Guys and St Thomas NHS Foundation Trust,18/06/2021,(82700) Uniforms & Clothing,(id:41917) Gastrointestinal Medicine & Surgery,NHS SUPPLY CHAIN (MAIDSTONE),id:14109556  , 236.88
Department of Health,Guys and St Thomas NHS Foundation Trust,18/06/2021,(81235) Medical Surgical Supplies & Equipment,(id:41917) Gastrointestinal Medicine & Surgery,BOSTON SCIENTIFIC LTD,id:14147921 , 910.68
Department of Health,Guys and St Thomas NHS Foundation Trust,11/06/2021,(81200) Medical Surgical Supplies & Equipment,(id:41917) Gastrointestinal Medicine & Surgery,BOSTON SCIENTIFIC LTD,id:14137561 ,2242.34
Department of Health,Guys and St Thomas NHS Foundation Trust,11/06/2021,(81200) Medical Surgical Supplies & Equipment,(id:41917) Gastrointestinal Medicine & Surgery,AQUILANT CRITICAL CARE,id:14163537, 930.00
Department of Health,Guys and St Thomas NHS Foundation Trust,11/06/2021,(81200) Medical Surgical Supplies & Equipment,(id:41917) Gastrointestinal Medicine & Surgery,BOSTON SCIENTIFIC LTD,id:14137564 ,3356.48
Department of Health,Guys and St Thomas NHS Foundation Trust,11/06/2021,(81200) Medical Surgical Supplies & Equipment,(id:41917) Gastrointestinal Medicine & Surgery,OLYMPUS KEYMED,id:14161396   ,1266.00
Department of Health,Guys and St Thomas NHS Foundation Trust,18/06/2021,(81100) Dressings,(id:41917) Gastrointestinal Medicine & Surgery,NHS SUPPLY CHAIN (MAIDSTONE),id:14109556  , 155.23
Department of Health,Guys and St Thomas NHS Foundation Trust,04/06/2021,(81400) Medical Surgical Supplies & Equipment,(id:41917) Gastrointestinal Medicine & Surgery,NHS SUPPLY CHAIN ( CAPITAL FUND ONLY),id:14085214,    41993.04
Department of Health,Guys and St Thomas NHS Foundation Trust,11/06/2021,(86300) Healthcare from non-NHS bodies,(id:41917) Gastrointestinal Medicine & Surgery,18 WEEK SUPPORT LIMITED,id:14160399 ,    23800.00
Department of Health,Guys and St Thomas NHS Foundation Trust,18/06/2021,(81255) Medical Surgical Supplies & Equipment,(id:41917) Gastrointestinal Medicine & Surgery,NHS SUPPLY CHAIN (MAIDSTONE),id:14136574    ,  82.80
Department of Health,Guys and St Thomas NHS Foundation Trust,18/06/2021,(83400) Office Equipment,(id:41942) Gastrointestinal Medicine & Surgery,NHS SUPPLY CHAIN (MAIDSTONE),id:13990034, 124.92
Department of Health,Guys and St Thomas NHS Foundation Trust,18/06/2021,(82000) Provisions & Kitchens,(id:41942) Gastrointestinal Medicine & Surgery,NHS SUPPLY CHAIN (MAIDSTONE),id:14109556,   1.66
Department of Health,Guys and St Thomas NHS Foundation Trust,11/06/2021,(84500) Establishment,(id:2534420) Gastrointestinal Medicine & Surgery,CDP  PRINT MANAGEMENT,id:14168306   , 746.40
Department of Health,Guys and St Thomas NHS Foundation Trust,11/06/2021,(81100) Dressings,(id:2625419) Transplant Renal and Urology,JOHNSON & JOHNSON MEDICAL LTD,id:14114950 , 556.60
Department of Health,Guys and St Thomas NHS Foundation Trust,18/06/2021,(81100) Dressings,(id:2625419) Transplant Renal and Urology,JOHNSON & JOHNSON MEDICAL LTD,id:14143718 , 556.60
Department of Health,Guys and St Thomas NHS Foundation Trust,25/06/2021,(81100) Dressings,(id:2625419) Transplant Renal and Urology,JOHNSON & JOHNSON MEDICAL LTD,id:14163822 , 556.60
Department of Health,Guys and St Thomas NHS Foundation Trust,18/06/2021,(84500) Establishment,(id:42423) Transplant Renal and Urology,CLARITY TRAVEL MANAGEMENT,id:14178077   , 136.99
Department of Health,Guys and St Thomas NHS Foundation Trust,18/06/2021,(81100) Dressings,(id:42419) Transplant Renal and Urology,NHS SUPPLY CHAIN (MAIDSTONE),id:14136574    , 233.48
Department of Health,Guys and St Thomas NHS Foundation Trust,18/06/2021,(81200) Medical Surgical Supplies & Equipment,(id:42419) Transplant Renal and Urology,NHS SUPPLY CHAIN (MAIDSTONE),id:14077336 , 668.03
Department of Health,Guys and St Thomas NHS Foundation Trust,18/06/2021,(83400) Office Equipment,(id:42419) Transplant Renal and Urology,NHS SUPPLY CHAIN (MAIDSTONE),id:14109556  ,  44.61
Department of Health,Guys and St Thomas NHS Foundation Trust,18/06/2021,(81225) Medical Surgical Supplies & Equipment,(id:42419) Transplant Renal and Urology,NHS SUPPLY CHAIN (MAIDSTONE),id:14077336 ,  24.24
Department of Health,Guys and St Thomas NHS Foundation Trust,18/06/2021,(81225) Medical Surgical Supplies & Equipment,(id:42419) Transplant Renal and Urology,NHS SUPPLY CHAIN (MAIDSTONE),id:14109556 ,  24.24
Department of Health,Guys and St Thomas NHS Foundation Trust,18/06/2021,(81700) Lab Equipment Purchase,(id:42419) Transplant Renal and Urology,NHS SUPPLY CHAIN (MAIDSTONE),id:14109556 ,  94.23
Department of Health,Guys and St Thomas NHS Foundation Trust,25/06/2021,(81200) Medical Surgical Supplies & Equipment,(id:42439) Transplant Renal and Urology,JOHNSON & JOHNSON MEDICAL LTD,id:14150018,1607.94
Department of Health,Guys and St Thomas NHS Foundation Trust,04/06/2021,(81400) Medical Surgical Supplies & Equipment,(id:42439) Transplant Renal and Urology,INTUITIVE SURGICAL LTD,id:14117458  ,5700.00
Department of Health,Guys and St Thomas NHS Foundation Trust,18/06/2021,(82800) Bedding & Linen,(id:42439) Transplant Renal and Urology,INTUITIVE SURGICAL LTD,id:14177917    ,    -4320.00
Department of Health,Guys and St Thomas NHS Foundation Trust,18/06/2021,(81100) Dressings,(id:969419) Transplant Renal and Urology,NHS SUPPLY CHAIN (MAIDSTONE),id:14077336   , 129.18
Department of Health,Guys and St Thomas NHS Foundation Trust,18/06/2021,(81200) Medical Surgical Supplies & Equipment,(id:42449) Transplant Renal and Urology,NHS SUPPLY CHAIN (MAIDSTONE),id:14077336 ,2737.68
Department of Health,Guys and St Thomas NHS Foundation Trust,18/06/2021,(83500) Furniture & Fittings,(id:42449) Transplant Renal and Urology,NHS SUPPLY CHAIN (MAIDSTONE),id:14093474   , 169.20
Department of Health,Guys and St Thomas NHS Foundation Trust,18/06/2021,(82700) Uniforms & Clothing,(id:42449) Transplant Renal and Urology,NHS SUPPLY CHAIN (MAIDSTONE),id:14077336    ,  65.52
Department of Health,Guys and St Thomas NHS Foundation Trust,18/06/2021,(81100) Dressings,(id:42449) Transplant Renal and Urology,NHS SUPPLY CHAIN (MAIDSTONE),id:14077336    ,  55.44
Department of Health,Guys and St Thomas NHS Foundation Trust,11/06/2021,(81200) Medical Surgical Supplies & Equipment,(id:42450) Transplant Renal and Urology,MEDTRONIC LTD,id:14135691 , 931.18
Department of Health,Guys and St Thomas NHS Foundation Trust,18/06/2021,(82700) Uniforms & Clothing,(id:42442) Transplant Renal and Urology,NHS SUPPLY CHAIN (MAIDSTONE),id:13990034    ,  63.36
Department of Health,Guys and St Thomas NHS Foundation Trust,18/06/2021,(82800) Bedding & Linen,(id:42442) Transplant Renal and Urology,NHS SUPPLY CHAIN (MAIDSTONE),id:14077336   , 215.45
Department of Health,Guys and St Thomas NHS Foundation Trust,18/06/2021,(83400) Office Equipment,(id:42442) Transplant Renal and Urology,NHS SUPPLY CHAIN (MAIDSTONE),id:14109556  , 191.83
Department of Health,Guys and St Thomas NHS Foundation Trust,18/06/2021,(83400) Office Equipment,(id:42442) Transplant Renal and Urology,NHS SUPPLY CHAIN (MAIDSTONE),id:14136574  , 145.77
Department of Health,Guys and St Thomas NHS Foundation Trust,18/06/2021,(81225) Medical Surgical Supplies & Equipment,(id:42442) Transplant Renal and Urology,NHS SUPPLY CHAIN (MAIDSTONE),id:14077336 , 312.45
Department of Health,Guys and St Thomas NHS Foundation Trust,18/06/2021,(81700) Lab Equipment Purchase,(id:42442) Transplant Renal and Urology,NHS SUPPLY CHAIN (MAIDSTONE),id:14077336 , 119.33
Department of Health,Guys and St Thomas NHS Foundation Trust,18/06/2021,(82000) Provisions & Kitchens,(id:42443) Transplant Renal and Urology,NHS SUPPLY CHAIN (MAIDSTONE),id:13990034  , 323.89
Department of Health,Guys and St Thomas NHS Foundation Trust,25/06/2021,(84500) Establishment,(id:42443) Transplant Renal and Urology,CDP  PRINT MANAGEMENT,id:14178054  ,   9.30
Department of Health,Guys and St Thomas NHS Foundation Trust,18/06/2021,(81100) Dressings,(id:42443) Transplant Renal and Urology,NHS SUPPLY CHAIN (MAIDSTONE),id:13990034    ,  18.72
Department of Health,Guys and St Thomas NHS Foundation Trust,18/06/2021,(81200) Medical Surgical Supplies & Equipment,(id:42443) Transplant Renal and Urology,NHS SUPPLY CHAIN (MAIDSTONE),id:14077336 ,1092.83
Department of Health,Guys and St Thomas NHS Foundation Trust,18/06/2021,(81255) Medical Surgical Supplies & Equipment,(id:42443) Transplant Renal and Urology,NHS SUPPLY CHAIN (MAIDSTONE),id:14136574 ,   1.92
Department of Health,Guys and St Thomas NHS Foundation Trust,04/06/2021,(81200) Medical Surgical Supplies & Equipment,(id:42444) Transplant Renal and Urology,STRYKER UK LTD,id:14111915, 504.00
Department of Health,Guys and St Thomas NHS Foundation Trust,18/06/2021,(81200) Medical Surgical Supplies & Equipment,(id:42444) Transplant Renal and Urology,BOSTON SCIENTIFIC LTD,id:14143675   ,1704.22
Department of Health,Guys and St Thomas NHS Foundation Trust,11/06/2021,(81100) Dressings,(id:42446) Transplant Renal and Urology,JOHNSON & JOHNSON MEDICAL LTD,id:14135682   , 556.60
Department of Health,Guys and St Thomas NHS Foundation Trust,18/06/2021,(81100) Dressings,(id:42446) Transplant Renal and Urology,NHS SUPPLY CHAIN (MAIDSTONE),id:14077336    ,  59.52
Department of Health,Guys and St Thomas NHS Foundation Trust,11/06/2021,(81200) Medical Surgical Supplies & Equipment,(id:42446) Transplant Renal and Urology,JOHNSON & JOHNSON MEDICAL LTD,id:14137594, 326.88
Department of Health,Guys and St Thomas NHS Foundation Trust,25/06/2021,(81200) Medical Surgical Supplies & Equipment,(id:42446) Transplant Renal and Urology,AQUILANT LTD,id:14182800  , 578.76
Department of Health,Guys and St Thomas NHS Foundation Trust,18/06/2021,(83400) Office Equipment,(id:42447) Transplant Renal and Urology,NHS SUPPLY CHAIN (MAIDSTONE),id:14136574  , 215.81
Department of Health,Guys and St Thomas NHS Foundation Trust,25/06/2021,(83400) Office Equipment,(id:42447) Transplant Renal and Urology,INHEALTH LTD/ECHOTECH LTD/REPORTING,id:13619734,1000.00
Department of Health,Guys and St Thomas NHS Foundation Trust,18/06/2021,(82800) Bedding & Linen,(id:42447) Transplant Renal and Urology,NHS SUPPLY CHAIN (MAIDSTONE),id:14093474   , 239.99
Department of Health,Guys and St Thomas NHS Foundation Trust,11/06/2021,(81200) Medical Surgical Supplies & Equipment,(id:42447) Transplant Renal and Urology,AQUILANT LTD,id:14165180  , 578.76
Department of Health,Guys and St Thomas NHS Foundation Trust,18/06/2021,(81700) Lab Equipment Purchase,(id:42447) Transplant Renal and Urology,NHS SUPPLY CHAIN (MAIDSTONE),id:14093474 ,  78.81
Department of Health,Guys and St Thomas NHS Foundation Trust,18/06/2021,(81100) Dressings,(id:42447) Transplant Renal and Urology,NHS SUPPLY CHAIN (MAIDSTONE),id:14136574    ,  80.25
Department of Health,Guys and St Thomas NHS Foundation Trust,18/06/2021,(81000) Surgical Appliances,(id:42447) Transplant Renal and Urology,MEDI UK LTD,id:14172255 ,  47.89
Department of Health,Guys and St Thomas NHS Foundation Trust,25/06/2021,(81200) Medical Surgical Supplies & Equipment,(id:42420) Transplant Renal and Urology,BAXTER HEALTHCARE LTD,id:14186794   ,1048.80
Department of Health,Guys and St Thomas NHS Foundation Trust,25/06/2021,(81200) Medical Surgical Supplies & Equipment,(id:42420) Transplant Renal and Urology,BAXTER HEALTHCARE LTD,id:14187154   ,3908.93
Department of Health,Guys and St Thomas NHS Foundation Trust,25/06/2021,(84500) Establishment,(id:42420) Transplant Renal and Urology,CDP  PRINT MANAGEMENT,id:14178052  ,   7.20
Department of Health,Guys and St Thomas NHS Foundation Trust,18/06/2021,(82800) Bedding & Linen,(id:42420) Transplant Renal and Urology,NHS SUPPLY CHAIN (MAIDSTONE),id:14136574   , 267.97
Department of Health,Guys and St Thomas NHS Foundation Trust,18/06/2021,(82700) Uniforms & Clothing,(id:42435) Transplant Renal and Urology,NHS SUPPLY CHAIN (MAIDSTONE),id:14077336    ,  23.69
Department of Health,Guys and St Thomas NHS Foundation Trust,18/06/2021,(82800) Bedding & Linen,(id:42435) Transplant Renal and Urology,NHS SUPPLY CHAIN (MAIDSTONE),id:14109556   , 172.70
Department of Health,Guys and St Thomas NHS Foundation Trust,18/06/2021,(83400) Office Equipment,(id:42435) Transplant Renal and Urology,NHS SUPPLY CHAIN (MAIDSTONE),id:14136574  , 158.64
Department of Health,Guys and St Thomas NHS Foundation Trust,11/06/2021,(81200) Medical Surgical Supplies & Equipment,(id:42433) Transplant Renal and Urology,HEALTHCARE 21 LTD,id:14165070  ,6339.60
Department of Health,Guys and St Thomas NHS Foundation Trust,25/06/2021,(81200) Medical Surgical Supplies & Equipment,(id:42433) Transplant Renal and Urology,HEALTHCARE 21 LTD,id:14165042  ,7578.90
Department of Health,Guys and St Thomas NHS Foundation Trust,25/06/2021,(84500) Establishment,(id:42428) Transplant Renal and Urology,CDP  PRINT MANAGEMENT,id:14178053  ,   6.70
Department of Health,Guys and St Thomas NHS Foundation Trust,25/06/2021,(84500) Establishment,(id:42428) Transplant Renal and Urology,CDP  PRINT MANAGEMENT,id:14178052  ,  19.10
Department of Health,Guys and St Thomas NHS Foundation Trust,25/06/2021,(84500) Establishment,(id:42428) Transplant Renal and Urology,CDP  PRINT MANAGEMENT,id:14178054  ,  27.50
Department of Health,Guys and St Thomas NHS Foundation Trust,18/06/2021,(84500) Establishment,(id:42428) Transplant Renal and Urology,CLARITY TRAVEL MANAGEMENT,id:14178078   , 344.38
Department of Health,Guys and St Thomas NHS Foundation Trust,18/06/2021,(81200) Medical Surgical Supplies & Equipment,(id:42428) Transplant Renal and Urology,NHS SUPPLY CHAIN (MAIDSTONE),id:13990034 , 315.57
Department of Health,Guys and St Thomas NHS Foundation Trust,18/06/2021,(81700) Lab Equipment Purchase,(id:42428) Transplant Renal and Urology,NHS SUPPLY CHAIN (MAIDSTONE),id:14077336 , 242.06
Department of Health,Guys and St Thomas NHS Foundation Trust,11/06/2021,(81200) Medical Surgical Supplies & Equipment,(id:42430) Transplant Renal and Urology,B.BRAUN MEDICAL LTD,id:14163139, 673.03
Department of Health,Guys and St Thomas NHS Foundation Trust,11/06/2021,(81200) Medical Surgical Supplies & Equipment,(id:42430) Transplant Renal and Urology,B.BRAUN MEDICAL LTD,id:14157755,2132.00
Department of Health,Guys and St Thomas NHS Foundation Trust,25/06/2021,(81200) Medical Surgical Supplies & Equipment,(id:42430) Transplant Renal and Urology,LINC MEDICAL SYSTEMS  LTD,id:14202954    ,5035.20
Department of Health,Guys and St Thomas NHS Foundation Trust,18/06/2021,(81200) Medical Surgical Supplies & Equipment,(id:42422) Transplant Renal and Urology,NHS SUPPLY CHAIN (MAIDSTONE),id:14077336 , 198.00
Department of Health,Guys and St Thomas NHS Foundation Trust,18/06/2021,(81200) Medical Surgical Supplies & Equipment,(id:42422) Transplant Renal and Urology,NHS SUPPLY CHAIN (MAIDSTONE),id:14093474 , 328.32
Department of Health,Guys and St Thomas NHS Foundation Trust,25/06/2021,(81200) Medical Surgical Supplies & Equipment,(id:42422) Transplant Renal and Urology,FRESENIUS MEDICAL CARE UK LTD,id:13870698, 889.85
Department of Health,Guys and St Thomas NHS Foundation Trust,11/06/2021,(81200) Medical Surgical Supplies & Equipment,(id:42422) Transplant Renal and Urology,NXSTAGE MEDICAL UK LIMITED,id:14166095   , 600.00
Department of Health,Guys and St Thomas NHS Foundation Trust,25/06/2021,(84500) Establishment,(id:42422) Transplant Renal and Urology,CDP  PRINT MANAGEMENT,id:14178053  ,  14.40
Department of Health,Guys and St Thomas NHS Foundation Trust,18/06/2021,(80010) Drug Costs,(id:42422) Transplant Renal and Urology,NHS SUPPLY CHAIN (MAIDSTONE),id:14093474   ,  22.92
Department of Health,Guys and St Thomas NHS Foundation Trust,18/06/2021,(86300) Healthcare from non-NHS bodies,(id:42421) Transplant Renal and Urology,DIAVERUM UK LTD,id:14181196 ,   110159.28
Department of Health,Guys and St Thomas NHS Foundation Trust,11/06/2021,(86300) Healthcare from non-NHS bodies,(id:42437) Transplant Renal and Urology,DIAVERUM UK LTD,id:14161041 ,    36749.70
Department of Health,Guys and St Thomas NHS Foundation Trust,18/06/2021,(86300) Healthcare from non-NHS bodies,(id:42437) Transplant Renal and Urology,DIAVERUM UK LTD,id:14181079 ,    65252.30
Department of Health,Guys and St Thomas NHS Foundation Trust,18/06/2021,(86300) Healthcare from non-NHS bodies,(id:42437) Transplant Renal and Urology,DIAVERUM UK LTD,id:14181077 ,    36749.70
Department of Health,Guys and St Thomas NHS Foundation Trust,04/06/2021,(80150) Drug Costs,(id:4622425) Transplant Renal and Urology,FRESENIUS MEDICAL CARE RENAL SERVICES LT,id:14151335    , 808.40
Department of Health,Guys and St Thomas NHS Foundation Trust,04/06/2021,(80150) Drug Costs,(id:4622425) Transplant Renal and Urology,FRESENIUS MEDICAL CARE RENAL SERVICES LT,id:14151320    , 558.72
Department of Health,Guys and St Thomas NHS Foundation Trust,04/06/2021,(80150) Drug Costs,(id:4622425) Transplant Renal and Urology,FRESENIUS MEDICAL CARE RENAL SERVICES LT,id:14151318    ,1272.16
Department of Health,Guys and St Thomas NHS Foundation Trust,18/06/2021,(50552) Qualified Nursing Staff,(id:42482) Surgery,GLOBE LOCUMS LTD,id:14180587   , 341.03
Department of Health,Guys and St Thomas NHS Foundation Trust,18/06/2021,(81100) Dressings,(id:42483) Surgery,NHS SUPPLY CHAIN (MAIDSTONE),id:14109556, 441.84
Department of Health,Guys and St Thomas NHS Foundation Trust,18/06/2021,(83400) Office Equipment,(id:42483) Surgery,NHS SUPPLY CHAIN (MAIDSTONE),id:14093474   , 173.66
Department of Health,Guys and St Thomas NHS Foundation Trust,18/06/2021,(81200) Medical Surgical Supplies & Equipment,(id:42484) Surgery,ADVANTECH SURGICAL LTD,id:14174223   , 527.16
Department of Health,Guys and St Thomas NHS Foundation Trust,18/06/2021,(81200) Medical Surgical Supplies & Equipment,(id:42484) Surgery,HEALTHCARE 21 LTD,id:14165260   ,2814.00
Department of Health,Guys and St Thomas NHS Foundation Trust,25/06/2021,(81200) Medical Surgical Supplies & Equipment,(id:42484) Surgery,T J SMITH & NEPHEW LTD,id:14197494   , 588.89
Department of Health,Guys and St Thomas NHS Foundation Trust,18/06/2021,(81100) Dressings,(id:42484) Surgery,NHS SUPPLY CHAIN (MAIDSTONE),id:14093474,  19.80
Department of Health,Guys and St Thomas NHS Foundation Trust,18/06/2021,(81100) Dressings,(id:42484) Surgery,NHS SUPPLY CHAIN (MAIDSTONE),id:14136574, 118.33
Department of Health,Guys and St Thomas NHS Foundation Trust,18/06/2021,(81225) Medical Surgical Supplies & Equipment,(id:42484) Surgery,NHS SUPPLY CHAIN (MAIDSTONE),id:13990034  , 394.74
Department of Health,Guys and St Thomas NHS Foundation Trust,18/06/2021,(83400) Office Equipment,(id:42485) Surgery,NHS SUPPLY CHAIN (MAIDSTONE),id:14077336   , 556.25
Department of Health,Guys and St Thomas NHS Foundation Trust,18/06/2021,(81255) Medical Surgical Supplies & Equipment,(id:42485) Surgery,NHS SUPPLY CHAIN (MAIDSTONE),id:13990034  ,    .62
Department of Health,Guys and St Thomas NHS Foundation Trust,18/06/2021,(81700) Lab Equipment Purchase,(id:42485) Surgery,NHS SUPPLY CHAIN (MAIDSTONE),id:13990034  ,  17.55
Department of Health,Guys and St Thomas NHS Foundation Trust,18/06/2021,(81225) Medical Surgical Supplies & Equipment,(id:42485) Surgery,NHS SUPPLY CHAIN (MAIDSTONE),id:14077336  , 157.89
Department of Health,Guys and St Thomas NHS Foundation Trust,25/06/2021,(81000) Surgical Appliances,(id:42485) Surgery,TALAR MADE ORTHOTICS LTD,id:14193183    ,  50.99
Department of Health,Guys and St Thomas NHS Foundation Trust,18/06/2021,(81100) Dressings,(id:42485) Surgery,NHS SUPPLY CHAIN (MAIDSTONE),id:14136574, 444.90
Department of Health,Guys and St Thomas NHS Foundation Trust,18/06/2021,(81100) Dressings,(id:42485) Surgery,NHS SUPPLY CHAIN (MAIDSTONE),id:14077336, 442.32
Department of Health,Guys and St Thomas NHS Foundation Trust,18/06/2021,(81200) Medical Surgical Supplies & Equipment,(id:42485) Surgery,NHS SUPPLY CHAIN (MAIDSTONE),id:14109556  , 388.08
Department of Health,Guys and St Thomas NHS Foundation Trust,18/06/2021,(81100) Dressings,(id:884419) Surgery,NHS SUPPLY CHAIN (MAIDSTONE),id:13990034    , 621.61
Department of Health,Guys and St Thomas NHS Foundation Trust,18/06/2021,(83400) Office Equipment,(id:884419) Surgery,NHS SUPPLY CHAIN (MAIDSTONE),id:14077336  ,   2.92
Department of Health,Guys and St Thomas NHS Foundation Trust,18/06/2021,(82600) Uniforms & Clothing,(id:42463) Surgery,NHS SUPPLY CHAIN (MAIDSTONE),id:14109556,  36.00
Department of Health,Guys and St Thomas NHS Foundation Trust,18/06/2021,(81200) Medical Surgical Supplies & Equipment,(id:42463) Surgery,NHS SUPPLY CHAIN (MAIDSTONE),id:14136574  , 550.12
Department of Health,Guys and St Thomas NHS Foundation Trust,18/06/2021,(81200) Medical Surgical Supplies & Equipment,(id:42463) Surgery,NHS SUPPLY CHAIN (MAIDSTONE),id:14077336  ,1083.76
Department of Health,Guys and St Thomas NHS Foundation Trust,18/06/2021,(81100) Dressings,(id:42463) Surgery,NHS SUPPLY CHAIN (MAIDSTONE),id:14077336,  39.78
Department of Health,Guys and St Thomas NHS Foundation Trust,18/06/2021,(81100) Dressings,(id:42463) Surgery,NHS SUPPLY CHAIN (MAIDSTONE),id:13990034,   4.91
Department of Health,Guys and St Thomas NHS Foundation Trust,18/06/2021,(81100) Dressings,(id:42464) Surgery,NHS SUPPLY CHAIN (MAIDSTONE),id:14136574,   2.04
Department of Health,Guys and St Thomas NHS Foundation Trust,18/06/2021,(81100) Dressings,(id:42464) Surgery,NHS SUPPLY CHAIN (MAIDSTONE),id:13990034,  51.47
Department of Health,Guys and St Thomas NHS Foundation Trust,18/06/2021,(81200) Medical Surgical Supplies & Equipment,(id:42464) Surgery,NHS SUPPLY CHAIN (MAIDSTONE),id:13990034  ,  35.44
Department of Health,Guys and St Thomas NHS Foundation Trust,18/06/2021,(82800) Bedding & Linen,(id:42465) Surgery,NHS SUPPLY CHAIN (MAIDSTONE),id:14109556    , 158.31
Department of Health,Guys and St Thomas NHS Foundation Trust,18/06/2021,(81200) Medical Surgical Supplies & Equipment,(id:42465) Surgery,NHS SUPPLY CHAIN (MAIDSTONE),id:14109556  , 588.56
Department of Health,Guys and St Thomas NHS Foundation Trust,18/06/2021,(81200) Medical Surgical Supplies & Equipment,(id:42465) Surgery,NHS SUPPLY CHAIN (MAIDSTONE),id:14136574  , 582.34
Department of Health,Guys and St Thomas NHS Foundation Trust,25/06/2021,(50522) Unqualified Nursing Staff,(id:42465) Surgery,GLOBE LOCUMS LTD,id:14203591 , 263.10
Department of Health,Guys and St Thomas NHS Foundation Trust,25/06/2021,(81000) Surgical Appliances,(id:42465) Surgery,TALAR MADE ORTHOTICS LTD,id:14198414    ,  14.40
Department of Health,Guys and St Thomas NHS Foundation Trust,18/06/2021,(81700) Lab Equipment Purchase,(id:42465) Surgery,NHS SUPPLY CHAIN (MAIDSTONE),id:14109556  ,  26.27
Department of Health,Guys and St Thomas NHS Foundation Trust,18/06/2021,(81700) Lab Equipment Purchase,(id:42465) Surgery,NHS SUPPLY CHAIN (MAIDSTONE),id:14077336  ,  40.55
Department of Health,Guys and St Thomas NHS Foundation Trust,18/06/2021,(81000) Surgical Appliances,(id:42466) Surgery,MEDI UK LTD,id:14172214  , 448.80
Department of Health,Guys and St Thomas NHS Foundation Trust,25/06/2021,(81000) Surgical Appliances,(id:42466) Surgery,TALAR MADE ORTHOTICS LTD,id:14193180    , 516.00
Department of Health,Guys and St Thomas NHS Foundation Trust,18/06/2021,(81225) Medical Surgical Supplies & Equipment,(id:42466) Surgery,NHS SUPPLY CHAIN (MAIDSTONE),id:13990034  , 240.20
Department of Health,Guys and St Thomas NHS Foundation Trust,18/06/2021,(81225) Medical Surgical Supplies & Equipment,(id:42466) Surgery,OSSUR UK LTD:42113800,id:14168810    , 900.00
Department of Health,Guys and St Thomas NHS Foundation Trust,18/06/2021,(82800) Bedding & Linen,(id:42467) Surgery,NHS SUPPLY CHAIN (MAIDSTONE),id:13990034    , 127.26
Department of Health,Guys and St Thomas NHS Foundation Trust,18/06/2021,(81200) Medical Surgical Supplies & Equipment,(id:42467) Surgery,NHS SUPPLY CHAIN (MAIDSTONE),id:14109556  ,1123.80
Department of Health,Guys and St Thomas NHS Foundation Trust,18/06/2021,(83400) Office Equipment,(id:42467) Surgery,NHS SUPPLY CHAIN (MAIDSTONE),id:14077336   , 387.88
Department of Health,Guys and St Thomas NHS Foundation Trust,18/06/2021,(82800) Bedding & Linen,(id:42459) Surgery,NHS SUPPLY CHAIN (MAIDSTONE),id:13990034    ,  96.26
Department of Health,Guys and St Thomas NHS Foundation Trust,18/06/2021,(82800) Bedding & Linen,(id:42459) Surgery,NHS SUPPLY CHAIN (MAIDSTONE),id:14077336    , 141.08
Department of Health,Guys and St Thomas NHS Foundation Trust,25/06/2021,(81000) Surgical Appliances,(id:42459) Surgery,TALAR MADE ORTHOTICS LTD,id:14196304    , 468.00
Department of Health,Guys and St Thomas NHS Foundation Trust,18/06/2021,(83400) Office Equipment,(id:42459) Surgery,NHS SUPPLY CHAIN (MAIDSTONE),id:14109556   ,  60.34
Department of Health,Guys and St Thomas NHS Foundation Trust,18/06/2021,(81700) Lab Equipment Purchase,(id:42459) Surgery,NHS SUPPLY CHAIN (MAIDSTONE),id:14077336  ,  31.12
Department of Health,Guys and St Thomas NHS Foundation Trust,18/06/2021,(81700) Lab Equipment Purchase,(id:42459) Surgery,NHS SUPPLY CHAIN (MAIDSTONE),id:14136574  ,  19.87
Department of Health,Guys and St Thomas NHS Foundation Trust,25/06/2021,(84500) Establishment,(id:42461) Surgery,CDP  PRINT MANAGEMENT,id:14178052   ,   6.20
Department of Health,Guys and St Thomas NHS Foundation Trust,25/06/2021,(81000) Surgical Appliances,(id:42461) Surgery,TALAR MADE ORTHOTICS LTD,id:14196308    ,1372.50
Department of Health,Guys and St Thomas NHS Foundation Trust,25/06/2021,(81000) Surgical Appliances,(id:42461) Surgery,TALAR MADE ORTHOTICS LTD,id:14199234    , 516.00
Department of Health,Guys and St Thomas NHS Foundation Trust,25/06/2021,(81000) Surgical Appliances,(id:42461) Surgery,TALAR MADE ORTHOTICS LTD,id:14198414    , 524.39
Department of Health,Guys and St Thomas NHS Foundation Trust,25/06/2021,(81000) Surgical Appliances,(id:42461) Surgery,TALAR MADE ORTHOTICS LTD,id:14198374    , 524.39
Department of Health,Guys and St Thomas NHS Foundation Trust,11/06/2021,(89270) Establishment,(id:3821419) Cancer Supportive Services and R&D,MARCUS CARMELO SAMPERI,id:14167314   , 600.00
Department of Health,Guys and St Thomas NHS Foundation Trust,25/06/2021,(84500) Establishment,(id:42276) Haematology Cellular Pathology and Supporting Services,CDP  PRINT MANAGEMENT,id:14178053 ,   3.60
Department of Health,Guys and St Thomas NHS Foundation Trust,18/06/2021,(82700) Uniforms & Clothing,(id:42265) Haematology Cellular Pathology and Supporting Services,NHS SUPPLY CHAIN (MAIDSTONE),id:14109556   ,  63.36
Department of Health,Guys and St Thomas NHS Foundation Trust,18/06/2021,(82000) Provisions & Kitchens,(id:42265) Haematology Cellular Pathology and Supporting Services,NHS SUPPLY CHAIN (MAIDSTONE),id:14093474 ,  80.60
Department of Health,Guys and St Thomas NHS Foundation Trust,18/06/2021,(82800) Bedding & Linen,(id:42265) Haematology Cellular Pathology and Supporting Services,NHS SUPPLY CHAIN (MAIDSTONE),id:13990034  , 147.38
Department of Health,Guys and St Thomas NHS Foundation Trust,25/06/2021,(84500) Establishment,(id:42265) Haematology Cellular Pathology and Supporting Services,CDP  PRINT MANAGEMENT,id:14178054 ,   3.60
Department of Health,Guys and St Thomas NHS Foundation Trust,18/06/2021,(81100) Dressings,(id:42265) Haematology Cellular Pathology and Supporting Services,NHS SUPPLY CHAIN (MAIDSTONE),id:13990034   , 267.12
Department of Health,Guys and St Thomas NHS Foundation Trust,18/06/2021,(81100) Dressings,(id:42265) Haematology Cellular Pathology and Supporting Services,NHS SUPPLY CHAIN (MAIDSTONE),id:14077336   , 215.00
Department of Health,Guys and St Thomas NHS Foundation Trust,18/06/2021,(81100) Dressings,(id:42265) Haematology Cellular Pathology and Supporting Services,NHS SUPPLY CHAIN (MAIDSTONE),id:14093474   , 143.34
Department of Health,Guys and St Thomas NHS Foundation Trust,18/06/2021,(81100) Dressings,(id:42265) Haematology Cellular Pathology and Supporting Services,NHS SUPPLY CHAIN (MAIDSTONE),id:14136574   ,  69.02
Department of Health,Guys and St Thomas NHS Foundation Trust,18/06/2021,(81200) Medical Surgical Supplies & Equipment,(id:42265) Haematology Cellular Pathology and Supporting Services,NHS SUPPLY CHAIN (MAIDSTONE),id:14077336, 774.61
Department of Health,Guys and St Thomas NHS Foundation Trust,18/06/2021,(81200) Medical Surgical Supplies & Equipment,(id:42265) Haematology Cellular Pathology and Supporting Services,NHS SUPPLY CHAIN (MAIDSTONE),id:14093474, 838.02
Department of Health,Guys and St Thomas NHS Foundation Trust,04/06/2021,(50522) Unqualified Nursing Staff,(id:42265) Haematology Cellular Pathology and Supporting Services,CARE PROVIDERS HEALTHCARE,id:14149490, 796.08
Department of Health,Guys and St Thomas NHS Foundation Trust,18/06/2021,(83400) Office Equipment,(id:42265) Haematology Cellular Pathology and Supporting Services,NHS SUPPLY CHAIN (MAIDSTONE),id:14077336 ,  39.35
Department of Health,Guys and St Thomas NHS Foundation Trust,18/06/2021,(81255) Medical Surgical Supplies & Equipment,(id:42265) Haematology Cellular Pathology and Supporting Services,NHS SUPPLY CHAIN (MAIDSTONE),id:14136574,   3.12
Department of Health,Guys and St Thomas NHS Foundation Trust,08/06/2021,(82600) Uniforms & Clothing,(id:42267) Haematology Cellular Pathology and Supporting Services,RESONANCE HEALTH ANALYSIS SERVICES PTY LTD,id:13878996    , 900.00
Department of Health,Guys and St Thomas NHS Foundation Trust,18/06/2021,(81000) Surgical Appliances,(id:42268) Haematology Cellular Pathology and Supporting Services,TALAR MADE ORTHOTICS LTD,id:14174334  , 218.03
Department of Health,Guys and St Thomas NHS Foundation Trust,18/06/2021,(81255) Medical Surgical Supplies & Equipment,(id:42270) Haematology Cellular Pathology and Supporting Services,NHS SUPPLY CHAIN (MAIDSTONE),id:14077336,   1.01
Department of Health,Guys and St Thomas NHS Foundation Trust,18/06/2021,(83400) Office Equipment,(id:42270) Haematology Cellular Pathology and Supporting Services,NHS SUPPLY CHAIN (MAIDSTONE),id:14093474 ,  71.15
Department of Health,Guys and St Thomas NHS Foundation Trust,18/06/2021,(81700) Lab Equipment Purchase,(id:42270) Haematology Cellular Pathology and Supporting Services,NHS SUPPLY CHAIN (MAIDSTONE),id:14093474,  40.00
Department of Health,Guys and St Thomas NHS Foundation Trust,18/06/2021,(82000) Provisions & Kitchens,(id:42270) Haematology Cellular Pathology and Supporting Services,NHS SUPPLY CHAIN (MAIDSTONE),id:14093474 ,  38.18
Department of Health,Guys and St Thomas NHS Foundation Trust,18/06/2021,(82800) Bedding & Linen,(id:42270) Haematology Cellular Pathology and Supporting Services,NHS SUPPLY CHAIN (MAIDSTONE),id:13990034  ,  97.97
Department of Health,Guys and St Thomas NHS Foundation Trust,18/06/2021,(82800) Bedding & Linen,(id:42270) Haematology Cellular Pathology and Supporting Services,NHS SUPPLY CHAIN (MAIDSTONE),id:14093474  ,  46.82
Department of Health,Guys and St Thomas NHS Foundation Trust,25/06/2021,(84500) Establishment,(id:42272) Haematology Cellular Pathology and Supporting Services,CDP  PRINT MANAGEMENT,id:14178053 ,   7.20
Department of Health,Guys and St Thomas NHS Foundation Trust,25/06/2021,(84500) Establishment,(id:42272) Haematology Cellular Pathology and Supporting Services,CDP  PRINT MANAGEMENT,id:14196214 , 585.00
Department of Health,Guys and St Thomas NHS Foundation Trust,25/06/2021,(81000) Surgical Appliances,(id:42272) Haematology Cellular Pathology and Supporting Services,TALAR MADE ORTHOTICS LTD,id:14198574  , 281.64
Department of Health,Guys and St Thomas NHS Foundation Trust,18/06/2021,(80205) Drug Costs,(id:42273) Haematology Cellular Pathology and Supporting Services,HEALTHCARE AT HOME LTD,id:14179703   ,7901.00
Department of Health,Guys and St Thomas NHS Foundation Trust,18/06/2021,(80205) Drug Costs,(id:42273) Haematology Cellular Pathology and Supporting Services,HEALTHCARE AT HOME LTD,id:14179697   ,    15127.00
Department of Health,Guys and St Thomas NHS Foundation Trust,18/06/2021,(80205) Drug Costs,(id:42273) Haematology Cellular Pathology and Supporting Services,HEALTHCARE AT HOME LTD,id:14179716   ,    24777.00
Department of Health,Guys and St Thomas NHS Foundation Trust,21/06/2021,(80205) Drug Costs,(id:42273) Haematology Cellular Pathology and Supporting Services,ALCURA UK LIMITED,id:14179680   ,2750.00
Department of Health,Guys and St Thomas NHS Foundation Trust,21/06/2021,(80205) Drug Costs,(id:42273) Haematology Cellular Pathology and Supporting Services,ALCURA UK LIMITED,id:14179678   ,2930.00
Department of Health,Guys and St Thomas NHS Foundation Trust,25/06/2021,(80205) Drug Costs,(id:42273) Haematology Cellular Pathology and Supporting Services,HEALTHCARE AT HOME LTD,id:14202614   ,1419.00
Department of Health,Guys and St Thomas NHS Foundation Trust,11/06/2021,(80205) Drug Costs,(id:42273) Haematology Cellular Pathology and Supporting Services,HEALTHCARE AT HOME LTD,id:14165254   ,4102.00
Department of Health,Guys and St Thomas NHS Foundation Trust,11/06/2021,(80205) Drug Costs,(id:42273) Haematology Cellular Pathology and Supporting Services,HEALTHCARE AT HOME LTD,id:14165802   ,4127.00
Department of Health,Guys and St Thomas NHS Foundation Trust,11/06/2021,(80205) Drug Costs,(id:42273) Haematology Cellular Pathology and Supporting Services,HEALTHCARE AT HOME LTD,id:14165830   ,4447.00
Department of Health,Guys and St Thomas NHS Foundation Trust,11/06/2021,(80205) Drug Costs,(id:42273) Haematology Cellular Pathology and Supporting Services,HEALTHCARE AT HOME LTD,id:14165322   ,5247.00
Department of Health,Guys and St Thomas NHS Foundation Trust,11/06/2021,(80205) Drug Costs,(id:42273) Haematology Cellular Pathology and Supporting Services,HEALTHCARE AT HOME LTD,id:14165865   ,5887.00
Department of Health,Guys and St Thomas NHS Foundation Trust,11/06/2021,(80205) Drug Costs,(id:42273) Haematology Cellular Pathology and Supporting Services,HEALTHCARE AT HOME LTD,id:14165805   ,5887.00
Department of Health,Guys and St Thomas NHS Foundation Trust,11/06/2021,(80205) Drug Costs,(id:42273) Haematology Cellular Pathology and Supporting Services,HEALTHCARE AT HOME LTD,id:14165832   ,6127.00
Department of Health,Guys and St Thomas NHS Foundation Trust,11/06/2021,(80205) Drug Costs,(id:42273) Haematology Cellular Pathology and Supporting Services,HEALTHCARE AT HOME LTD,id:14165306   ,6127.00
Department of Health,Guys and St Thomas NHS Foundation Trust,11/06/2021,(80205) Drug Costs,(id:42273) Haematology Cellular Pathology and Supporting Services,HEALTHCARE AT HOME LTD,id:14165247   ,6527.00
Department of Health,Guys and St Thomas NHS Foundation Trust,11/06/2021,(80205) Drug Costs,(id:42273) Haematology Cellular Pathology and Supporting Services,HEALTHCARE AT HOME LTD,id:14165299   ,6927.00
Department of Health,Guys and St Thomas NHS Foundation Trust,11/06/2021,(80205) Drug Costs,(id:42273) Haematology Cellular Pathology and Supporting Services,HEALTHCARE AT HOME LTD,id:14165820   ,    15974.00
Department of Health,Guys and St Thomas NHS Foundation Trust,11/06/2021,(80205) Drug Costs,(id:42273) Haematology Cellular Pathology and Supporting Services,HEALTHCARE AT HOME LTD,id:14165655   ,    22552.00
Department of Health,Guys and St Thomas NHS Foundation Trust,11/06/2021,(80205) Drug Costs,(id:42273) Haematology Cellular Pathology and Supporting Services,HEALTHCARE AT HOME LTD,id:14165293   ,    61727.00
Department of Health,Guys and St Thomas NHS Foundation Trust,18/06/2021,(83400) Office Equipment,(id:42128) Haematology Cellular Pathology and Supporting Services,NHS SUPPLY CHAIN (MAIDSTONE),id:14093474 , 126.32
Department of Health,Guys and St Thomas NHS Foundation Trust,18/06/2021,(81100) Dressings,(id:42128) Haematology Cellular Pathology and Supporting Services,NHS SUPPLY CHAIN (MAIDSTONE),id:14093474   ,  75.60
Department of Health,Guys and St Thomas NHS Foundation Trust,11/06/2021,(54052) Technical Officers,(id:42128) Haematology Cellular Pathology and Supporting Services,TOTAL ASSIST RECRUITMENT LTD,id:14149194    ,1280.70
Department of Health,Guys and St Thomas NHS Foundation Trust,25/06/2021,(54052) Technical Officers,(id:42128) Haematology Cellular Pathology and Supporting Services,TOTAL ASSIST RECRUITMENT LTD,id:14180391    , 939.18
Department of Health,Guys and St Thomas NHS Foundation Trust,11/06/2021,(89200) Other - Patient travel,(id:42130) Haematology Cellular Pathology and Supporting Services,F A ALBIN & SONS,id:14163181  , 885.00
Department of Health,Guys and St Thomas NHS Foundation Trust,18/06/2021,(84500) Establishment,(id:42245) Haematology Cellular Pathology and Supporting Services,PERSONAL CARE PACKS,id:14179844   , 870.00
Department of Health,Guys and St Thomas NHS Foundation Trust,25/06/2021,(84500) Establishment,(id:42245) Haematology Cellular Pathology and Supporting Services,CDP  PRINT MANAGEMENT,id:14178056 ,   6.20
Department of Health,Guys and St Thomas NHS Foundation Trust,11/06/2021,(86300) Healthcare from non-NHS bodies,(id:42277) Haematology Cellular Pathology and Supporting Services,PURPLE FLAME AROMATHERAPY LTD,id:14155035 , 546.96
Department of Health,Guys and St Thomas NHS Foundation Trust,25/06/2021,(82600) Uniforms & Clothing,(id:42258) Oncology Services,1ST BIOTECH LIMITED,id:14195764    ,1198.92
Department of Health,Guys and St Thomas NHS Foundation Trust,18/06/2021,(82700) Uniforms & Clothing,(id:42258) Oncology Services,NHS SUPPLY CHAIN (MAIDSTONE),id:14136574,  92.50
Department of Health,Guys and St Thomas NHS Foundation Trust,18/06/2021,(82800) Bedding & Linen,(id:42258) Oncology Services,NHS SUPPLY CHAIN (MAIDSTONE),id:14109556    , 243.24
Department of Health,Guys and St Thomas NHS Foundation Trust,15/06/2021,(52062) Radiographers,(id:42258) Oncology Services,PRICEWATERHOUSECOOPERS LLP,id:14174600   ,3007.69
Department of Health,Guys and St Thomas NHS Foundation Trust,18/06/2021,(83755) Rental under Operating Lease,(id:42258) Oncology Services,OXLEAS NHS FOUNDATION TRUST,id:14058794  ,    55033.50
Department of Health,Guys and St Thomas NHS Foundation Trust,18/06/2021,(81100) Dressings,(id:42258) Oncology Services,NHS SUPPLY CHAIN (MAIDSTONE),id:14077336, 457.21
Department of Health,Guys and St Thomas NHS Foundation Trust,18/06/2021,(81700) Lab Equipment Purchase,(id:42258) Oncology Services,NHS SUPPLY CHAIN (MAIDSTONE),id:13990034  ,  31.46
Department of Health,Guys and St Thomas NHS Foundation Trust,25/06/2021,(84500) Establishment,(id:42260) Oncology Services,CDP  PRINT MANAGEMENT,id:14178052   ,  12.40
Department of Health,Guys and St Thomas NHS Foundation Trust,18/06/2021,(81200) Medical Surgical Supplies & Equipment,(id:42260) Oncology Services,NHS SUPPLY CHAIN (MAIDSTONE),id:14136574  ,6234.32
Department of Health,Guys and St Thomas NHS Foundation Trust,25/06/2021,(81230) Medical Surgical Supplies & Equipment,(id:42260) Oncology Services,VYGON (UK) LTD,id:14104597 , 990.14
Department of Health,Guys and St Thomas NHS Foundation Trust,18/06/2021,(82800) Bedding & Linen,(id:42260) Oncology Services,NHS SUPPLY CHAIN (MAIDSTONE),id:14077336    , 493.54
Department of Health,Guys and St Thomas NHS Foundation Trust,18/06/2021,(82000) Provisions & Kitchens,(id:42260) Oncology Services,NHS SUPPLY CHAIN (MAIDSTONE),id:14077336   ,  60.78
Department of Health,Guys and St Thomas NHS Foundation Trust,18/06/2021,(82000) Provisions & Kitchens,(id:42260) Oncology Services,NHS SUPPLY CHAIN (MAIDSTONE),id:14136574   ,   7.80
Department of Health,Guys and St Thomas NHS Foundation Trust,18/06/2021,(82700) Uniforms & Clothing,(id:42260) Oncology Services,NHS SUPPLY CHAIN (MAIDSTONE),id:14136574, 264.84
Department of Health,Guys and St Thomas NHS Foundation Trust,18/06/2021,(82000) Provisions & Kitchens,(id:42259) Oncology Services,NHS SUPPLY CHAIN (MAIDSTONE),id:14093474   , 122.90
Department of Health,Guys and St Thomas NHS Foundation Trust,25/06/2021,(84500) Establishment,(id:42259) Oncology Services,CDP  PRINT MANAGEMENT,id:14178053   ,  30.40
Department of Health,Guys and St Thomas NHS Foundation Trust,18/06/2021,(81100) Dressings,(id:42259) Oncology Services,NHS SUPPLY CHAIN (MAIDSTONE),id:13990034, 478.27
Department of Health,Guys and St Thomas NHS Foundation Trust,11/06/2021,(50552) Qualified Nursing Staff,(id:42259) Oncology Services,CARE PROVIDERS HEALTHCARE,id:14168225    , 679.88
Department of Health,Guys and St Thomas NHS Foundation Trust,18/06/2021,(83400) Office Equipment,(id:42259) Oncology Services,NHS SUPPLY CHAIN (MAIDSTONE),id:14109556   , 159.99
Department of Health,Guys and St Thomas NHS Foundation Trust,18/06/2021,(83400) Office Equipment,(id:42259) Oncology Services,NHS SUPPLY CHAIN (MAIDSTONE),id:14077336   ,  43.32
Department of Health,Guys and St Thomas NHS Foundation Trust,04/06/2021,(89640) Non-Healthcare from NHS Trusts,(id:42280) Surgical Oncology,LONDON NORTH WEST HEALTHCARE NHS TRUST,id:8089632,4134.00
Department of Health,Guys and St Thomas NHS Foundation Trust,18/06/2021,(83400) Office Equipment,(id:243406) Surgical Oncology,NHS SUPPLY CHAIN (MAIDSTONE),id:14136574  ,  34.37
Department of Health,Guys and St Thomas NHS Foundation Trust,18/06/2021,(81700) Lab Equipment Purchase,(id:243406) Surgical Oncology,NHS SUPPLY CHAIN (MAIDSTONE),id:14077336 ,   5.93
Department of Health,Guys and St Thomas NHS Foundation Trust,18/06/2021,(81700) Lab Equipment Purchase,(id:243406) Surgical Oncology,NHS SUPPLY CHAIN (MAIDSTONE),id:14109556 ,   6.60
Department of Health,Guys and St Thomas NHS Foundation Trust,18/06/2021,(81100) Dressings,(id:243406) Surgical Oncology,NHS SUPPLY CHAIN (MAIDSTONE),id:14093474    ,  71.22
Department of Health,Guys and St Thomas NHS Foundation Trust,18/06/2021,(81100) Dressings,(id:243406) Surgical Oncology,NHS SUPPLY CHAIN (MAIDSTONE),id:14136574    , 100.08
Department of Health,Guys and St Thomas NHS Foundation Trust,18/06/2021,(82000) Provisions & Kitchens,(id:243406) Surgical Oncology,NHS SUPPLY CHAIN (MAIDSTONE),id:14093474  , 128.61
Department of Health,Guys and St Thomas NHS Foundation Trust,18/06/2021,(82800) Bedding & Linen,(id:42473) Surgical Oncology,NHS SUPPLY CHAIN (MAIDSTONE),id:14093474    ,  55.20
Department of Health,Guys and St Thomas NHS Foundation Trust,25/06/2021,(81100) Dressings,(id:42473) Surgical Oncology,STRYKER UK LTD,id:14193012    , 728.40
Department of Health,Guys and St Thomas NHS Foundation Trust,18/06/2021,(81100) Dressings,(id:42473) Surgical Oncology,NHS SUPPLY CHAIN (MAIDSTONE),id:14093474,   7.39
Department of Health,Guys and St Thomas NHS Foundation Trust,04/06/2021,(81200) Medical Surgical Supplies & Equipment,(id:42473) Surgical Oncology,JOHNSON & JOHNSON MEDICAL LTD,id:14104600 ,6714.29
Department of Health,Guys and St Thomas NHS Foundation Trust,11/06/2021,(81200) Medical Surgical Supplies & Equipment,(id:42473) Surgical Oncology,SCHULTZ MEDICAL (UK) LTD,id:14159969 , 536.40
Department of Health,Guys and St Thomas NHS Foundation Trust,11/06/2021,(81200) Medical Surgical Supplies & Equipment,(id:42473) Surgical Oncology,JOHNSON & JOHNSON MEDICAL LTD,id:14135653 , 295.40
Department of Health,Guys and St Thomas NHS Foundation Trust,25/06/2021,(81200) Medical Surgical Supplies & Equipment,(id:42473) Surgical Oncology,SEVERN HEALTHCARE TECHNOLOGIES LTD,id:14157705 ,1401.60
Department of Health,Guys and St Thomas NHS Foundation Trust,18/06/2021,(81200) Medical Surgical Supplies & Equipment,(id:42473) Surgical Oncology,DELTA SURGICAL LTD,id:14169396  ,2080.80
Department of Health,Guys and St Thomas NHS Foundation Trust,18/06/2021,(81200) Medical Surgical Supplies & Equipment,(id:42473) Surgical Oncology,JOHNSON & JOHNSON MEDICAL LTD,id:14146374 , 590.80
Department of Health,Guys and St Thomas NHS Foundation Trust,18/06/2021,(82000) Provisions & Kitchens,(id:42474) Surgical Oncology,NHS SUPPLY CHAIN (MAIDSTONE),id:13990034   ,   7.25
Department of Health,Guys and St Thomas NHS Foundation Trust,04/06/2021,(81200) Medical Surgical Supplies & Equipment,(id:42474) Surgical Oncology,SMITH & NEPHEW ORTHOPAEDICS LTD.,id:14147136   , 558.24
Department of Health,Guys and St Thomas NHS Foundation Trust,25/06/2021,(81200) Medical Surgical Supplies & Equipment,(id:42474) Surgical Oncology,GETINGE LTD,id:14195926    ,1162.80
Department of Health,Guys and St Thomas NHS Foundation Trust,18/06/2021,(81255) Medical Surgical Supplies & Equipment,(id:42474) Surgical Oncology,NHS SUPPLY CHAIN (MAIDSTONE),id:14077336  ,  47.40
Department of Health,Guys and St Thomas NHS Foundation Trust,18/06/2021,(83400) Office Equipment,(id:42474) Surgical Oncology,NHS SUPPLY CHAIN (MAIDSTONE),id:14136574   ,  44.17
Department of Health,Guys and St Thomas NHS Foundation Trust,25/06/2021,(84500) Establishment,(id:42475) Surgical Oncology,CDP  PRINT MANAGEMENT,id:14178052   ,  10.80
Department of Health,Guys and St Thomas NHS Foundation Trust,18/06/2021,(82800) Bedding & Linen,(id:42475) Surgical Oncology,NHS SUPPLY CHAIN (MAIDSTONE),id:14093474    ,  23.41
Department of Health,Guys and St Thomas NHS Foundation Trust,04/06/2021,(81215) Medical Surgical Supplies & Equipment,(id:42475) Surgical Oncology,COCHLEAR EUROPE LTD,id:14142664 ,7168.80
Department of Health,Guys and St Thomas NHS Foundation Trust,18/06/2021,(81215) Medical Surgical Supplies & Equipment,(id:42475) Surgical Oncology,NHS SUPPLY CHAIN (MAIDSTONE),id:14077336  ,5886.44
Department of Health,Guys and St Thomas NHS Foundation Trust,18/06/2021,(81215) Medical Surgical Supplies & Equipment,(id:42475) Surgical Oncology,NHS SUPPLY CHAIN (MAIDSTONE),id:13990034  , 846.51
Department of Health,Guys and St Thomas NHS Foundation Trust,24/06/2021,(81215) Medical Surgical Supplies & Equipment,(id:42475) Surgical Oncology,GSTT PROCUREMENT CARD,id:14203235    ,  49.75
Department of Health,Guys and St Thomas NHS Foundation Trust,09/06/2021,(81215) Medical Surgical Supplies & Equipment,(id:42475) Surgical Oncology,AURES BV,id:13509994  ,1888.18
Department of Health,Guys and St Thomas NHS Foundation Trust,11/06/2021,(81215) Medical Surgical Supplies & Equipment,(id:42475) Surgical Oncology,OTICON LTD,id:14158894, 720.00
Department of Health,Guys and St Thomas NHS Foundation Trust,11/06/2021,(81215) Medical Surgical Supplies & Equipment,(id:42475) Surgical Oncology,COCHLEAR EUROPE LTD,id:14158056 ,    11100.00
Department of Health,Guys and St Thomas NHS Foundation Trust,11/06/2021,(81225) Medical Surgical Supplies & Equipment,(id:42475) Surgical Oncology,COCHLEAR EUROPE LTD,id:14158065 , 946.80
Department of Health,Guys and St Thomas NHS Foundation Trust,18/06/2021,(81225) Medical Surgical Supplies & Equipment,(id:42475) Surgical Oncology,NHS SUPPLY CHAIN (MAIDSTONE),id:14136574  ,    17299.44
Department of Health,Guys and St Thomas NHS Foundation Trust,25/06/2021,(81225) Medical Surgical Supplies & Equipment,(id:42475) Surgical Oncology,COCHLEAR EUROPE LTD,id:14196374 , 692.40
Department of Health,Guys and St Thomas NHS Foundation Trust,18/06/2021,(82800) Bedding & Linen,(id:42286) Surgical Oncology,NHS SUPPLY CHAIN (MAIDSTONE),id:14077336    ,  55.20
Department of Health,Guys and St Thomas NHS Foundation Trust,18/06/2021,(81100) Dressings,(id:42286) Surgical Oncology,NHS SUPPLY CHAIN (MAIDSTONE),id:14077336, 114.84
Department of Health,Guys and St Thomas NHS Foundation Trust,25/06/2021,(81200) Medical Surgical Supplies & Equipment,(id:42286) Surgical Oncology,MEDTRONIC LTD,id:14163834  ,1229.26
Department of Health,Guys and St Thomas NHS Foundation Trust,18/06/2021,(81200) Medical Surgical Supplies & Equipment,(id:42286) Surgical Oncology,NHS SUPPLY CHAIN (MAIDSTONE),id:13990034  ,4459.36
Department of Health,Guys and St Thomas NHS Foundation Trust,18/06/2021,(81200) Medical Surgical Supplies & Equipment,(id:42286) Surgical Oncology,MEDELA UK LTD,id:14178002  ,5565.60
Department of Health,Guys and St Thomas NHS Foundation Trust,18/06/2021,(82000) Provisions & Kitchens,(id:42284) Surgical Oncology,NHS SUPPLY CHAIN (MAIDSTONE),id:14093474   ,  28.56
Department of Health,Guys and St Thomas NHS Foundation Trust,18/06/2021,(82800) Bedding & Linen,(id:42284) Surgical Oncology,NHS SUPPLY CHAIN (MAIDSTONE),id:13990034    ,  81.29
Department of Health,Guys and St Thomas NHS Foundation Trust,25/06/2021,(84500) Establishment,(id:42284) Surgical Oncology,CDP  PRINT MANAGEMENT,id:14178056   ,  12.40
Department of Health,Guys and St Thomas NHS Foundation Trust,18/06/2021,(83400) Office Equipment,(id:42284) Surgical Oncology,NHS SUPPLY CHAIN (MAIDSTONE),id:14093474   ,  14.60
Department of Health,Guys and St Thomas NHS Foundation Trust,25/06/2021,(84500) Establishment,(id:42470) Surgical Oncology,CDP  PRINT MANAGEMENT,id:14178056   ,  19.60
Department of Health,Guys and St Thomas NHS Foundation Trust,18/06/2021,(81700) Lab Equipment Purchase,(id:42470) Surgical Oncology,NHS SUPPLY CHAIN (MAIDSTONE),id:13990034  ,  84.44
Department of Health,Guys and St Thomas NHS Foundation Trust,25/06/2021,(81200) Medical Surgical Supplies & Equipment,(id:42471) Surgical Oncology,SEVERN HEALTHCARE TECHNOLOGIES LTD,id:14157703 ,1041.60
Department of Health,Guys and St Thomas NHS Foundation Trust,18/06/2021,(82800) Bedding & Linen,(id:42508) Surgical Oncology,NHS SUPPLY CHAIN (MAIDSTONE),id:14077336    ,  43.71
Department of Health,Guys and St Thomas NHS Foundation Trust,18/06/2021,(82000) Provisions & Kitchens,(id:41858) Acute & General Medicine,NHS SUPPLY CHAIN (MAIDSTONE),id:14136574 , 216.89
Department of Health,Guys and St Thomas NHS Foundation Trust,18/06/2021,(83400) Office Equipment,(id:41858) Acute & General Medicine,NHS SUPPLY CHAIN (MAIDSTONE),id:14136574 ,  98.34
Department of Health,Guys and St Thomas NHS Foundation Trust,18/06/2021,(83400) Office Equipment,(id:41858) Acute & General Medicine,NHS SUPPLY CHAIN (MAIDSTONE),id:13990034 ,  70.73
Department of Health,Guys and St Thomas NHS Foundation Trust,18/06/2021,(81100) Dressings,(id:41858) Acute & General Medicine,NHS SUPPLY CHAIN (MAIDSTONE),id:14077336   ,6931.88
Department of Health,Guys and St Thomas NHS Foundation Trust,04/06/2021,(50552) Qualified Nursing Staff,(id:41858) Acute & General Medicine,CARE PROVIDERS HEALTHCARE,id:14149184  , 339.94
Department of Health,Guys and St Thomas NHS Foundation Trust,18/06/2021,(50522) Unqualified Nursing Staff,(id:41858) Acute & General Medicine,GLOBE LOCUMS LTD,id:14180588    , 221.76
Department of Health,Guys and St Thomas NHS Foundation Trust,25/06/2021,(50522) Unqualified Nursing Staff,(id:41858) Acute & General Medicine,GLOBE LOCUMS LTD,id:14203591    , 263.10
Department of Health,Guys and St Thomas NHS Foundation Trust,18/06/2021,(81225) Medical Surgical Supplies & Equipment,(id:41858) Acute & General Medicine,NHS SUPPLY CHAIN (MAIDSTONE),id:13990034,   3.00
Department of Health,Guys and St Thomas NHS Foundation Trust,18/06/2021,(81225) Medical Surgical Supplies & Equipment,(id:41858) Acute & General Medicine,NHS SUPPLY CHAIN (MAIDSTONE),id:14093474,   9.70
Department of Health,Guys and St Thomas NHS Foundation Trust,18/06/2021,(82600) Uniforms & Clothing,(id:41859) Acute & General Medicine,NHS SUPPLY CHAIN (MAIDSTONE),id:14109556   ,   4.21
Department of Health,Guys and St Thomas NHS Foundation Trust,18/06/2021,(82600) Uniforms & Clothing,(id:41859) Acute & General Medicine,NHS SUPPLY CHAIN (MAIDSTONE),id:13990034   ,   8.42
Department of Health,Guys and St Thomas NHS Foundation Trust,18/06/2021,(82700) Uniforms & Clothing,(id:41859) Acute & General Medicine,NHS SUPPLY CHAIN (MAIDSTONE),id:14136574   ,  31.68
Department of Health,Guys and St Thomas NHS Foundation Trust,18/06/2021,(82000) Provisions & Kitchens,(id:41859) Acute & General Medicine,NHS SUPPLY CHAIN (MAIDSTONE),id:14093474 , 937.23
Department of Health,Guys and St Thomas NHS Foundation Trust,18/06/2021,(82800) Bedding & Linen,(id:41859) Acute & General Medicine,NHS SUPPLY CHAIN (MAIDSTONE),id:14136574  , 114.77
Department of Health,Guys and St Thomas NHS Foundation Trust,11/06/2021,(50522) Unqualified Nursing Staff,(id:41859) Acute & General Medicine,MEDICSPRO LTD,id:14165481  ,1008.98
Department of Health,Guys and St Thomas NHS Foundation Trust,11/06/2021,(50522) Unqualified Nursing Staff,(id:41859) Acute & General Medicine,CARE PROVIDERS HEALTHCARE,id:14168196, 527.96
Department of Health,Guys and St Thomas NHS Foundation Trust,11/06/2021,(50522) Unqualified Nursing Staff,(id:41859) Acute & General Medicine,CARE PROVIDERS HEALTHCARE,id:14163082,-482.96
Department of Health,Guys and St Thomas NHS Foundation Trust,18/06/2021,(50522) Unqualified Nursing Staff,(id:41859) Acute & General Medicine,CARE PROVIDERS HEALTHCARE,id:14180518, 817.45
Department of Health,Guys and St Thomas NHS Foundation Trust,18/06/2021,(50522) Unqualified Nursing Staff,(id:41859) Acute & General Medicine,CARE PROVIDERS HEALTHCARE,id:14183046, 817.45
Department of Health,Guys and St Thomas NHS Foundation Trust,25/06/2021,(50522) Unqualified Nursing Staff,(id:41859) Acute & General Medicine,GLOBE LOCUMS LTD,id:14203592    , 267.33
Department of Health,Guys and St Thomas NHS Foundation Trust,18/06/2021,(81200) Medical Surgical Supplies & Equipment,(id:41859) Acute & General Medicine,NHS SUPPLY CHAIN (MAIDSTONE),id:13990034, 358.30
Department of Health,Guys and St Thomas NHS Foundation Trust,18/06/2021,(82700) Uniforms & Clothing,(id:41860) Acute & General Medicine,NHS SUPPLY CHAIN (MAIDSTONE),id:13990034   ,  31.68
Department of Health,Guys and St Thomas NHS Foundation Trust,18/06/2021,(83400) Office Equipment,(id:41860) Acute & General Medicine,NHS SUPPLY CHAIN (MAIDSTONE),id:14109556 ,  58.14
Department of Health,Guys and St Thomas NHS Foundation Trust,25/06/2021,(84500) Establishment,(id:41860) Acute & General Medicine,CDP  PRINT MANAGEMENT,id:14178052 ,  24.80
Department of Health,Guys and St Thomas NHS Foundation Trust,25/06/2021,(84500) Establishment,(id:41860) Acute & General Medicine,CDP  PRINT MANAGEMENT,id:14178055 ,   9.30
Department of Health,Guys and St Thomas NHS Foundation Trust,04/06/2021,(50552) Qualified Nursing Staff,(id:41860) Acute & General Medicine,CONTINENTAL NURSE LTD,id:14151215 ,1561.64
Department of Health,Guys and St Thomas NHS Foundation Trust,11/06/2021,(50552) Qualified Nursing Staff,(id:41860) Acute & General Medicine,MSI GROUP LTD,id:14168117    , 676.12
Department of Health,Guys and St Thomas NHS Foundation Trust,18/06/2021,(81255) Medical Surgical Supplies & Equipment,(id:41860) Acute & General Medicine,NHS SUPPLY CHAIN (MAIDSTONE),id:14109556,  12.93
Department of Health,Guys and St Thomas NHS Foundation Trust,18/06/2021,(81200) Medical Surgical Supplies & Equipment,(id:41860) Acute & General Medicine,NHS SUPPLY CHAIN (MAIDSTONE),id:13990034, 592.94
Department of Health,Guys and St Thomas NHS Foundation Trust,18/06/2021,(81200) Medical Surgical Supplies & Equipment,(id:41860) Acute & General Medicine,NHS SUPPLY CHAIN (MAIDSTONE),id:14109556, 391.32
Department of Health,Guys and St Thomas NHS Foundation Trust,18/06/2021,(81225) Medical Surgical Supplies & Equipment,(id:41860) Acute & General Medicine,NHS SUPPLY CHAIN (MAIDSTONE),id:14136574,  12.89
Department of Health,Guys and St Thomas NHS Foundation Trust,18/06/2021,(81700) Lab Equipment Purchase,(id:41860) Acute & General Medicine,NHS SUPPLY CHAIN (MAIDSTONE),id:14093474,   9.21
Department of Health,Guys and St Thomas NHS Foundation Trust,18/06/2021,(81225) Medical Surgical Supplies & Equipment,(id:2182419) Acute & General Medicine,NHS SUPPLY CHAIN (MAIDSTONE),id:14136574   ,  92.11
Department of Health,Guys and St Thomas NHS Foundation Trust,18/06/2021,(82800) Bedding & Linen,(id:2182419) Acute & General Medicine,NHS SUPPLY CHAIN (MAIDSTONE),id:14093474, 227.82
Department of Health,Guys and St Thomas NHS Foundation Trust,04/06/2021,(83610) IT Costs,(id:2182419) Acute & General Medicine,OFFICE DEPOT UK LTD,id:14098615 , 506.88
Department of Health,Guys and St Thomas NHS Foundation Trust,04/06/2021,(83610) IT Costs,(id:2182419) Acute & General Medicine,OFFICE DEPOT UK LTD,id:14098614 , 528.00
Department of Health,Guys and St Thomas NHS Foundation Trust,18/06/2021,(81200) Medical Surgical Supplies & Equipment,(id:2182419) Acute & General Medicine,NHS SUPPLY CHAIN (MAIDSTONE),id:14136574   ,1533.37
Department of Health,Guys and St Thomas NHS Foundation Trust,18/06/2021,(50552) Qualified Nursing Staff,(id:2182419) Acute & General Medicine,MSI GROUP LTD,id:14180699  , 674.05
Department of Health,Guys and St Thomas NHS Foundation Trust,18/06/2021,(50522) Unqualified Nursing Staff,(id:2182419) Acute & General Medicine,GLOBE LOCUMS LTD,id:14180582  , 240.22
Department of Health,Guys and St Thomas NHS Foundation Trust,25/06/2021,(84500) Establishment,(id:2182419) Acute & General Medicine,CDP  PRINT MANAGEMENT,id:14178052    ,  15.50
Department of Health,Guys and St Thomas NHS Foundation Trust,18/06/2021,(82800) Bedding & Linen,(id:41868) Acute & General Medicine,NHS SUPPLY CHAIN (MAIDSTONE),id:14109556  , 131.62
Department of Health,Guys and St Thomas NHS Foundation Trust,18/06/2021,(81100) Dressings,(id:41868) Acute & General Medicine,NHS SUPPLY CHAIN (MAIDSTONE),id:14136574   ,  62.09
Department of Health,Guys and St Thomas NHS Foundation Trust,18/06/2021,(81200) Medical Surgical Supplies & Equipment,(id:41868) Acute & General Medicine,NHS SUPPLY CHAIN (MAIDSTONE),id:14077336, 391.58
Department of Health,Guys and St Thomas NHS Foundation Trust,18/06/2021,(81200) Medical Surgical Supplies & Equipment,(id:41868) Acute & General Medicine,NHS SUPPLY CHAIN (MAIDSTONE),id:14093474, 407.00
Department of Health,Guys and St Thomas NHS Foundation Trust,18/06/2021,(83400) Office Equipment,(id:41868) Acute & General Medicine,NHS SUPPLY CHAIN (MAIDSTONE),id:13990034 ,  55.74
Department of Health,Guys and St Thomas NHS Foundation Trust,18/06/2021,(82600) Uniforms & Clothing,(id:41869) Acute & General Medicine,NHS SUPPLY CHAIN (MAIDSTONE),id:14093474   ,   5.76
Department of Health,Guys and St Thomas NHS Foundation Trust,25/06/2021,(84500) Establishment,(id:41869) Acute & General Medicine,CDP  PRINT MANAGEMENT,id:14178054 ,  71.30
Department of Health,Guys and St Thomas NHS Foundation Trust,25/06/2021,(84500) Establishment,(id:41869) Acute & General Medicine,CDP  PRINT MANAGEMENT,id:14178056 ,  21.70
Department of Health,Guys and St Thomas NHS Foundation Trust,18/06/2021,(82800) Bedding & Linen,(id:41869) Acute & General Medicine,NHS SUPPLY CHAIN (MAIDSTONE),id:14136574  , 106.85
Department of Health,Guys and St Thomas NHS Foundation Trust,18/06/2021,(81100) Dressings,(id:41869) Acute & General Medicine,NHS SUPPLY CHAIN (MAIDSTONE),id:14136574   , 615.74
Department of Health,Guys and St Thomas NHS Foundation Trust,18/06/2021,(81225) Medical Surgical Supplies & Equipment,(id:41869) Acute & General Medicine,NHS SUPPLY CHAIN (MAIDSTONE),id:14077336, 420.04
Department of Health,Guys and St Thomas NHS Foundation Trust,04/06/2021,(50552) Qualified Nursing Staff,(id:41872) Acute & General Medicine,MSI GROUP LTD,id:14142760    , 598.34
Department of Health,Guys and St Thomas NHS Foundation Trust,04/06/2021,(50552) Qualified Nursing Staff,(id:41872) Acute & General Medicine,CONTINENTAL NURSE LTD,id:14151289 ,2432.71
Department of Health,Guys and St Thomas NHS Foundation Trust,04/06/2021,(50552) Qualified Nursing Staff,(id:41872) Acute & General Medicine,MEDICSPRO LTD,id:14149542    ,1746.31
Department of Health,Guys and St Thomas NHS Foundation Trust,11/06/2021,(50552) Qualified Nursing Staff,(id:41872) Acute & General Medicine,MSI GROUP LTD,id:14165346    , 339.74
Department of Health,Guys and St Thomas NHS Foundation Trust,18/06/2021,(83400) Office Equipment,(id:41882) Acute & General Medicine,NHS SUPPLY CHAIN (MAIDSTONE),id:14109556 ,  21.69
Department of Health,Guys and St Thomas NHS Foundation Trust,18/06/2021,(82000) Provisions & Kitchens,(id:41878) Acute & General Medicine,NHS SUPPLY CHAIN (MAIDSTONE),id:14093474 ,  41.16
Department of Health,Guys and St Thomas NHS Foundation Trust,18/06/2021,(82800) Bedding & Linen,(id:41878) Acute & General Medicine,NHS SUPPLY CHAIN (MAIDSTONE),id:14136574  , 250.61
Department of Health,Guys and St Thomas NHS Foundation Trust,04/06/2021,(50522) Unqualified Nursing Staff,(id:41878) Acute & General Medicine,MSI GROUP LTD,id:14142752  , 203.95
Department of Health,Guys and St Thomas NHS Foundation Trust,18/06/2021,(81700) Lab Equipment Purchase,(id:41878) Acute & General Medicine,NHS SUPPLY CHAIN (MAIDSTONE),id:14109556,  16.20
Department of Health,Guys and St Thomas NHS Foundation Trust,18/06/2021,(81255) Medical Surgical Supplies & Equipment,(id:41878) Acute & General Medicine,NHS SUPPLY CHAIN (MAIDSTONE),id:14093474,  31.42
Department of Health,Guys and St Thomas NHS Foundation Trust,18/06/2021,(81255) Medical Surgical Supplies & Equipment,(id:41878) Acute & General Medicine,NHS SUPPLY CHAIN (MAIDSTONE),id:14077336,   1.56
Department of Health,Guys and St Thomas NHS Foundation Trust,18/06/2021,(82000) Provisions & Kitchens,(id:41879) Acute & General Medicine,NHS SUPPLY CHAIN (MAIDSTONE),id:14077336 , 265.80
Department of Health,Guys and St Thomas NHS Foundation Trust,18/06/2021,(83400) Office Equipment,(id:41879) Acute & General Medicine,NHS SUPPLY CHAIN (MAIDSTONE),id:14077336 ,  56.93
Department of Health,Guys and St Thomas NHS Foundation Trust,18/06/2021,(82800) Bedding & Linen,(id:41879) Acute & General Medicine,NHS SUPPLY CHAIN (MAIDSTONE),id:13990034  , 342.80
Department of Health,Guys and St Thomas NHS Foundation Trust,11/06/2021,(50522) Unqualified Nursing Staff,(id:41879) Acute & General Medicine,MSI GROUP LTD,id:14168153  , 258.37
Department of Health,Guys and St Thomas NHS Foundation Trust,04/06/2021,(50522) Unqualified Nursing Staff,(id:41879) Acute & General Medicine,CARE PROVIDERS HEALTHCARE,id:14149539, 621.04
Department of Health,Guys and St Thomas NHS Foundation Trust,18/06/2021,(50522) Unqualified Nursing Staff,(id:41879) Acute & General Medicine,MSI GROUP LTD,id:14180347  , 530.49
Department of Health,Guys and St Thomas NHS Foundation Trust,25/06/2021,(50522) Unqualified Nursing Staff,(id:41879) Acute & General Medicine,GLOBE LOCUMS LTD,id:14203602    , 252.21
Department of Health,Guys and St Thomas NHS Foundation Trust,18/06/2021,(81225) Medical Surgical Supplies & Equipment,(id:41879) Acute & General Medicine,NHS SUPPLY CHAIN (MAIDSTONE),id:14077336,   3.12
Department of Health,Guys and St Thomas NHS Foundation Trust,18/06/2021,(81225) Medical Surgical Supplies & Equipment,(id:41879) Acute & General Medicine,NHS SUPPLY CHAIN (MAIDSTONE),id:14109556,   9.70
Department of Health,Guys and St Thomas NHS Foundation Trust,04/06/2021,(50552) Qualified Nursing Staff,(id:41879) Acute & General Medicine,CARE PROVIDERS HEALTHCARE,id:14149326  , 339.94
Department of Health,Guys and St Thomas NHS Foundation Trust,18/06/2021,(83400) Office Equipment,(id:41880) Acute & General Medicine,NHS SUPPLY CHAIN (MAIDSTONE),id:14093474 ,  79.69
Department of Health,Guys and St Thomas NHS Foundation Trust,18/06/2021,(82800) Bedding & Linen,(id:41880) Acute & General Medicine,NHS SUPPLY CHAIN (MAIDSTONE),id:14136574  , 184.46
Department of Health,Guys and St Thomas NHS Foundation Trust,18/06/2021,(81700) Lab Equipment Purchase,(id:41880) Acute & General Medicine,NHS SUPPLY CHAIN (MAIDSTONE),id:14109556,   5.93
Department of Health,Guys and St Thomas NHS Foundation Trust,18/06/2021,(50522) Unqualified Nursing Staff,(id:41880) Acute & General Medicine,CARE PROVIDERS HEALTHCARE,id:14180672, 240.96
Department of Health,Guys and St Thomas NHS Foundation Trust,18/06/2021,(50522) Unqualified Nursing Staff,(id:41880) Acute & General Medicine,CARE PROVIDERS HEALTHCARE,id:14180317, 242.54
Department of Health,Guys and St Thomas NHS Foundation Trust,18/06/2021,(81255) Medical Surgical Supplies & Equipment,(id:41880) Acute & General Medicine,NHS SUPPLY CHAIN (MAIDSTONE),id:14109556,    .62
Department of Health,Guys and St Thomas NHS Foundation Trust,18/06/2021,(82000) Provisions & Kitchens,(id:41881) Acute & General Medicine,NHS SUPPLY CHAIN (MAIDSTONE),id:14136574 ,  31.20
Department of Health,Guys and St Thomas NHS Foundation Trust,18/06/2021,(82000) Provisions & Kitchens,(id:41881) Acute & General Medicine,NHS SUPPLY CHAIN (MAIDSTONE),id:14093474 ,  62.40
Department of Health,Guys and St Thomas NHS Foundation Trust,18/06/2021,(81100) Dressings,(id:41881) Acute & General Medicine,NHS SUPPLY CHAIN (MAIDSTONE),id:14136574   ,  75.58
Department of Health,Guys and St Thomas NHS Foundation Trust,11/06/2021,(50522) Unqualified Nursing Staff,(id:41881) Acute & General Medicine,CAPITAL STAFFING SERVICES LTD,id:14165381 , 543.26
Department of Health,Guys and St Thomas NHS Foundation Trust,18/06/2021,(81700) Lab Equipment Purchase,(id:41881) Acute & General Medicine,NHS SUPPLY CHAIN (MAIDSTONE),id:13990034,  37.25
Department of Health,Guys and St Thomas NHS Foundation Trust,18/06/2021,(81255) Medical Surgical Supplies & Equipment,(id:41881) Acute & General Medicine,NHS SUPPLY CHAIN (MAIDSTONE),id:14136574,   1.56
Department of Health,Guys and St Thomas NHS Foundation Trust,25/06/2021,(89570) Other – Other Operating Expenditure,(id:1435419) Acute & General Medicine,GSTT PROCUREMENT CARD,id:14203742 , 201.62
Department of Health,Guys and St Thomas NHS Foundation Trust,18/06/2021,(84500) Establishment,(id:1435419) Acute & General Medicine,CLARITY TRAVEL MANAGEMENT,id:14178078,1448.26
Department of Health,Guys and St Thomas NHS Foundation Trust,04/06/2021,(83500) Furniture & Fittings,(id:41970) Inpatient Services,SIEMENS FINANCIAL SERVICES LIMITED,id:14140234  ,    17342.40
Department of Health,Guys and St Thomas NHS Foundation Trust,11/06/2021,(83500) Furniture & Fittings,(id:41970) Inpatient Services,ARJO UK LIMITED,id:14162977 ,3456.00
Department of Health,Guys and St Thomas NHS Foundation Trust,18/06/2021,(83500) Furniture & Fittings,(id:41970) Inpatient Services,ARJO UK LIMITED,id:14152376 ,    34165.91
Department of Health,Guys and St Thomas NHS Foundation Trust,11/06/2021,(81200) Medical Surgical Supplies & Equipment,(id:42025) Dental Services,HENRY SCHEIN,id:14151508, 607.28
Department of Health,Guys and St Thomas NHS Foundation Trust,25/06/2021,(81200) Medical Surgical Supplies & Equipment,(id:42025) Dental Services,HENRY SCHEIN,id:13692915, 776.39
Department of Health,Guys and St Thomas NHS Foundation Trust,18/06/2021,(81100) Dressings,(id:42037) Dental Services,NHS SUPPLY CHAIN (MAIDSTONE),id:14093474  ,  53.40
Department of Health,Guys and St Thomas NHS Foundation Trust,25/06/2021,(84500) Establishment,(id:42037) Dental Services,CDP  PRINT MANAGEMENT,id:14178054,   6.20
Department of Health,Guys and St Thomas NHS Foundation Trust,18/06/2021,(82800) Bedding & Linen,(id:42005) Dental Services,NHS SUPPLY CHAIN (MAIDSTONE),id:14109556 ,  60.30
Department of Health,Guys and St Thomas NHS Foundation Trust,18/06/2021,(82000) Provisions & Kitchens,(id:42007) Dental Services,NHS SUPPLY CHAIN (MAIDSTONE),id:14136574,   5.90
Department of Health,Guys and St Thomas NHS Foundation Trust,25/06/2021,(84500) Establishment,(id:42007) Dental Services,CDP  PRINT MANAGEMENT,id:14178052,   6.20
Department of Health,Guys and St Thomas NHS Foundation Trust,18/06/2021,(81200) Medical Surgical Supplies & Equipment,(id:42007) Dental Services,NHS SUPPLY CHAIN (MAIDSTONE),id:14109556    ,3317.95
Department of Health,Guys and St Thomas NHS Foundation Trust,11/06/2021,(81200) Medical Surgical Supplies & Equipment,(id:42007) Dental Services,W&H UK LTD,id:14163214  , 908.40
Department of Health,Guys and St Thomas NHS Foundation Trust,11/06/2021,(81200) Medical Surgical Supplies & Equipment,(id:42007) Dental Services,HENRY SCHEIN,id:14160761, 569.54
Department of Health,Guys and St Thomas NHS Foundation Trust,25/06/2021,(81200) Medical Surgical Supplies & Equipment,(id:42007) Dental Services,HENRY SCHEIN,id:14183877, 584.40
Department of Health,Guys and St Thomas NHS Foundation Trust,25/06/2021,(50470) Medical Training Grades,(id:42033) Dental Services,EAST KENT HOSPITALS UNIVERSITY NHS FOUNDATION TRUST,id:14163654,3085.07
Department of Health,Guys and St Thomas NHS Foundation Trust,25/06/2021,(81200) Medical Surgical Supplies & Equipment,(id:42028) Dental Services,HENRY SCHEIN,id:14188954, 715.48
Department of Health,Guys and St Thomas NHS Foundation Trust,18/06/2021,(81700) Lab Equipment Purchase,(id:42028) Dental Services,NHS SUPPLY CHAIN (MAIDSTONE),id:14136574    ,   6.52
Department of Health,Guys and St Thomas NHS Foundation Trust,25/06/2021,(84500) Establishment,(id:42017) Dental Services,CDP  PRINT MANAGEMENT,id:14178055,   3.10
Department of Health,Guys and St Thomas NHS Foundation Trust,04/06/2021,(81200) Medical Surgical Supplies & Equipment,(id:42016) Dental Services,DENTSPLY IH LTD,id:14139637  , 666.81
Department of Health,Guys and St Thomas NHS Foundation Trust,04/06/2021,(81200) Medical Surgical Supplies & Equipment,(id:42016) Dental Services,DENTSPLY LTD,id:13849055, 827.53
Department of Health,Guys and St Thomas NHS Foundation Trust,04/06/2021,(81200) Medical Surgical Supplies & Equipment,(id:42016) Dental Services,DENTSPLY IH LTD,id:14139707  ,1110.85
Department of Health,Guys and St Thomas NHS Foundation Trust,11/06/2021,(81200) Medical Surgical Supplies & Equipment,(id:42016) Dental Services,DENTSPLY IH LTD,id:14163090  , 588.40
Department of Health,Guys and St Thomas NHS Foundation Trust,11/06/2021,(81200) Medical Surgical Supplies & Equipment,(id:42016) Dental Services,DENTSPLY IH LTD,id:14163021  , 797.81
Department of Health,Guys and St Thomas NHS Foundation Trust,18/06/2021,(81200) Medical Surgical Supplies & Equipment,(id:42016) Dental Services,SKILLBOND  DIRECT LTD,id:14181034 , 668.21
Department of Health,Guys and St Thomas NHS Foundation Trust,25/06/2021,(81200) Medical Surgical Supplies & Equipment,(id:42016) Dental Services,DENTSPLY IH LTD,id:14163043  , 551.92
Department of Health,Guys and St Thomas NHS Foundation Trust,25/06/2021,(81200) Medical Surgical Supplies & Equipment,(id:42016) Dental Services,DENTSPLY IH LTD,id:14195734  ,1677.25
Department of Health,Guys and St Thomas NHS Foundation Trust,25/06/2021,(81200) Medical Surgical Supplies & Equipment,(id:2884419) Dental Services,TRI-TECH ENGINEERING T/A TRI-TECH 3D,id:14193079    , 847.27
Department of Health,Guys and St Thomas NHS Foundation Trust,25/06/2021,(84500) Establishment,(id:41996) Dental Services,CDP  PRINT MANAGEMENT,id:14178055,  10.30
Department of Health,Guys and St Thomas NHS Foundation Trust,25/06/2021,(83610) IT Costs,(id:2959419) Dental Services,INCOM TELECOMMUNICATIONS,id:14199883,1680.00
Department of Health,Guys and St Thomas NHS Foundation Trust,11/06/2021,(50542) Unqualified Nursing Staff,(id:1885419) Dental Services,GENEVA HEALTH INTERNATIONAL LIMITED,id:14165564  , 589.97
Department of Health,Guys and St Thomas NHS Foundation Trust,11/06/2021,(81200) Medical Surgical Supplies & Equipment,(id:1634429) Dental Services,HENRY SCHEIN,id:14152240   , 987.06
Department of Health,Guys and St Thomas NHS Foundation Trust,18/06/2021,(81200) Medical Surgical Supplies & Equipment,(id:1634429) Dental Services,NHS SUPPLY CHAIN (MAIDSTONE),id:14077336  , 563.76
Department of Health,Guys and St Thomas NHS Foundation Trust,25/06/2021,(81200) Medical Surgical Supplies & Equipment,(id:1634429) Dental Services,HENRY SCHEIN,id:14188874   , 874.03
Department of Health,Guys and St Thomas NHS Foundation Trust,25/06/2021,(81200) Medical Surgical Supplies & Equipment,(id:1634429) Dental Services,DENTSPLY IH LTD,id:14183498,1499.52
Department of Health,Guys and St Thomas NHS Foundation Trust,18/06/2021,(81100) Dressings,(id:1634429) Dental Services,NHS SUPPLY CHAIN (MAIDSTONE),id:14077336,   2.64
Department of Health,Guys and St Thomas NHS Foundation Trust,18/06/2021,(81100) Dressings,(id:1634429) Dental Services,NHS SUPPLY CHAIN (MAIDSTONE),id:14136574,  30.94
Department of Health,Guys and St Thomas NHS Foundation Trust,18/06/2021,(82800) Bedding & Linen,(id:1634432) Dental Services,NHS SUPPLY CHAIN (MAIDSTONE),id:14077336    , 117.06
Department of Health,Guys and St Thomas NHS Foundation Trust,11/06/2021,(81200) Medical Surgical Supplies & Equipment,(id:1634432) Dental Services,HENRY SCHEIN,id:14151498   , 863.26
Department of Health,Guys and St Thomas NHS Foundation Trust,25/06/2021,(81200) Medical Surgical Supplies & Equipment,(id:1634432) Dental Services,HENRY SCHEIN,id:14193323   ,1611.36
Department of Health,Guys and St Thomas NHS Foundation Trust,04/06/2021,(81200) Medical Surgical Supplies & Equipment,(id:1634433) Dental Services,HENRY SCHEIN,id:14140774   , 656.40
Department of Health,Guys and St Thomas NHS Foundation Trust,25/06/2021,(81200) Medical Surgical Supplies & Equipment,(id:1634433) Dental Services,HENRY SCHEIN,id:14119255   , 584.40
Department of Health,Guys and St Thomas NHS Foundation Trust,18/06/2021,(82000) Provisions & Kitchens,(id:1634433) Dental Services,NHS SUPPLY CHAIN (MAIDSTONE),id:14109556   ,   3.24
Department of Health,Guys and St Thomas NHS Foundation Trust,18/06/2021,(81200) Medical Surgical Supplies & Equipment,(id:1650421) Dental Services,DB ORTHODONTICS LTD,id:14172210 , 679.38
Department of Health,Guys and St Thomas NHS Foundation Trust,25/06/2021,(89440) Research and Development,(id:2862419) Specialist Ambulatory Services,GSTT PROCUREMENT CARD,id:14203742  ,   8.95
Department of Health,Guys and St Thomas NHS Foundation Trust,18/06/2021,(81100) Dressings,(id:42193) Specialist Ambulatory Services,NHS SUPPLY CHAIN (MAIDSTONE),id:14109556  ,  30.75
Department of Health,Guys and St Thomas NHS Foundation Trust,18/06/2021,(81100) Dressings,(id:255405) Specialist Ambulatory Services,NHS SUPPLY CHAIN (MAIDSTONE),id:14136574 , 153.96
Department of Health,Guys and St Thomas NHS Foundation Trust,18/06/2021,(83500) Furniture & Fittings,(id:42094) Specialist Ambulatory Services,NHS SUPPLY CHAIN (MAIDSTONE),id:14093474 , 106.44
Department of Health,Guys and St Thomas NHS Foundation Trust,18/06/2021,(81100) Dressings,(id:42094) Specialist Ambulatory Services,NHS SUPPLY CHAIN (MAIDSTONE),id:14077336  ,  66.72
Department of Health,Guys and St Thomas NHS Foundation Trust,18/06/2021,(81200) Medical Surgical Supplies & Equipment,(id:42094) Specialist Ambulatory Services,NHS SUPPLY CHAIN (MAIDSTONE),id:14077336    ,  34.20
Department of Health,Guys and St Thomas NHS Foundation Trust,18/06/2021,(81200) Medical Surgical Supplies & Equipment,(id:3607419) Specialist Ambulatory Services,NHS SUPPLY CHAIN (MAIDSTONE),id:14136574  , 122.40
Department of Health,Guys and St Thomas NHS Foundation Trust,18/06/2021,(81200) Medical Surgical Supplies & Equipment,(id:3608419) Specialist Ambulatory Services,NHS SUPPLY CHAIN (MAIDSTONE),id:14077336  , 138.00
Department of Health,Guys and St Thomas NHS Foundation Trust,25/06/2021,(50200) Consultants,(id:42065) Specialist Ambulatory Services,ST GEORGE'S UNIVERSITY HOSPITALS NHS FOUNDATION TRUST,id:13908894,1447.58
Department of Health,Guys and St Thomas NHS Foundation Trust,18/06/2021,(84656) Establishment,(id:42065) Specialist Ambulatory Services,DICT8 LIMITED,id:14182850   ,4698.12
Department of Health,Guys and St Thomas NHS Foundation Trust,25/06/2021,(84656) Establishment,(id:42065) Specialist Ambulatory Services,DICT8 LIMITED,id:14196154   ,4574.76
Department of Health,Guys and St Thomas NHS Foundation Trust,18/06/2021,(82800) Bedding & Linen,(id:42079) Specialist Ambulatory Services,NHS SUPPLY CHAIN (MAIDSTONE),id:14109556 ,  69.77
Department of Health,Guys and St Thomas NHS Foundation Trust,18/06/2021,(82800) Bedding & Linen,(id:42079) Specialist Ambulatory Services,NHS SUPPLY CHAIN (MAIDSTONE),id:14077336 ,  23.41
Department of Health,Guys and St Thomas NHS Foundation Trust,18/06/2021,(81100) Dressings,(id:42079) Specialist Ambulatory Services,NHS SUPPLY CHAIN (MAIDSTONE),id:14109556  , 601.99
Department of Health,Guys and St Thomas NHS Foundation Trust,04/06/2021,(80010) Drug Costs,(id:42079) Specialist Ambulatory Services,THERAKOS (UK) LIMITED,id:14141934   ,    22824.00
Department of Health,Guys and St Thomas NHS Foundation Trust,18/06/2021,(81700) Lab Equipment Purchase,(id:42079) Specialist Ambulatory Services,NHS SUPPLY CHAIN (MAIDSTONE),id:13990034    ,   8.32
Department of Health,Guys and St Thomas NHS Foundation Trust,18/06/2021,(82800) Bedding & Linen,(id:42097) Specialist Ambulatory Services,NHS SUPPLY CHAIN (MAIDSTONE),id:14136574 ,  40.20
Department of Health,Guys and St Thomas NHS Foundation Trust,18/06/2021,(81000) Surgical Appliances,(id:42066) Specialist Ambulatory Services,MEDI UK LTD,id:14172214    ,  62.60
Department of Health,Guys and St Thomas NHS Foundation Trust,18/06/2021,(81700) Lab Equipment Purchase,(id:42066) Specialist Ambulatory Services,NHS SUPPLY CHAIN (MAIDSTONE),id:14136574    ,  32.76
Department of Health,Guys and St Thomas NHS Foundation Trust,18/06/2021,(81100) Dressings,(id:391417) Specialist Ambulatory Services,NHS SUPPLY CHAIN (MAIDSTONE),id:14109556 ,   9.90
Department of Health,Guys and St Thomas NHS Foundation Trust,18/06/2021,(82800) Bedding & Linen,(id:42064) Specialist Ambulatory Services,NHS SUPPLY CHAIN (MAIDSTONE),id:13990034 , 234.00
Department of Health,Guys and St Thomas NHS Foundation Trust,18/06/2021,(83400) Office Equipment,(id:42057) Specialist Ambulatory Services,NHS SUPPLY CHAIN (MAIDSTONE),id:13990034,  19.39
Department of Health,Guys and St Thomas NHS Foundation Trust,25/06/2021,(84500) Establishment,(id:42050) Specialist Ambulatory Services,CDP  PRINT MANAGEMENT,id:14178055,   9.80
Department of Health,Guys and St Thomas NHS Foundation Trust,18/06/2021,(83400) Office Equipment,(id:42050) Specialist Ambulatory Services,NHS SUPPLY CHAIN (MAIDSTONE),id:14093474, 213.66
Department of Health,Guys and St Thomas NHS Foundation Trust,18/06/2021,(89270) Establishment,(id:42050) Specialist Ambulatory Services,MONTE FIELDS,id:14174604    ,1235.00
Department of Health,Guys and St Thomas NHS Foundation Trust,25/06/2021,(89270) Establishment,(id:42050) Specialist Ambulatory Services,MONTE FIELDS,id:14195933    ,1040.00
Department of Health,Guys and St Thomas NHS Foundation Trust,18/06/2021,(81700) Lab Equipment Purchase,(id:42050) Specialist Ambulatory Services,NHS SUPPLY CHAIN (MAIDSTONE),id:14136574    , 174.45
Department of Health,Guys and St Thomas NHS Foundation Trust,18/06/2021,(81700) Lab Equipment Purchase,(id:42050) Specialist Ambulatory Services,NHS SUPPLY CHAIN (MAIDSTONE),id:14109556    ,  25.42
Department of Health,Guys and St Thomas NHS Foundation Trust,18/06/2021,(81700) Lab Equipment Purchase,(id:42050) Specialist Ambulatory Services,NHS SUPPLY CHAIN (MAIDSTONE),id:13990034    , 134.67
Department of Health,Guys and St Thomas NHS Foundation Trust,25/06/2021,(84500) Establishment,(id:42159) Pharmacy,CDP  PRINT MANAGEMENT,id:14178055  ,  21.70
Department of Health,Guys and St Thomas NHS Foundation Trust,04/06/2021,(81200) Medical Surgical Supplies & Equipment,(id:42159) Pharmacy,ELIS UK LIMITED,id:14147335    ,2566.92
Department of Health,Guys and St Thomas NHS Foundation Trust,11/06/2021,(81200) Medical Surgical Supplies & Equipment,(id:42159) Pharmacy,KITE PACKAGING LIMITED,id:14148495  ,1747.20
Department of Health,Guys and St Thomas NHS Foundation Trust,04/06/2021,(84400) Transport,(id:42159) Pharmacy,POLAR SPEED DISTRIBUTION LTD,id:14148637    , 914.61
Department of Health,Guys and St Thomas NHS Foundation Trust,04/06/2021,(84400) Transport,(id:42159) Pharmacy,POLAR SPEED DISTRIBUTION LTD,id:14119574    , 974.43
Department of Health,Guys and St Thomas NHS Foundation Trust,11/06/2021,(89280) Other - Consultancy costs,(id:42159) Pharmacy,HYPER RECRUITMENT SOLUTIONS LTD,id:14087757,2574.00
Department of Health,Guys and St Thomas NHS Foundation Trust,11/06/2021,(55062) Admin & Clerical,(id:42159) Pharmacy,HYPER RECRUITMENT SOLUTIONS LTD,id:14168109    , 860.86
Department of Health,Guys and St Thomas NHS Foundation Trust,11/06/2021,(55122) Admin & Clerical,(id:42159) Pharmacy,HYPER RECRUITMENT SOLUTIONS LTD,id:14168199    ,6816.00
Department of Health,Guys and St Thomas NHS Foundation Trust,11/06/2021,(84600) Establishment,(id:42159) Pharmacy,BRITISH ASSOC OF DERMATOLOGISTS,id:13406454  ,    -2835.00
Department of Health,Guys and St Thomas NHS Foundation Trust,11/06/2021,(81275) Medical Surgical Supplies & Equipment,(id:42159) Pharmacy,SCI-TEK INSTRUMENTS LTD,id:14160801 ,1288.80
Department of Health,Guys and St Thomas NHS Foundation Trust,18/06/2021,(81700) Lab Equipment Purchase,(id:42159) Pharmacy,NHS SUPPLY CHAIN (MAIDSTONE),id:14093474 , 275.20
Department of Health,Guys and St Thomas NHS Foundation Trust,11/06/2021,(81700) Lab Equipment Purchase,(id:42159) Pharmacy,HYPER RECRUITMENT SOLUTIONS LTD,id:14087794   ,2706.00
Department of Health,Guys and St Thomas NHS Foundation Trust,11/06/2021,(81700) Lab Equipment Purchase,(id:42159) Pharmacy,HYPER RECRUITMENT SOLUTIONS LTD,id:14087775   ,3000.00
Department of Health,Guys and St Thomas NHS Foundation Trust,18/06/2021,(81200) Medical Surgical Supplies & Equipment,(id:581409) Pharmacy,NHS SUPPLY CHAIN (MAIDSTONE),id:14109556,2385.16
Department of Health,Guys and St Thomas NHS Foundation Trust,25/06/2021,(83400) Office Equipment,(id:581409) Pharmacy,DURBIN PLC,id:14192804    , 612.13
Department of Health,Guys and St Thomas NHS Foundation Trust,29/06/2021,(53672) Pharmacists,(id:581409) Pharmacy,PRICEWATERHOUSECOOPERS LLP,id:14213836   ,1618.34
Department of Health,Guys and St Thomas NHS Foundation Trust,18/06/2021,(83130) Energy Costs,(id:42154) Pharmacy,BOC LTD :02107500,id:14165716  ,    20305.92
Department of Health,Guys and St Thomas NHS Foundation Trust,18/06/2021,(83130) Energy Costs,(id:42154) Pharmacy,BOC LTD :02107500,id:14165696  ,    34920.15
Department of Health,Guys and St Thomas NHS Foundation Trust,25/06/2021,(84500) Establishment,(id:42160) Pharmacy,CDP  PRINT MANAGEMENT,id:14178056  ,   9.30
Department of Health,Guys and St Thomas NHS Foundation Trust,18/06/2021,(84500) Establishment,(id:42160) Pharmacy,NHS SUPPLY CHAIN (MAIDSTONE),id:13990034,  74.40
Department of Health,Guys and St Thomas NHS Foundation Trust,15/06/2021,(54052) Technical Officers,(id:42160) Pharmacy,PRICEWATERHOUSECOOPERS LLP,id:14174621  , 970.12
Department of Health,Guys and St Thomas NHS Foundation Trust,15/06/2021,(54052) Technical Officers,(id:42160) Pharmacy,PRICEWATERHOUSECOOPERS LLP,id:14174600  , 771.27
Department of Health,Guys and St Thomas NHS Foundation Trust,24/06/2021,(53642) Pharmacists,(id:42160) Pharmacy,PRICEWATERHOUSECOOPERS LLP,id:14203195    ,1059.74
Department of Health,Guys and St Thomas NHS Foundation Trust,15/06/2021,(53672) Pharmacists,(id:42164) Pharmacy,PRICEWATERHOUSECOOPERS LLP,id:14174600    ,2244.86
Department of Health,Guys and St Thomas NHS Foundation Trust,04/06/2021,(84655) Establishment,(id:42178) Medical Specialties,LANGUAGE CONNECT,id:14148496 ,3567.95
Department of Health,Guys and St Thomas NHS Foundation Trust,18/06/2021,(81000) Surgical Appliances,(id:42171) Medical Specialties,TALAR MADE ORTHOTICS LTD,id:14174294  , 394.50
Department of Health,Guys and St Thomas NHS Foundation Trust,25/06/2021,(81000) Surgical Appliances,(id:42171) Medical Specialties,TALAR MADE ORTHOTICS LTD,id:14198574  ,  46.50
Department of Health,Guys and St Thomas NHS Foundation Trust,18/06/2021,(81700) Lab Equipment Purchase,(id:42217) Medical Specialties,NHS SUPPLY CHAIN (MAIDSTONE),id:13990034,  38.26
Department of Health,Guys and St Thomas NHS Foundation Trust,25/06/2021,(84500) Establishment,(id:42251) Medical Specialties,CDP  PRINT MANAGEMENT,id:14178052 , 129.60
Department of Health,Guys and St Thomas NHS Foundation Trust,25/06/2021,(84500) Establishment,(id:42251) Medical Specialties,CDP  PRINT MANAGEMENT,id:14178056 ,  10.80
Department of Health,Guys and St Thomas NHS Foundation Trust,18/06/2021,(89000) Other - Training courses and conferences,(id:42251) Medical Specialties,ADAM ROUILLY LTD,id:14173156    ,2648.00
Department of Health,Guys and St Thomas NHS Foundation Trust,18/06/2021,(83765) Rent,(id:42224) Medical Specialties,COMMUNITY HEALTH PARTNERSHIPS,id:14181294  , 261.47
Department of Health,Guys and St Thomas NHS Foundation Trust,18/06/2021,(83400) Office Equipment,(id:42221) Medical Specialties,NHS SUPPLY CHAIN (MAIDSTONE),id:14109556 ,   2.84
Department of Health,Guys and St Thomas NHS Foundation Trust,11/06/2021,(81200) Medical Surgical Supplies & Equipment,(id:42221) Medical Specialties,WESCOTT MEDICAL LTD,id:14168046    ,2465.58
Department of Health,Guys and St Thomas NHS Foundation Trust,11/06/2021,(81200) Medical Surgical Supplies & Equipment,(id:42221) Medical Specialties,ALCON EYE CARE UK LIMITED,id:14163022   ,4032.00
Department of Health,Guys and St Thomas NHS Foundation Trust,11/06/2021,(81200) Medical Surgical Supplies & Equipment,(id:42221) Medical Specialties,ALCON EYE CARE UK LIMITED,id:14163033   ,7812.00
Department of Health,Guys and St Thomas NHS Foundation Trust,25/06/2021,(81200) Medical Surgical Supplies & Equipment,(id:42221) Medical Specialties,ALCON EYE CARE UK LIMITED,id:14193132   ,4635.60
Department of Health,Guys and St Thomas NHS Foundation Trust,25/06/2021,(81200) Medical Surgical Supplies & Equipment,(id:42221) Medical Specialties,BEAVER-VISITEC INTERNATIONAL (SALES) LTD,id:14197894   ,1952.05
Department of Health,Guys and St Thomas NHS Foundation Trust,25/06/2021,(81200) Medical Surgical Supplies & Equipment,(id:42221) Medical Specialties,ALCON EYE CARE UK LIMITED,id:14193954   ,4032.00
Department of Health,Guys and St Thomas NHS Foundation Trust,25/06/2021,(81200) Medical Surgical Supplies & Equipment,(id:42221) Medical Specialties,BAXTER HEALTHCARE LTD,id:14186894  , 682.50
Department of Health,Guys and St Thomas NHS Foundation Trust,04/06/2021,(81200) Medical Surgical Supplies & Equipment,(id:42221) Medical Specialties,JOHNSON & JOHNSON MEDICAL LTD,id:14110757    ,2207.30
Department of Health,Guys and St Thomas NHS Foundation Trust,11/06/2021,(81400) Medical Surgical Supplies & Equipment,(id:42222) Medical Specialties,ALCON EYE CARE UK LIMITED,id:14163015   ,    18923.40
Department of Health,Guys and St Thomas NHS Foundation Trust,11/06/2021,(81400) Medical Surgical Supplies & Equipment,(id:42223) Medical Specialties,CARL ZEISS LTD,id:14147494    ,    20257.20
Department of Health,Guys and St Thomas NHS Foundation Trust,18/06/2021,(82000) Provisions & Kitchens,(id:42223) Medical Specialties,NHS SUPPLY CHAIN (MAIDSTONE),id:14109556 ,  43.70
Department of Health,Guys and St Thomas NHS Foundation Trust,15/06/2021,(50202) Consultants,(id:42223) Medical Specialties,PRICEWATERHOUSECOOPERS LLP,id:14174621   ,3757.73
Department of Health,Guys and St Thomas NHS Foundation Trust,24/06/2021,(50202) Consultants,(id:42223) Medical Specialties,PRICEWATERHOUSECOOPERS LLP,id:14203195   ,3834.92
Department of Health,Guys and St Thomas NHS Foundation Trust,18/06/2021,(82700) Uniforms & Clothing,(id:42223) Medical Specialties,NHS SUPPLY CHAIN (MAIDSTONE),id:14109556   , 158.91
Department of Health,Guys and St Thomas NHS Foundation Trust,18/06/2021,(81200) Medical Surgical Supplies & Equipment,(id:42208) Medical Specialties,INSULET INTERNATIONAL LTD,id:14110519   , 706.32
Department of Health,Guys and St Thomas NHS Foundation Trust,18/06/2021,(81200) Medical Surgical Supplies & Equipment,(id:42208) Medical Specialties,INSULET INTERNATIONAL LTD,id:14118905   , 712.08
Department of Health,Guys and St Thomas NHS Foundation Trust,18/06/2021,(81200) Medical Surgical Supplies & Equipment,(id:42208) Medical Specialties,INSULET INTERNATIONAL LTD,id:14108656   , 712.08
Department of Health,Guys and St Thomas NHS Foundation Trust,18/06/2021,(81200) Medical Surgical Supplies & Equipment,(id:42208) Medical Specialties,DEXCOM INTERNATIONAL LTD,id:14161834    , 793.50
Department of Health,Guys and St Thomas NHS Foundation Trust,18/06/2021,(81200) Medical Surgical Supplies & Equipment,(id:42208) Medical Specialties,DEXCOM INTERNATIONAL LTD,id:14143567    , 793.50
Department of Health,Guys and St Thomas NHS Foundation Trust,18/06/2021,(81200) Medical Surgical Supplies & Equipment,(id:42208) Medical Specialties,DEXCOM INTERNATIONAL LTD,id:14165699    , 793.50
Department of Health,Guys and St Thomas NHS Foundation Trust,18/06/2021,(81200) Medical Surgical Supplies & Equipment,(id:42208) Medical Specialties,DEXCOM INTERNATIONAL LTD,id:14161614    , 793.50
Department of Health,Guys and St Thomas NHS Foundation Trust,18/06/2021,(81200) Medical Surgical Supplies & Equipment,(id:42208) Medical Specialties,DEXCOM INTERNATIONAL LTD,id:14179836    , 793.50
Department of Health,Guys and St Thomas NHS Foundation Trust,18/06/2021,(81200) Medical Surgical Supplies & Equipment,(id:42208) Medical Specialties,DEXCOM INTERNATIONAL LTD,id:14165899    , 793.50
Department of Health,Guys and St Thomas NHS Foundation Trust,18/06/2021,(81200) Medical Surgical Supplies & Equipment,(id:42208) Medical Specialties,MEDTRONIC LTD,id:14059324,3240.00
Department of Health,Guys and St Thomas NHS Foundation Trust,25/06/2021,(81200) Medical Surgical Supplies & Equipment,(id:42208) Medical Specialties,DEXCOM INTERNATIONAL LTD,id:14195710    , 793.50
Department of Health,Guys and St Thomas NHS Foundation Trust,25/06/2021,(81200) Medical Surgical Supplies & Equipment,(id:42208) Medical Specialties,AIR LIQUIDE (HOMECARE) LTD,id:14190374  ,3300.00
Department of Health,Guys and St Thomas NHS Foundation Trust,04/06/2021,(81200) Medical Surgical Supplies & Equipment,(id:42208) Medical Specialties,ROCHE DIABETES CARE LIMITED,id:14143201 ,2994.00
Department of Health,Guys and St Thomas NHS Foundation Trust,11/06/2021,(81200) Medical Surgical Supplies & Equipment,(id:42213) Medical Specialties,RICHARDSON HEALTHCARE LTD,id:14160673   , 990.00
Department of Health,Guys and St Thomas NHS Foundation Trust,25/06/2021,(81000) Surgical Appliances,(id:42199) Medical Specialties,TALAR MADE ORTHOTICS LTD,id:14199234  ,  46.50
Department of Health,Guys and St Thomas NHS Foundation Trust,25/06/2021,(81000) Surgical Appliances,(id:42204) Medical Specialties,TALAR MADE ORTHOTICS LTD,id:14193148  ,  63.49
Department of Health,Guys and St Thomas NHS Foundation Trust,25/06/2021,(50204) Consultants,(id:302405) Medical Specialties,SOUTH LONDON AND MAUDSLEY NHS FOUNDATION TRUST,id:14135020  , 715.65
Department of Health,Guys and St Thomas NHS Foundation Trust,18/06/2021,(81200) Medical Surgical Supplies & Equipment,(id:701422) Medical Specialties,NHS SUPPLY CHAIN (MAIDSTONE),id:14136574    ,  17.28
Department of Health,Guys and St Thomas NHS Foundation Trust,25/06/2021,(84500) Establishment,(id:41937) Medical Specialties,CDP  PRINT MANAGEMENT,id:14178056 ,  43.40
Department of Health,Guys and St Thomas NHS Foundation Trust,18/06/2021,(83400) Office Equipment,(id:41937) Medical Specialties,NHS SUPPLY CHAIN (MAIDSTONE),id:14136574 ,  89.06
Department of Health,Guys and St Thomas NHS Foundation Trust,04/06/2021,(81200) Medical Surgical Supplies & Equipment,(id:41937) Medical Specialties,BOSTON SCIENTIFIC LTD,id:14098911  ,    18525.00
Department of Health,Guys and St Thomas NHS Foundation Trust,11/06/2021,(81200) Medical Surgical Supplies & Equipment,(id:41937) Medical Specialties,BOSTON SCIENTIFIC LTD,id:14093117  ,    12600.00
Department of Health,Guys and St Thomas NHS Foundation Trust,15/06/2021,(52062) Radiographers,(id:41937) Medical Specialties,PRICEWATERHOUSECOOPERS LLP,id:14174621 , 489.74
Department of Health,Guys and St Thomas NHS Foundation Trust,18/06/2021,(81225) Medical Surgical Supplies & Equipment,(id:41937) Medical Specialties,NHS SUPPLY CHAIN (MAIDSTONE),id:13990034,  28.80
Department of Health,Guys and St Thomas NHS Foundation Trust,18/06/2021,(82000) Provisions & Kitchens,(id:41937) Medical Specialties,NHS SUPPLY CHAIN (MAIDSTONE),id:14109556 ,  15.60
Department of Health,Guys and St Thomas NHS Foundation Trust,18/06/2021,(83400) Office Equipment,(id:42230) Therapies and Rehabilitation,NHS SUPPLY CHAIN (MAIDSTONE),id:14109556  ,  60.09
Department of Health,Guys and St Thomas NHS Foundation Trust,15/06/2021,(51872) Physiotherapists,(id:42230) Therapies and Rehabilitation,PRICEWATERHOUSECOOPERS LLP,id:14174538    ,1366.73
Department of Health,Guys and St Thomas NHS Foundation Trust,18/06/2021,(81200) Medical Surgical Supplies & Equipment,(id:42231) Therapies and Rehabilitation,NHS SUPPLY CHAIN (MAIDSTONE),id:14077336 , 348.24
Department of Health,Guys and St Thomas NHS Foundation Trust,25/06/2021,(84500) Establishment,(id:42232) Therapies and Rehabilitation,CDP  PRINT MANAGEMENT,id:14178056  ,  15.41
Department of Health,Guys and St Thomas NHS Foundation Trust,18/06/2021,(81200) Medical Surgical Supplies & Equipment,(id:42232) Therapies and Rehabilitation,NHS SUPPLY CHAIN (MAIDSTONE),id:14093474 , 864.62
Department of Health,Guys and St Thomas NHS Foundation Trust,18/06/2021,(81200) Medical Surgical Supplies & Equipment,(id:42232) Therapies and Rehabilitation,NHS SUPPLY CHAIN (MAIDSTONE),id:14077336 ,1314.37
Department of Health,Guys and St Thomas NHS Foundation Trust,18/06/2021,(81200) Medical Surgical Supplies & Equipment,(id:42232) Therapies and Rehabilitation,NHS SUPPLY CHAIN (MAIDSTONE),id:13990034 , 939.19
Department of Health,Guys and St Thomas NHS Foundation Trust,18/06/2021,(81200) Medical Surgical Supplies & Equipment,(id:42232) Therapies and Rehabilitation,NHS SUPPLY CHAIN (MAIDSTONE),id:14136574 , 753.96
Department of Health,Guys and St Thomas NHS Foundation Trust,15/06/2021,(51862) Physiotherapists,(id:42232) Therapies and Rehabilitation,PRICEWATERHOUSECOOPERS LLP,id:14174600    ,2117.53
Department of Health,Guys and St Thomas NHS Foundation Trust,15/06/2021,(51872) Physiotherapists,(id:42234) Therapies and Rehabilitation,PRICEWATERHOUSECOOPERS LLP,id:14174621    ,3805.18
Department of Health,Guys and St Thomas NHS Foundation Trust,29/06/2021,(51872) Physiotherapists,(id:42234) Therapies and Rehabilitation,PRICEWATERHOUSECOOPERS LLP,id:14213836    ,1097.73
Department of Health,Guys and St Thomas NHS Foundation Trust,15/06/2021,(51862) Physiotherapists,(id:42234) Therapies and Rehabilitation,PRICEWATERHOUSECOOPERS LLP,id:14174538    , 323.67
Department of Health,Guys and St Thomas NHS Foundation Trust,25/06/2021,(81100) Dressings,(id:42239) Therapies and Rehabilitation,PROMEDICS ORTHOPAEDICS LTD,id:14192839 , 365.16
Department of Health,Guys and St Thomas NHS Foundation Trust,18/06/2021,(81200) Medical Surgical Supplies & Equipment,(id:42239) Therapies and Rehabilitation,NHS SUPPLY CHAIN (MAIDSTONE),id:14093474 ,  33.83
Department of Health,Guys and St Thomas NHS Foundation Trust,18/06/2021,(81200) Medical Surgical Supplies & Equipment,(id:42239) Therapies and Rehabilitation,NHS SUPPLY CHAIN (MAIDSTONE),id:14136574 ,  72.69
Department of Health,Guys and St Thomas NHS Foundation Trust,29/06/2021,(51462) Occupational Therapists,(id:42240) Therapies and Rehabilitation,PRICEWATERHOUSECOOPERS LLP,id:14213836  ,2494.60
Department of Health,Guys and St Thomas NHS Foundation Trust,18/06/2021,(83400) Office Equipment,(id:590530) Therapies and Rehabilitation,NHS SUPPLY CHAIN (MAIDSTONE),id:14109556 ,  92.62
Department of Health,Guys and St Thomas NHS Foundation Trust,18/06/2021,(81100) Dressings,(id:590530) Therapies and Rehabilitation,NHS SUPPLY CHAIN (MAIDSTONE),id:14109556   , 165.41
Department of Health,Guys and St Thomas NHS Foundation Trust,18/06/2021,(81100) Dressings,(id:590530) Therapies and Rehabilitation,NHS SUPPLY CHAIN (MAIDSTONE),id:14093474   ,  89.93
Department of Health,Guys and St Thomas NHS Foundation Trust,18/06/2021,(82600) Uniforms & Clothing,(id:590530) Therapies and Rehabilitation,NHS SUPPLY CHAIN (MAIDSTONE),id:14109556   ,   5.40
Department of Health,Guys and St Thomas NHS Foundation Trust,29/06/2021,(51062) Chiropodists,(id:590530) Therapies and Rehabilitation,PRICEWATERHOUSECOOPERS LLP,id:14213836  , 899.54
Department of Health,Guys and St Thomas NHS Foundation Trust,11/06/2021,(81100) Dressings,(id:590490) Therapies and Rehabilitation,BAILEY INSTRUMENTS LIMITED,id:14160468, 510.00
Department of Health,Guys and St Thomas NHS Foundation Trust,25/06/2021,(81000) Surgical Appliances,(id:42243) Therapies and Rehabilitation,LBG MEDICAL LTD,id:14193128  , 137.28
Department of Health,Guys and St Thomas NHS Foundation Trust,18/06/2021,(81100) Dressings,(id:42243) Therapies and Rehabilitation,NHS SUPPLY CHAIN (MAIDSTONE),id:14109556    ,  53.40
Department of Health,Guys and St Thomas NHS Foundation Trust,25/06/2021,(84500) Establishment,(id:42247) Therapies and Rehabilitation,CDP  PRINT MANAGEMENT,id:14178052  ,   3.60
Department of Health,Guys and St Thomas NHS Foundation Trust,15/06/2021,(53062) Speech Therapists,(id:42248) Therapies and Rehabilitation,PRICEWATERHOUSECOOPERS LLP,id:14174538   ,2324.25
Department of Health,Guys and St Thomas NHS Foundation Trust,18/06/2021,(81225) Medical Surgical Supplies & Equipment,(id:590498) Therapies and Rehabilitation,CHANECO LIMITED,id:14172153   , 664.97
Department of Health,Guys and St Thomas NHS Foundation Trust,18/06/2021,(81225) Medical Surgical Supplies & Equipment,(id:590498) Therapies and Rehabilitation,ALLARD SUPPORT LTD,id:14171995, 680.40
Department of Health,Guys and St Thomas NHS Foundation Trust,04/06/2021,(81000) Surgical Appliances,(id:590498) Therapies and Rehabilitation,BOLTON BROS LTD,id:14100734 , 597.98
Department of Health,Guys and St Thomas NHS Foundation Trust,04/06/2021,(81400) Medical Surgical Supplies & Equipment,(id:590498) Therapies and Rehabilitation,NPD ORTHOTICS LTD,id:14148704 , 483.11
Department of Health,Guys and St Thomas NHS Foundation Trust,18/06/2021,(81200) Medical Surgical Supplies & Equipment,(id:590499) Therapies and Rehabilitation,INVACARE LTD,id:14169436 ,3342.00
Department of Health,Guys and St Thomas NHS Foundation Trust,18/06/2021,(81200) Medical Surgical Supplies & Equipment,(id:590499) Therapies and Rehabilitation,FORMAL GROUP LTD,id:14169387  , 868.80
Department of Health,Guys and St Thomas NHS Foundation Trust,18/06/2021,(81200) Medical Surgical Supplies & Equipment,(id:590499) Therapies and Rehabilitation,TENDERCARE LTD,id:14169534    ,1358.08
Department of Health,Guys and St Thomas NHS Foundation Trust,18/06/2021,(81200) Medical Surgical Supplies & Equipment,(id:590499) Therapies and Rehabilitation,INVACARE LTD,id:14169452 ,2008.80
Department of Health,Guys and St Thomas NHS Foundation Trust,18/06/2021,(81200) Medical Surgical Supplies & Equipment,(id:590499) Therapies and Rehabilitation,INVACARE LTD,id:14169450 ,2901.60
Department of Health,Guys and St Thomas NHS Foundation Trust,18/06/2021,(81200) Medical Surgical Supplies & Equipment,(id:590499) Therapies and Rehabilitation,INVACARE LTD,id:14169440 ,2929.20
Department of Health,Guys and St Thomas NHS Foundation Trust,25/06/2021,(89595) Non-Healthcare from Foundation Trusts,(id:590499) Therapies and Rehabilitation,KING'S COLLEGE HOSPITAL NHS FOUNDATION TRUST,id:14199731    ,    28296.25
Department of Health,Guys and St Thomas NHS Foundation Trust,25/06/2021,(89595) Non-Healthcare from Foundation Trusts,(id:590499) Therapies and Rehabilitation,KING'S COLLEGE HOSPITAL NHS FOUNDATION TRUST,id:14199745    ,   -48317.42
Department of Health,Guys and St Thomas NHS Foundation Trust,18/06/2021,(82800) Bedding & Linen,(id:1042419) Therapies and Rehabilitation,NHS SUPPLY CHAIN (MAIDSTONE),id:14109556 , 120.60
Department of Health,Guys and St Thomas NHS Foundation Trust,18/06/2021,(81225) Medical Surgical Supplies & Equipment,(id:1042419) Therapies and Rehabilitation,NHS SUPPLY CHAIN (MAIDSTONE),id:14136574    ,  23.04
Department of Health,Guys and St Thomas NHS Foundation Trust,18/06/2021,(82600) Uniforms & Clothing,(id:42366) Clinical Imaging & Med Physics,NHS SUPPLY CHAIN (MAIDSTONE),id:14136574  , 322.56
Department of Health,Guys and St Thomas NHS Foundation Trust,18/06/2021,(82800) Bedding & Linen,(id:42366) Clinical Imaging & Med Physics,NHS SUPPLY CHAIN (MAIDSTONE),id:14077336 , 162.93
Department of Health,Guys and St Thomas NHS Foundation Trust,18/06/2021,(83400) Office Equipment,(id:42366) Clinical Imaging & Med Physics,NHS SUPPLY CHAIN (MAIDSTONE),id:14109556, 624.51
Department of Health,Guys and St Thomas NHS Foundation Trust,18/06/2021,(83400) Office Equipment,(id:42366) Clinical Imaging & Med Physics,NHS SUPPLY CHAIN (MAIDSTONE),id:14093474, 565.10
Department of Health,Guys and St Thomas NHS Foundation Trust,18/06/2021,(83400) Office Equipment,(id:42366) Clinical Imaging & Med Physics,NHS SUPPLY CHAIN (MAIDSTONE),id:13990034, 244.03
Department of Health,Guys and St Thomas NHS Foundation Trust,04/06/2021,(81500) X Ray Equipment Purchase,(id:42366) Clinical Imaging & Med Physics,BAYER PLC,id:14142817 ,2520.00
Department of Health,Guys and St Thomas NHS Foundation Trust,18/06/2021,(83400) Office Equipment,(id:42367) Clinical Imaging & Med Physics,NHS SUPPLY CHAIN (MAIDSTONE),id:14077336, 283.76
Department of Health,Guys and St Thomas NHS Foundation Trust,18/06/2021,(83400) Office Equipment,(id:42367) Clinical Imaging & Med Physics,NHS SUPPLY CHAIN (MAIDSTONE),id:14093474, 127.19
Department of Health,Guys and St Thomas NHS Foundation Trust,04/06/2021,(81400) Medical Surgical Supplies & Equipment,(id:42367) Clinical Imaging & Med Physics,NHS SUPPLY CHAIN ( CAPITAL FUND ONLY),id:14148782,7712.90
Department of Health,Guys and St Thomas NHS Foundation Trust,04/06/2021,(81400) Medical Surgical Supplies & Equipment,(id:42367) Clinical Imaging & Med Physics,NHS SUPPLY CHAIN ( CAPITAL FUND ONLY),id:14078894,    43702.77
Department of Health,Guys and St Thomas NHS Foundation Trust,25/06/2021,(81400) Medical Surgical Supplies & Equipment,(id:42367) Clinical Imaging & Med Physics,NHS SUPPLY CHAIN ( CAPITAL FUND ONLY),id:14168395,   -33958.21
Department of Health,Guys and St Thomas NHS Foundation Trust,18/06/2021,(82700) Uniforms & Clothing,(id:42367) Clinical Imaging & Med Physics,NHS SUPPLY CHAIN (MAIDSTONE),id:14093474  ,  31.68
Department of Health,Guys and St Thomas NHS Foundation Trust,04/06/2021,(81200) Medical Surgical Supplies & Equipment,(id:42367) Clinical Imaging & Med Physics,COOK UK LTD,id:14094132 , 450.00
Department of Health,Guys and St Thomas NHS Foundation Trust,18/06/2021,(81200) Medical Surgical Supplies & Equipment,(id:42367) Clinical Imaging & Med Physics,NHS SUPPLY CHAIN (MAIDSTONE),id:14077336    ,    22633.00
Department of Health,Guys and St Thomas NHS Foundation Trust,18/06/2021,(81200) Medical Surgical Supplies & Equipment,(id:42367) Clinical Imaging & Med Physics,BOSTON SCIENTIFIC LTD,id:14146334 , 342.00
Department of Health,Guys and St Thomas NHS Foundation Trust,18/06/2021,(81200) Medical Surgical Supplies & Equipment,(id:42367) Clinical Imaging & Med Physics,VOLCANO EUROPE BVBA/SPRL,id:14178091   , 540.00
Department of Health,Guys and St Thomas NHS Foundation Trust,18/06/2021,(81200) Medical Surgical Supplies & Equipment,(id:42367) Clinical Imaging & Med Physics,AQUILANT LTD,id:14182434,1848.00
Department of Health,Guys and St Thomas NHS Foundation Trust,18/06/2021,(81200) Medical Surgical Supplies & Equipment,(id:42367) Clinical Imaging & Med Physics,CARDINAL HEALTH UK 432 LIMITED,id:14147924  ,1148.40
Department of Health,Guys and St Thomas NHS Foundation Trust,18/06/2021,(81200) Medical Surgical Supplies & Equipment,(id:42367) Clinical Imaging & Med Physics,BOSTON SCIENTIFIC LTD,id:14143676 ,1260.00
Department of Health,Guys and St Thomas NHS Foundation Trust,04/06/2021,(81200) Medical Surgical Supplies & Equipment,(id:42367) Clinical Imaging & Med Physics,ABBOTT MEDICAL UK LTD,id:14143460 , 696.00
Department of Health,Guys and St Thomas NHS Foundation Trust,04/06/2021,(81200) Medical Surgical Supplies & Equipment,(id:42367) Clinical Imaging & Med Physics,TERUMO UK LTD,id:14128276    ,1080.00
Department of Health,Guys and St Thomas NHS Foundation Trust,11/06/2021,(81200) Medical Surgical Supplies & Equipment,(id:42367) Clinical Imaging & Med Physics,AQUILANT LTD,id:14165196,1044.00
Department of Health,Guys and St Thomas NHS Foundation Trust,11/06/2021,(81200) Medical Surgical Supplies & Equipment,(id:42367) Clinical Imaging & Med Physics,AQUILANT LTD,id:14165200,1500.00
Department of Health,Guys and St Thomas NHS Foundation Trust,04/06/2021,(81230) Medical Surgical Supplies & Equipment,(id:42367) Clinical Imaging & Med Physics,COOK UK LTD,id:14110784 , 132.00
Department of Health,Guys and St Thomas NHS Foundation Trust,04/06/2021,(81500) X Ray Equipment Purchase,(id:42367) Clinical Imaging & Med Physics,BAYER PLC,id:14151304 ,2841.60
Department of Health,Guys and St Thomas NHS Foundation Trust,04/06/2021,(81500) X Ray Equipment Purchase,(id:42367) Clinical Imaging & Med Physics,BAYER PLC,id:14151305 ,3360.00
Department of Health,Guys and St Thomas NHS Foundation Trust,18/06/2021,(82600) Uniforms & Clothing,(id:42372) Clinical Imaging & Med Physics,NHS SUPPLY CHAIN (MAIDSTONE),id:14109556  ,  27.00
Department of Health,Guys and St Thomas NHS Foundation Trust,11/06/2021,(83400) Office Equipment,(id:42372) Clinical Imaging & Med Physics,BAYER PLC,id:14142842    ,2112.00
Department of Health,Guys and St Thomas NHS Foundation Trust,18/06/2021,(81100) Dressings,(id:42372) Clinical Imaging & Med Physics,NHS SUPPLY CHAIN (MAIDSTONE),id:14136574  ,  15.76
Department of Health,Guys and St Thomas NHS Foundation Trust,25/06/2021,(84500) Establishment,(id:42372) Clinical Imaging & Med Physics,CDP  PRINT MANAGEMENT,id:14178056,   3.10
Department of Health,Guys and St Thomas NHS Foundation Trust,18/06/2021,(81700) Lab Equipment Purchase,(id:42372) Clinical Imaging & Med Physics,NHS SUPPLY CHAIN (MAIDSTONE),id:14109556    , 400.68
Department of Health,Guys and St Thomas NHS Foundation Trust,18/06/2021,(81700) Lab Equipment Purchase,(id:42372) Clinical Imaging & Med Physics,NHS SUPPLY CHAIN (MAIDSTONE),id:14077336    ,  10.15
Department of Health,Guys and St Thomas NHS Foundation Trust,18/06/2021,(81200) Medical Surgical Supplies & Equipment,(id:42372) Clinical Imaging & Med Physics,NHS SUPPLY CHAIN (MAIDSTONE),id:13990034    , 272.54
Department of Health,Guys and St Thomas NHS Foundation Trust,11/06/2021,(81500) X Ray Equipment Purchase,(id:42372) Clinical Imaging & Med Physics,CURIUM PHARMA UK LTD,id:14113274,1934.40
Department of Health,Guys and St Thomas NHS Foundation Trust,25/06/2021,(81500) X Ray Equipment Purchase,(id:42372) Clinical Imaging & Med Physics,CURIUM PHARMA UK LTD,id:14191494,1934.40
Department of Health,Guys and St Thomas NHS Foundation Trust,11/06/2021,(83400) Office Equipment,(id:4187419) Clinical Imaging & Med Physics,BAYER PLC,id:14157836  ,2112.00
Department of Health,Guys and St Thomas NHS Foundation Trust,11/06/2021,(81200) Medical Surgical Supplies & Equipment,(id:4187419) Clinical Imaging & Med Physics,ADVANCED ACCELERATOR APPLICATIONS (UK & IRELAND) LTD,id:14058054   ,   -62633.95
Department of Health,Guys and St Thomas NHS Foundation Trust,18/06/2021,(84500) Establishment,(id:42374) Clinical Imaging & Med Physics,CLARITY TRAVEL MANAGEMENT,id:14178076 ,  53.47
Department of Health,Guys and St Thomas NHS Foundation Trust,04/06/2021,(55642) Maintenance Staff,(id:42375) Clinical Imaging & Med Physics,MORGAN HUNT UK LTD,id:14149322    , 773.28
Department of Health,Guys and St Thomas NHS Foundation Trust,25/06/2021,(81500) X Ray Equipment Purchase,(id:42378) Clinical Imaging & Med Physics,GSTT PROCUREMENT CARD,id:14203742    ,  54.00
Department of Health,Guys and St Thomas NHS Foundation Trust,18/06/2021,(81500) X Ray Equipment Purchase,(id:42378) Clinical Imaging & Med Physics,ONCOLOGY SYSTEMS LTD,id:14149590,3283.20
Department of Health,Guys and St Thomas NHS Foundation Trust,04/06/2021,(81400) Medical Surgical Supplies & Equipment,(id:42379) Clinical Imaging & Med Physics,KCI MEDICAL LTD,id:14150957  , 500.00
Department of Health,Guys and St Thomas NHS Foundation Trust,11/06/2021,(81400) Medical Surgical Supplies & Equipment,(id:42379) Clinical Imaging & Med Physics,VERATHON MEDICAL UK LTD,id:14167917    , 675.00
Department of Health,Guys and St Thomas NHS Foundation Trust,25/06/2021,(81200) Medical Surgical Supplies & Equipment,(id:42379) Clinical Imaging & Med Physics,TENACORE UK LTD,id:14159908  ,  24.00
Department of Health,Guys and St Thomas NHS Foundation Trust,25/06/2021,(81200) Medical Surgical Supplies & Equipment,(id:42379) Clinical Imaging & Med Physics,VIAMED,id:14112322 , 760.32
Department of Health,Guys and St Thomas NHS Foundation Trust,18/06/2021,(81250) Medical Surgical Supplies & Equipment,(id:1348419) Clinical Imaging & Med Physics,AQUILANT LTD,id:14182414   ,1044.00
Department of Health,Guys and St Thomas NHS Foundation Trust,18/06/2021,(81250) Medical Surgical Supplies & Equipment,(id:1348419) Clinical Imaging & Med Physics,AQUILANT LTD,id:14175574   ,1044.00
Department of Health,Guys and St Thomas NHS Foundation Trust,18/06/2021,(81250) Medical Surgical Supplies & Equipment,(id:1348419) Clinical Imaging & Med Physics,AQUILANT LTD,id:14175554   ,1080.00
Department of Health,Guys and St Thomas NHS Foundation Trust,04/06/2021,(81200) Medical Surgical Supplies & Equipment,(id:1348419) Clinical Imaging & Med Physics,MEDTRONIC LTD,id:14009493  ,3360.00
Department of Health,Guys and St Thomas NHS Foundation Trust,18/06/2021,(81200) Medical Surgical Supplies & Equipment,(id:1348419) Clinical Imaging & Med Physics,NHS SUPPLY CHAIN (MAIDSTONE),id:13990034  , 540.00
Department of Health,Guys and St Thomas NHS Foundation Trust,18/06/2021,(81235) Medical Surgical Supplies & Equipment,(id:1348419) Clinical Imaging & Med Physics,BOSTON SCIENTIFIC LTD,id:14143873    ,1836.00
Department of Health,Guys and St Thomas NHS Foundation Trust,25/06/2021,(84500) Establishment,(id:42255) Integrated Local Services,CDP  PRINT MANAGEMENT,id:14178052,   9.30
Department of Health,Guys and St Thomas NHS Foundation Trust,18/06/2021,(81200) Medical Surgical Supplies & Equipment,(id:42255) Integrated Local Services,NHS SUPPLY CHAIN (MAIDSTONE),id:14136574    , 672.00
Department of Health,Guys and St Thomas NHS Foundation Trust,18/06/2021,(83400) Office Equipment,(id:42255) Integrated Local Services,NHS SUPPLY CHAIN (MAIDSTONE),id:14136574,   1.30
Department of Health,Guys and St Thomas NHS Foundation Trust,18/06/2021,(89640) Non-Healthcare from NHS Trusts,(id:42255) Integrated Local Services,ST HELENS & KNOWSLEY HOSPITALS NHS TRUST,id:14165826    ,    14383.01
Department of Health,Guys and St Thomas NHS Foundation Trust,11/06/2021,(86305) Healthcare from non-NHS bodies,(id:42255) Integrated Local Services,ST CHRISTOPHER'S,id:14159778   ,1582.43
Department of Health,Guys and St Thomas NHS Foundation Trust,11/06/2021,(86305) Healthcare from non-NHS bodies,(id:42255) Integrated Local Services,ST CHRISTOPHER'S,id:14159543   ,2285.74
Department of Health,Guys and St Thomas NHS Foundation Trust,18/06/2021,(82000) Provisions & Kitchens,(id:42255) Integrated Local Services,NHS SUPPLY CHAIN (MAIDSTONE),id:14136574,   6.42
Department of Health,Guys and St Thomas NHS Foundation Trust,25/06/2021,(84500) Establishment,(id:590594) Integrated Local Services,CDP  PRINT MANAGEMENT,id:14178054    ,   7.20
Department of Health,Guys and St Thomas NHS Foundation Trust,18/06/2021,(82000) Provisions & Kitchens,(id:590595) Integrated Local Services,NHS SUPPLY CHAIN (MAIDSTONE),id:14077336    ,  23.92
Department of Health,Guys and St Thomas NHS Foundation Trust,18/06/2021,(83500) Furniture & Fittings,(id:590595) Integrated Local Services,NHS SUPPLY CHAIN (MAIDSTONE),id:14109556,  35.76
Department of Health,Guys and St Thomas NHS Foundation Trust,11/06/2021,(80010) Drug Costs,(id:590563) Integrated Local Services,HENRY SCHEIN,id:14148798 , 658.80
Department of Health,Guys and St Thomas NHS Foundation Trust,18/06/2021,(81225) Medical Surgical Supplies & Equipment,(id:590563) Integrated Local Services,NHS SUPPLY CHAIN (MAIDSTONE),id:14077336   ,   7.07
Department of Health,Guys and St Thomas NHS Foundation Trust,25/06/2021,(84200) Rental under Operating Lease,(id:590575) Integrated Local Services,MARSH LTD,id:14199548 ,  86.00
Department of Health,Guys and St Thomas NHS Foundation Trust,15/06/2021,(53072) Speech Therapists,(id:590495) Integrated Local Services,PRICEWATERHOUSECOOPERS LLP,id:14174600,  12.52
Department of Health,Guys and St Thomas NHS Foundation Trust,24/06/2021,(81225) Medical Surgical Supplies & Equipment,(id:590494) Integrated Local Services,GSTT PROCUREMENT CARD,id:13944835, 276.55
Department of Health,Guys and St Thomas NHS Foundation Trust,18/06/2021,(84600) Establishment,(id:590494) Integrated Local Services,ETC VENUES LIMITED,id:14169754  , 500.00
Department of Health,Guys and St Thomas NHS Foundation Trust,25/06/2021,(84500) Establishment,(id:590492) Integrated Local Services,CDP  PRINT MANAGEMENT,id:14178054    ,  15.50
Department of Health,Guys and St Thomas NHS Foundation Trust,18/06/2021,(50562) Qualified Nursing Staff,(id:1885424) Integrated Local Services,MSI GROUP LTD,id:14180527 ,1086.68
Department of Health,Guys and St Thomas NHS Foundation Trust,15/06/2021,(51862) Physiotherapists,(id:1885424) Integrated Local Services,PRICEWATERHOUSECOOPERS LLP,id:14174538,6121.08
Department of Health,Guys and St Thomas NHS Foundation Trust,18/06/2021,(81230) Medical Surgical Supplies & Equipment,(id:1885424) Integrated Local Services,NHS SUPPLY CHAIN (MAIDSTONE),id:14093474  ,  46.08
Department of Health,Guys and St Thomas NHS Foundation Trust,15/06/2021,(51832) Physiotherapists,(id:699422) Integrated Local Services,PRICEWATERHOUSECOOPERS LLP,id:14174538 ,7583.48
Department of Health,Guys and St Thomas NHS Foundation Trust,18/06/2021,(83400) Office Equipment,(id:699422) Integrated Local Services,NHS SUPPLY CHAIN (MAIDSTONE),id:14077336    ,  44.78
Department of Health,Guys and St Thomas NHS Foundation Trust,18/06/2021,(81100) Dressings,(id:699422) Integrated Local Services,NHS SUPPLY CHAIN (MAIDSTONE),id:14077336 , 683.38
Department of Health,Guys and St Thomas NHS Foundation Trust,11/06/2021,(83610) IT Costs,(id:2357419) Integrated Local Services,SOFTCAT LTD,id:14160649   ,  51.80
Department of Health,Guys and St Thomas NHS Foundation Trust,25/06/2021,(83610) IT Costs,(id:2357419) Integrated Local Services,MINDMAZE HEALTHCARE UK LTD,id:14169774   ,5286.00
Department of Health,Guys and St Thomas NHS Foundation Trust,11/06/2021,(81200) Medical Surgical Supplies & Equipment,(id:684420) Integrated Local Services,CBC COMPUTER SYSTEMS LTD,id:14160716  , 129.00
Department of Health,Guys and St Thomas NHS Foundation Trust,29/06/2021,(51462) Occupational Therapists,(id:1913419) Integrated Local Services,PRICEWATERHOUSECOOPERS LLP,id:14213836   ,4113.41
Department of Health,Guys and St Thomas NHS Foundation Trust,18/06/2021,(83400) Office Equipment,(id:590504) Integrated Local Services,NHS SUPPLY CHAIN (MAIDSTONE),id:14077336    ,   5.94
Department of Health,Guys and St Thomas NHS Foundation Trust,15/06/2021,(51862) Physiotherapists,(id:684419) Integrated Local Services,PRICEWATERHOUSECOOPERS LLP,id:14174538 ,4279.45
Department of Health,Guys and St Thomas NHS Foundation Trust,24/06/2021,(51862) Physiotherapists,(id:684419) Integrated Local Services,PRICEWATERHOUSECOOPERS LLP,id:14203195 ,3715.54
Department of Health,Guys and St Thomas NHS Foundation Trust,18/06/2021,(81200) Medical Surgical Supplies & Equipment,(id:684419) Integrated Local Services,NHS SUPPLY CHAIN (MAIDSTONE),id:14136574   , 486.00
Department of Health,Guys and St Thomas NHS Foundation Trust,18/06/2021,(89595) Non-Healthcare from Foundation Trusts,(id:590503) Integrated Local Services,KING'S COLLEGE HOSPITAL NHS FOUNDATION TRUST,id:13482722  ,8075.57
Department of Health,Guys and St Thomas NHS Foundation Trust,18/06/2021,(50552) Qualified Nursing Staff,(id:590471) Integrated Local Services,NURSING 2000 LTD,id:14142759    ,1300.00
Department of Health,Guys and St Thomas NHS Foundation Trust,18/06/2021,(83400) Office Equipment,(id:590473) Integrated Local Services,NHS SUPPLY CHAIN (MAIDSTONE),id:14109556    ,  54.96
Department of Health,Guys and St Thomas NHS Foundation Trust,18/06/2021,(81100) Dressings,(id:590473) Integrated Local Services,NHS SUPPLY CHAIN (MAIDSTONE),id:14109556 , 106.18
Department of Health,Guys and St Thomas NHS Foundation Trust,18/06/2021,(81200) Medical Surgical Supplies & Equipment,(id:590473) Integrated Local Services,NHS SUPPLY CHAIN (MAIDSTONE),id:14109556   ,  72.67
Department of Health,Guys and St Thomas NHS Foundation Trust,18/06/2021,(81200) Medical Surgical Supplies & Equipment,(id:590473) Integrated Local Services,NHS SUPPLY CHAIN (MAIDSTONE),id:13990034   , 238.80
Department of Health,Guys and St Thomas NHS Foundation Trust,25/06/2021,(84500) Establishment,(id:590473) Integrated Local Services,CDP  PRINT MANAGEMENT,id:14178055    ,  45.80
Department of Health,Guys and St Thomas NHS Foundation Trust,18/06/2021,(81700) Lab Equipment Purchase,(id:590473) Integrated Local Services,NHS SUPPLY CHAIN (MAIDSTONE),id:14136574   ,  63.35
Department of Health,Guys and St Thomas NHS Foundation Trust,18/06/2021,(81200) Medical Surgical Supplies & Equipment,(id:590522) Integrated Local Services,NHS SUPPLY CHAIN (MAIDSTONE),id:13990034   ,   3.17
Department of Health,Guys and St Thomas NHS Foundation Trust,18/06/2021,(81200) Medical Surgical Supplies & Equipment,(id:590522) Integrated Local Services,NHS SUPPLY CHAIN (MAIDSTONE),id:14077336   ,   5.76
Department of Health,Guys and St Thomas NHS Foundation Trust,18/06/2021,(82000) Provisions & Kitchens,(id:590521) Integrated Local Services,NHS SUPPLY CHAIN (MAIDSTONE),id:14093474    ,  24.33
Department of Health,Guys and St Thomas NHS Foundation Trust,25/06/2021,(50552) Qualified Nursing Staff,(id:590520) Integrated Local Services,YOUR WORLD RECRUITMENT LIMITED(YOUR WORLD HEALTHCARE),id:14180358  , 790.20
Department of Health,Guys and St Thomas NHS Foundation Trust,18/06/2021,(81700) Lab Equipment Purchase,(id:590535) Integrated Local Services,NHS SUPPLY CHAIN (MAIDSTONE),id:14093474   ,  20.07
Department of Health,Guys and St Thomas NHS Foundation Trust,04/06/2021,(86300) Healthcare from non-NHS bodies,(id:590477) Integrated Local Services,NHS SUPPLY CHAIN (MAIDSTONE),id:14122194,1095.88
Department of Health,Guys and St Thomas NHS Foundation Trust,04/06/2021,(86300) Healthcare from non-NHS bodies,(id:590477) Integrated Local Services,NHS SUPPLY CHAIN (MAIDSTONE),id:14122234, 776.90
Department of Health,Guys and St Thomas NHS Foundation Trust,18/06/2021,(81200) Medical Surgical Supplies & Equipment,(id:590463) Integrated Local Services,NHS SUPPLY CHAIN (MAIDSTONE),id:14136574   , 502.60
Department of Health,Guys and St Thomas NHS Foundation Trust,11/06/2021,(50562) Qualified Nursing Staff,(id:590463) Integrated Local Services,COYLE PERSONNEL PLC,id:14165395 ,1750.00
Department of Health,Guys and St Thomas NHS Foundation Trust,11/06/2021,(50562) Qualified Nursing Staff,(id:590463) Integrated Local Services,COYLE PERSONNEL PLC,id:14165356 ,1750.00
Department of Health,Guys and St Thomas NHS Foundation Trust,18/06/2021,(81200) Medical Surgical Supplies & Equipment,(id:590527) Integrated Local Services,NHS SUPPLY CHAIN (MAIDSTONE),id:14093474   , 622.65
Department of Health,Guys and St Thomas NHS Foundation Trust,18/06/2021,(81200) Medical Surgical Supplies & Equipment,(id:590527) Integrated Local Services,NHS SUPPLY CHAIN (MAIDSTONE),id:14077336   , 484.79
Department of Health,Guys and St Thomas NHS Foundation Trust,18/06/2021,(81200) Medical Surgical Supplies & Equipment,(id:590527) Integrated Local Services,NHS SUPPLY CHAIN (MAIDSTONE),id:14136574   ,1668.64
Department of Health,Guys and St Thomas NHS Foundation Trust,18/06/2021,(82700) Uniforms & Clothing,(id:590527) Integrated Local Services,NHS SUPPLY CHAIN (MAIDSTONE),id:14077336 , 152.68
Department of Health,Guys and St Thomas NHS Foundation Trust,18/06/2021,(81100) Dressings,(id:590527) Integrated Local Services,NHS SUPPLY CHAIN (MAIDSTONE),id:14136574 ,  51.70
Department of Health,Guys and St Thomas NHS Foundation Trust,18/06/2021,(81230) Medical Surgical Supplies & Equipment,(id:590527) Integrated Local Services,NHS SUPPLY CHAIN (MAIDSTONE),id:14077336   ,   5.40
Department of Health,Guys and St Thomas NHS Foundation Trust,18/06/2021,(82800) Bedding & Linen,(id:903421) Integrated Local Services,NHS SUPPLY CHAIN (MAIDSTONE),id:14077336,  62.21
Department of Health,Guys and St Thomas NHS Foundation Trust,18/06/2021,(81700) Lab Equipment Purchase,(id:903421) Integrated Local Services,NHS SUPPLY CHAIN (MAIDSTONE),id:13990034   ,  51.55
Department of Health,Guys and St Thomas NHS Foundation Trust,11/06/2021,(50552) Qualified Nursing Staff,(id:4834422) Integrated Local Services,NURSING 2000 LTD,id:14138686   , 837.46
Department of Health,Guys and St Thomas NHS Foundation Trust,18/06/2021,(50552) Qualified Nursing Staff,(id:4609420) Integrated Local Services,NURSING 2000 LTD,id:14149306   ,1104.06
Department of Health,Guys and St Thomas NHS Foundation Trust,11/06/2021,(50552) Qualified Nursing Staff,(id:4609420) Integrated Local Services,NURSING 2000 LTD,id:14165594   , 502.97
Department of Health,Guys and St Thomas NHS Foundation Trust,11/06/2021,(50552) Qualified Nursing Staff,(id:4609419) Integrated Local Services,NURSING 2000 LTD,id:14165548   ,1403.26
Department of Health,Guys and St Thomas NHS Foundation Trust,18/06/2021,(81200) Medical Surgical Supplies & Equipment,(id:4263422) Integrated Local Services,NHS SUPPLY CHAIN (MAIDSTONE),id:14109556  ,   5.40
Department of Health,Guys and St Thomas NHS Foundation Trust,18/06/2021,(55110) Admin & Clerical,(id:4273419) Integrated Care Management,IMPERIAL COLLEGE HEALTHCARE NHS TRUST,id:14178127   ,    10015.01
Department of Health,Guys and St Thomas NHS Foundation Trust,25/06/2021,(89280) Other - Consultancy costs,(id:4273419) Integrated Care Management,NICHE HEALTH & SOCIAL CARE CONSULTING LTD,id:14205444,7158.00
Department of Health,Guys and St Thomas NHS Foundation Trust,04/06/2021,(89000) Other - Training courses and conferences,(id:4273419) Integrated Care Management,THE GOVERNANCE FORUM LTD,id:14149114  ,1200.00
Department of Health,Guys and St Thomas NHS Foundation Trust,18/06/2021,(82000) Provisions & Kitchens,(id:42518) Evelina Womens Services,NHS SUPPLY CHAIN (MAIDSTONE),id:14136574  ,  29.52
Department of Health,Guys and St Thomas NHS Foundation Trust,18/06/2021,(83400) Office Equipment,(id:42518) Evelina Womens Services,NHS SUPPLY CHAIN (MAIDSTONE),id:14093474  ,  54.91
Department of Health,Guys and St Thomas NHS Foundation Trust,18/06/2021,(82400) Contract Hotel Services,(id:42518) Evelina Womens Services,ELIS UK LIMITED,id:14165308   , 852.58
Department of Health,Guys and St Thomas NHS Foundation Trust,18/06/2021,(81700) Lab Equipment Purchase,(id:42518) Evelina Womens Services,NHS SUPPLY CHAIN (MAIDSTONE),id:14136574 ,  23.23
Department of Health,Guys and St Thomas NHS Foundation Trust,07/06/2021,(81400) Medical Surgical Supplies & Equipment,(id:42517) Evelina Womens Services,THERMO ELECTRON MANUFACTURING LTD/THERMO FISHER SCIENTIFIC,id:14118927 ,4160.00
Department of Health,Guys and St Thomas NHS Foundation Trust,18/06/2021,(81255) Medical Surgical Supplies & Equipment,(id:42517) Evelina Womens Services,NHS SUPPLY CHAIN (MAIDSTONE),id:14077336 , 144.00
Department of Health,Guys and St Thomas NHS Foundation Trust,11/06/2021,(89595) Non-Healthcare from Foundation Trusts,(id:42517) Evelina Womens Services,SHEFFIELD TEACHING HOSPITALS NHS FOUNDATION TRUST,id:14079216,6350.00
Department of Health,Guys and St Thomas NHS Foundation Trust,18/06/2021,(81200) Medical Surgical Supplies & Equipment,(id:42517) Evelina Womens Services,365 HEALTHCARE LTD,id:14165784 ,1173.31
Department of Health,Guys and St Thomas NHS Foundation Trust,18/06/2021,(81700) Lab Equipment Purchase,(id:42517) Evelina Womens Services,NHS SUPPLY CHAIN (MAIDSTONE),id:14109556 ,  77.28
Department of Health,Guys and St Thomas NHS Foundation Trust,18/06/2021,(81200) Medical Surgical Supplies & Equipment,(id:42513) Evelina Womens Services,NHS SUPPLY CHAIN (MAIDSTONE),id:14093474 , 700.94
Department of Health,Guys and St Thomas NHS Foundation Trust,18/06/2021,(83400) Office Equipment,(id:42513) Evelina Womens Services,NHS SUPPLY CHAIN (MAIDSTONE),id:14093474  , 164.70
Department of Health,Guys and St Thomas NHS Foundation Trust,18/06/2021,(81255) Medical Surgical Supplies & Equipment,(id:42513) Evelina Womens Services,NHS SUPPLY CHAIN (MAIDSTONE),id:14077336 ,   8.84
Department of Health,Guys and St Thomas NHS Foundation Trust,18/06/2021,(82800) Bedding & Linen,(id:42513) Evelina Womens Services,NHS SUPPLY CHAIN (MAIDSTONE),id:14093474   ,  32.39
Department of Health,Guys and St Thomas NHS Foundation Trust,18/06/2021,(82000) Provisions & Kitchens,(id:42513) Evelina Womens Services,NHS SUPPLY CHAIN (MAIDSTONE),id:13990034  , 183.25
Department of Health,Guys and St Thomas NHS Foundation Trust,18/06/2021,(83500) Furniture & Fittings,(id:42509) Evelina Womens Services,NHS SUPPLY CHAIN (MAIDSTONE),id:14093474   , 212.88
Department of Health,Guys and St Thomas NHS Foundation Trust,25/06/2021,(50522) Unqualified Nursing Staff,(id:42509) Evelina Womens Services,GLOBE LOCUMS LTD,id:14203592, 267.32
Department of Health,Guys and St Thomas NHS Foundation Trust,18/06/2021,(81200) Medical Surgical Supplies & Equipment,(id:42509) Evelina Womens Services,OLYMPUS KEYMED,id:14073354,2419.52
Department of Health,Guys and St Thomas NHS Foundation Trust,11/06/2021,(81200) Medical Surgical Supplies & Equipment,(id:42509) Evelina Womens Services,OLYMPUS KEYMED,id:14152074,2419.52
Department of Health,Guys and St Thomas NHS Foundation Trust,25/06/2021,(81200) Medical Surgical Supplies & Equipment,(id:42509) Evelina Womens Services,BARD LTD,id:14144054 , 351.02
Department of Health,Guys and St Thomas NHS Foundation Trust,18/06/2021,(82600) Uniforms & Clothing,(id:42510) Evelina Womens Services,NHS SUPPLY CHAIN (MAIDSTONE),id:13990034    ,  12.63
Department of Health,Guys and St Thomas NHS Foundation Trust,18/06/2021,(81200) Medical Surgical Supplies & Equipment,(id:42506) Evelina Womens Services,NHS SUPPLY CHAIN (MAIDSTONE),id:14077336 ,4813.44
Department of Health,Guys and St Thomas NHS Foundation Trust,11/06/2021,(81200) Medical Surgical Supplies & Equipment,(id:42506) Evelina Womens Services,SCHULTZ MEDICAL (UK) LTD,id:14159968,3018.00
Department of Health,Guys and St Thomas NHS Foundation Trust,18/06/2021,(81700) Lab Equipment Purchase,(id:42506) Evelina Womens Services,NHS SUPPLY CHAIN (MAIDSTONE),id:14077336 , 133.31
Department of Health,Guys and St Thomas NHS Foundation Trust,18/06/2021,(81100) Dressings,(id:42506) Evelina Womens Services,NHS SUPPLY CHAIN (MAIDSTONE),id:14136574    ,  41.28
Department of Health,Guys and St Thomas NHS Foundation Trust,18/06/2021,(81550) X Ray Equipment Purchase,(id:42506) Evelina Womens Services,NHS SUPPLY CHAIN (MAIDSTONE),id:13990034    , 166.79
Department of Health,Guys and St Thomas NHS Foundation Trust,18/06/2021,(81225) Medical Surgical Supplies & Equipment,(id:42506) Evelina Womens Services,NHS SUPPLY CHAIN (MAIDSTONE),id:14077336 ,  30.37
Department of Health,Guys and St Thomas NHS Foundation Trust,25/06/2021,(84500) Establishment,(id:42486) Evelina Womens Services,CDP  PRINT MANAGEMENT,id:14178054  ,   6.20
Department of Health,Guys and St Thomas NHS Foundation Trust,18/06/2021,(81700) Lab Equipment Purchase,(id:42486) Evelina Womens Services,NHS SUPPLY CHAIN (MAIDSTONE),id:14093474 ,   3.10
Department of Health,Guys and St Thomas NHS Foundation Trust,18/06/2021,(83400) Office Equipment,(id:42486) Evelina Womens Services,NHS SUPPLY CHAIN (MAIDSTONE),id:14093474  ,  18.48
Department of Health,Guys and St Thomas NHS Foundation Trust,18/06/2021,(81225) Medical Surgical Supplies & Equipment,(id:42486) Evelina Womens Services,NHS SUPPLY CHAIN (MAIDSTONE),id:14077336 ,   6.73
Department of Health,Guys and St Thomas NHS Foundation Trust,18/06/2021,(81225) Medical Surgical Supplies & Equipment,(id:42486) Evelina Womens Services,NHS SUPPLY CHAIN (MAIDSTONE),id:14136574 ,   6.73
Department of Health,Guys and St Thomas NHS Foundation Trust,18/06/2021,(82600) Uniforms & Clothing,(id:42486) Evelina Womens Services,NHS SUPPLY CHAIN (MAIDSTONE),id:14077336    ,  61.20
Department of Health,Guys and St Thomas NHS Foundation Trust,18/06/2021,(81100) Dressings,(id:42488) Evelina Womens Services,NHS SUPPLY CHAIN (MAIDSTONE),id:14093474    ,   7.34
Department of Health,Guys and St Thomas NHS Foundation Trust,18/06/2021,(82000) Provisions & Kitchens,(id:42491) Evelina Womens Services,NHS SUPPLY CHAIN (MAIDSTONE),id:14077336  , 135.35
Department of Health,Guys and St Thomas NHS Foundation Trust,18/06/2021,(82000) Provisions & Kitchens,(id:42491) Evelina Womens Services,NHS SUPPLY CHAIN (MAIDSTONE),id:13990034  , 205.03
Department of Health,Guys and St Thomas NHS Foundation Trust,18/06/2021,(82000) Provisions & Kitchens,(id:42491) Evelina Womens Services,NHS SUPPLY CHAIN (MAIDSTONE),id:14109556  , 194.17
Department of Health,Guys and St Thomas NHS Foundation Trust,18/06/2021,(81100) Dressings,(id:42491) Evelina Womens Services,NHS SUPPLY CHAIN (MAIDSTONE),id:14136574    , 154.59
Department of Health,Guys and St Thomas NHS Foundation Trust,18/06/2021,(81200) Medical Surgical Supplies & Equipment,(id:42491) Evelina Womens Services,NHS SUPPLY CHAIN (MAIDSTONE),id:14093474 , 892.80
Department of Health,Guys and St Thomas NHS Foundation Trust,18/06/2021,(83400) Office Equipment,(id:42492) Evelina Womens Services,NHS SUPPLY CHAIN (MAIDSTONE),id:14109556  , 710.68
Department of Health,Guys and St Thomas NHS Foundation Trust,18/06/2021,(82800) Bedding & Linen,(id:42492) Evelina Womens Services,NHS SUPPLY CHAIN (MAIDSTONE),id:14077336   , 596.48
Department of Health,Guys and St Thomas NHS Foundation Trust,18/06/2021,(81100) Dressings,(id:42492) Evelina Womens Services,365 HEALTHCARE LTD,id:14157976    , 792.00
Department of Health,Guys and St Thomas NHS Foundation Trust,18/06/2021,(81100) Dressings,(id:42492) Evelina Womens Services,SMITHS MEDICAL INTERNATIONAL LTD:69519000,id:14178275 ,1194.43
Department of Health,Guys and St Thomas NHS Foundation Trust,18/06/2021,(84500) Establishment,(id:42492) Evelina Womens Services,CDP  PRINT MANAGEMENT,id:14168715  ,1038.60
Department of Health,Guys and St Thomas NHS Foundation Trust,18/06/2021,(81200) Medical Surgical Supplies & Equipment,(id:42492) Evelina Womens Services,NHS SUPPLY CHAIN (MAIDSTONE),id:14093474 ,3264.56
Department of Health,Guys and St Thomas NHS Foundation Trust,18/06/2021,(81200) Medical Surgical Supplies & Equipment,(id:42492) Evelina Womens Services,NHS SUPPLY CHAIN (MAIDSTONE),id:14109556 ,3944.45
Department of Health,Guys and St Thomas NHS Foundation Trust,18/06/2021,(81200) Medical Surgical Supplies & Equipment,(id:42492) Evelina Womens Services,BECTON DICKINSON (CME) UK LTD,id:14179921, 673.20
Department of Health,Guys and St Thomas NHS Foundation Trust,18/06/2021,(81700) Lab Equipment Purchase,(id:42492) Evelina Womens Services,NHS SUPPLY CHAIN (MAIDSTONE),id:13990034 ,  48.17
Department of Health,Guys and St Thomas NHS Foundation Trust,18/06/2021,(82600) Uniforms & Clothing,(id:42493) Evelina Womens Services,NHS SUPPLY CHAIN (MAIDSTONE),id:13990034    ,  25.26
Department of Health,Guys and St Thomas NHS Foundation Trust,18/06/2021,(81200) Medical Surgical Supplies & Equipment,(id:42493) Evelina Womens Services,NHS SUPPLY CHAIN (MAIDSTONE),id:13990034 , 538.00
Department of Health,Guys and St Thomas NHS Foundation Trust,18/06/2021,(81200) Medical Surgical Supplies & Equipment,(id:42493) Evelina Womens Services,NHS SUPPLY CHAIN (MAIDSTONE),id:14077336 , 546.21
Department of Health,Guys and St Thomas NHS Foundation Trust,18/06/2021,(81700) Lab Equipment Purchase,(id:42493) Evelina Womens Services,NHS SUPPLY CHAIN (MAIDSTONE),id:14093474 ,  75.42
Department of Health,Guys and St Thomas NHS Foundation Trust,18/06/2021,(81700) Lab Equipment Purchase,(id:42493) Evelina Womens Services,NHS SUPPLY CHAIN (MAIDSTONE),id:14109556 ,  51.34
Department of Health,Guys and St Thomas NHS Foundation Trust,18/06/2021,(81000) Surgical Appliances,(id:42495) Evelina Womens Services,TALAR MADE ORTHOTICS LTD,id:14174349   ,  29.40
Department of Health,Guys and St Thomas NHS Foundation Trust,18/06/2021,(81275) Medical Surgical Supplies & Equipment,(id:42496) Evelina Womens Services,NHS SUPPLY CHAIN (MAIDSTONE),id:14136574 ,  11.86
Department of Health,Guys and St Thomas NHS Foundation Trust,18/06/2021,(81200) Medical Surgical Supplies & Equipment,(id:42496) Evelina Womens Services,NHS SUPPLY CHAIN (MAIDSTONE),id:14109556 ,  86.48
Department of Health,Guys and St Thomas NHS Foundation Trust,18/06/2021,(81700) Lab Equipment Purchase,(id:42496) Evelina Womens Services,NHS SUPPLY CHAIN (MAIDSTONE),id:14109556 , 180.17
Department of Health,Guys and St Thomas NHS Foundation Trust,18/06/2021,(81100) Dressings,(id:42496) Evelina Womens Services,NHS SUPPLY CHAIN (MAIDSTONE),id:13990034    ,   8.30
Department of Health,Guys and St Thomas NHS Foundation Trust,04/06/2021,(80100) Drug Costs,(id:42504) Evelina Womens Services,BOC LTD :02107500,id:14094204    ,2534.49
Department of Health,Guys and St Thomas NHS Foundation Trust,25/06/2021,(84500) Establishment,(id:42325) Evelina Central,CDP  PRINT MANAGEMENT,id:14178053,   3.10
Department of Health,Guys and St Thomas NHS Foundation Trust,18/06/2021,(82800) Bedding & Linen,(id:42331) Evelina Central,NHS SUPPLY CHAIN (MAIDSTONE),id:14136574 , 102.49
Department of Health,Guys and St Thomas NHS Foundation Trust,18/06/2021,(83400) Office Equipment,(id:42331) Evelina Central,NHS SUPPLY CHAIN (MAIDSTONE),id:14136574, 234.37
Department of Health,Guys and St Thomas NHS Foundation Trust,18/06/2021,(82700) Uniforms & Clothing,(id:42348) Evelina Central,NHS SUPPLY CHAIN (MAIDSTONE),id:14136574  ,  70.30
Department of Health,Guys and St Thomas NHS Foundation Trust,18/06/2021,(82600) Uniforms & Clothing,(id:42348) Evelina Central,NHS SUPPLY CHAIN (MAIDSTONE),id:14093474  ,  50.91
Department of Health,Guys and St Thomas NHS Foundation Trust,25/06/2021,(84500) Establishment,(id:42348) Evelina Central,CDP  PRINT MANAGEMENT,id:14178052,  12.40
Department of Health,Guys and St Thomas NHS Foundation Trust,18/06/2021,(81200) Medical Surgical Supplies & Equipment,(id:42348) Evelina Central,NHS SUPPLY CHAIN (MAIDSTONE),id:13990034    , 471.94
Department of Health,Guys and St Thomas NHS Foundation Trust,18/06/2021,(82000) Provisions & Kitchens,(id:42319) Evelina Central,NHS SUPPLY CHAIN (MAIDSTONE),id:14109556,   9.12
Department of Health,Guys and St Thomas NHS Foundation Trust,18/06/2021,(89570) Other – Other Operating Expenditure,(id:2709419) Evelina Central,ARJO UK LIMITED,id:14175094 , 890.40
Department of Health,Guys and St Thomas NHS Foundation Trust,25/06/2021,(84500) Establishment,(id:42316) Evelina Central,CDP  PRINT MANAGEMENT,id:14178052, 341.00
Department of Health,Guys and St Thomas NHS Foundation Trust,25/06/2021,(89595) Non-Healthcare from Foundation Trusts,(id:42316) Evelina Central,GREAT ORMOND STREET HOSPITAL FOR CHILDREN NHS FOUNDATION TRUST,id:4815589 ,1685.15
Department of Health,Guys and St Thomas NHS Foundation Trust,18/06/2021,(55092) Admin & Clerical,(id:42316) Evelina Central,ALLEN LANE,id:14183123   ,4797.00
Department of Health,Guys and St Thomas NHS Foundation Trust,18/06/2021,(81225) Medical Surgical Supplies & Equipment,(id:590444) Evelina Community Services,SONOVA UK LTD,id:14174367  , 595.70
Department of Health,Guys and St Thomas NHS Foundation Trust,18/06/2021,(81200) Medical Surgical Supplies & Equipment,(id:590444) Evelina Community Services,NHS SUPPLY CHAIN (MAIDSTONE),id:14077336  , 114.00
Department of Health,Guys and St Thomas NHS Foundation Trust,18/06/2021,(82800) Bedding & Linen,(id:590444) Evelina Community Services,NHS SUPPLY CHAIN (MAIDSTONE),id:14077336    ,  13.46
Department of Health,Guys and St Thomas NHS Foundation Trust,25/06/2021,(84200) Rental under Operating Lease,(id:590450) Evelina Community Services,MARSH LTD,id:14199548,  86.00
Department of Health,Guys and St Thomas NHS Foundation Trust,25/06/2021,(81225) Medical Surgical Supplies & Equipment,(id:590450) Evelina Community Services,R82 UK LTD,id:14183659,1719.60
Department of Health,Guys and St Thomas NHS Foundation Trust,25/06/2021,(84200) Rental under Operating Lease,(id:590549) Evelina Community Services,MARSH LTD,id:14199548,  86.00
Department of Health,Guys and St Thomas NHS Foundation Trust,15/06/2021,(53062) Speech Therapists,(id:590451) Evelina Community Services,PRICEWATERHOUSECOOPERS LLP,id:14174600    ,9791.37
Department of Health,Guys and St Thomas NHS Foundation Trust,25/06/2021,(83400) Office Equipment,(id:590539) Evelina Community Services,BASELINE TECHNOLOGIES LTD,id:14115307 ,1238.40
Department of Health,Guys and St Thomas NHS Foundation Trust,04/06/2021,(50562) Qualified Nursing Staff,(id:590539) Evelina Community Services,MSI GROUP LTD,id:14149237 ,1251.36
Department of Health,Guys and St Thomas NHS Foundation Trust,18/06/2021,(50562) Qualified Nursing Staff,(id:590540) Evelina Community Services,ARTHUR RAI MEDICAL SERVICES LTD,id:14180574   , 790.20
Department of Health,Guys and St Thomas NHS Foundation Trust,18/06/2021,(81200) Medical Surgical Supplies & Equipment,(id:2356419) Evelina Medicine & Neonatology,NHS SUPPLY CHAIN (MAIDSTONE),id:13990034  , 363.09
Department of Health,Guys and St Thomas NHS Foundation Trust,18/06/2021,(81200) Medical Surgical Supplies & Equipment,(id:2356419) Evelina Medicine & Neonatology,NHS SUPPLY CHAIN (MAIDSTONE),id:14109556  ,3008.80
Department of Health,Guys and St Thomas NHS Foundation Trust,18/06/2021,(81200) Medical Surgical Supplies & Equipment,(id:42349) Evelina Medicine & Neonatology,NHS SUPPLY CHAIN (MAIDSTONE),id:14136574    ,  14.76
Department of Health,Guys and St Thomas NHS Foundation Trust,18/06/2021,(81200) Medical Surgical Supplies & Equipment,(id:42349) Evelina Medicine & Neonatology,NHS SUPPLY CHAIN (MAIDSTONE),id:14077336    ,  67.56
Department of Health,Guys and St Thomas NHS Foundation Trust,18/06/2021,(81200) Medical Surgical Supplies & Equipment,(id:42349) Evelina Medicine & Neonatology,NHS SUPPLY CHAIN (MAIDSTONE),id:13990034    , 240.00
Department of Health,Guys and St Thomas NHS Foundation Trust,04/06/2021,(81400) Medical Surgical Supplies & Equipment,(id:42349) Evelina Medicine & Neonatology,NHS SUPPLY CHAIN ( CAPITAL FUND ONLY),id:14148839,6849.16
Department of Health,Guys and St Thomas NHS Foundation Trust,18/06/2021,(81230) Medical Surgical Supplies & Equipment,(id:42349) Evelina Medicine & Neonatology,NHS SUPPLY CHAIN (MAIDSTONE),id:14136574    ,  19.32
Department of Health,Guys and St Thomas NHS Foundation Trust,18/06/2021,(82800) Bedding & Linen,(id:42349) Evelina Medicine & Neonatology,NHS SUPPLY CHAIN (MAIDSTONE),id:13990034 , 379.01
Department of Health,Guys and St Thomas NHS Foundation Trust,18/06/2021,(81000) Surgical Appliances,(id:42350) Evelina Medicine & Neonatology,TALAR MADE ORTHOTICS LTD,id:14172268 ,  29.40
Department of Health,Guys and St Thomas NHS Foundation Trust,18/06/2021,(81100) Dressings,(id:42350) Evelina Medicine & Neonatology,NHS SUPPLY CHAIN (MAIDSTONE),id:14109556  ,   2.22
Department of Health,Guys and St Thomas NHS Foundation Trust,25/06/2021,(81225) Medical Surgical Supplies & Equipment,(id:42336) Evelina Medicine & Neonatology,GSTT PROCUREMENT CARD,id:14203742 , 134.99
Department of Health,Guys and St Thomas NHS Foundation Trust,04/06/2021,(81200) Medical Surgical Supplies & Equipment,(id:817420) Evelina Medicine & Neonatology,RADIOMETER LTD,id:14147294  ,1195.50
Department of Health,Guys and St Thomas NHS Foundation Trust,04/06/2021,(81200) Medical Surgical Supplies & Equipment,(id:817420) Evelina Medicine & Neonatology,UNIMED ELECTRODE SUPPLIES,id:14118555 ,1377.66
Department of Health,Guys and St Thomas NHS Foundation Trust,25/06/2021,(81275) Medical Surgical Supplies & Equipment,(id:817420) Evelina Medicine & Neonatology,RADIOMETER LTD,id:14202760  ,4383.96
Department of Health,Guys and St Thomas NHS Foundation Trust,16/06/2021,(81275) Medical Surgical Supplies & Equipment,(id:42335) Evelina Medicine & Neonatology,AMPLEXA GENETICS A/S,id:13890995  ,4300.00
Department of Health,Guys and St Thomas NHS Foundation Trust,16/06/2021,(81275) Medical Surgical Supplies & Equipment,(id:42335) Evelina Medicine & Neonatology,AMPLEXA GENETICS A/S,id:14158174  ,1800.00
Department of Health,Guys and St Thomas NHS Foundation Trust,11/06/2021,(84656) Establishment,(id:42335) Evelina Medicine & Neonatology,DICT8 LIMITED,id:14160690   ,6365.04
Department of Health,Guys and St Thomas NHS Foundation Trust,18/06/2021,(83640) IT Costs,(id:42335) Evelina Medicine & Neonatology,CONSULTANT CONNECT LIMITED,id:13545899,3000.00
Department of Health,Guys and St Thomas NHS Foundation Trust,11/06/2021,(81000) Surgical Appliances,(id:42335) Evelina Medicine & Neonatology,JOHN FLORENCE LTD,id:14159873   , 790.04
Department of Health,Guys and St Thomas NHS Foundation Trust,18/06/2021,(82700) Uniforms & Clothing,(id:42327) Evelina Medicine & Neonatology,NHS SUPPLY CHAIN (MAIDSTONE),id:14093474  ,  46.58
Department of Health,Guys and St Thomas NHS Foundation Trust,18/06/2021,(81100) Dressings,(id:42327) Evelina Medicine & Neonatology,NHS SUPPLY CHAIN (MAIDSTONE),id:14109556  , 467.71
Department of Health,Guys and St Thomas NHS Foundation Trust,18/06/2021,(81100) Dressings,(id:42327) Evelina Medicine & Neonatology,NHS SUPPLY CHAIN (MAIDSTONE),id:14077336  , 321.96
Department of Health,Guys and St Thomas NHS Foundation Trust,18/06/2021,(83400) Office Equipment,(id:42327) Evelina Medicine & Neonatology,NHS SUPPLY CHAIN (MAIDSTONE),id:14077336, 337.57
Department of Health,Guys and St Thomas NHS Foundation Trust,04/06/2021,(81200) Medical Surgical Supplies & Equipment,(id:1196420) Evelina Medicine & Neonatology,INSULET INTERNATIONAL LTD,id:14118936, 712.08
Department of Health,Guys and St Thomas NHS Foundation Trust,25/06/2021,(81200) Medical Surgical Supplies & Equipment,(id:1196420) Evelina Medicine & Neonatology,DEXCOM INTERNATIONAL LTD,id:14193140 , 793.50
Department of Health,Guys and St Thomas NHS Foundation Trust,18/06/2021,(81200) Medical Surgical Supplies & Equipment,(id:3736419) Evelina Medicine & Neonatology,NHS SUPPLY CHAIN (MAIDSTONE),id:14093474  ,   5.76
Department of Health,Guys and St Thomas NHS Foundation Trust,18/06/2021,(81200) Medical Surgical Supplies & Equipment,(id:2496419) Evelina Medicine & Neonatology,NHS SUPPLY CHAIN (MAIDSTONE),id:14077336  ,1293.30
Department of Health,Guys and St Thomas NHS Foundation Trust,11/06/2021,(81200) Medical Surgical Supplies & Equipment,(id:2496419) Evelina Medicine & Neonatology,INTUS HEALTHCARE LTD,id:14158008,3002.40
Department of Health,Guys and St Thomas NHS Foundation Trust,18/06/2021,(83400) Office Equipment,(id:2496419) Evelina Medicine & Neonatology,NHS SUPPLY CHAIN (MAIDSTONE),id:13990034   ,  20.76
Department of Health,Guys and St Thomas NHS Foundation Trust,18/06/2021,(82800) Bedding & Linen,(id:2496419) Evelina Medicine & Neonatology,NHS SUPPLY CHAIN (MAIDSTONE),id:14109556    ,  25.86
Department of Health,Guys and St Thomas NHS Foundation Trust,18/06/2021,(82000) Provisions & Kitchens,(id:2496419) Evelina Medicine & Neonatology,NHS SUPPLY CHAIN (MAIDSTONE),id:14109556   ,  37.74
Department of Health,Guys and St Thomas NHS Foundation Trust,18/06/2021,(82700) Uniforms & Clothing,(id:2496419) Evelina Medicine & Neonatology,NHS SUPPLY CHAIN (MAIDSTONE),id:14077336,   3.24
Department of Health,Guys and St Thomas NHS Foundation Trust,04/06/2021,(50552) Qualified Nursing Staff,(id:41874) Evelina Medicine & Neonatology,CONTINENTAL NURSE LTD,id:14142774,2098.30
Department of Health,Guys and St Thomas NHS Foundation Trust,18/06/2021,(81200) Medical Surgical Supplies & Equipment,(id:41874) Evelina Medicine & Neonatology,NHS SUPPLY CHAIN (MAIDSTONE),id:14093474    ,  30.44
Department of Health,Guys and St Thomas NHS Foundation Trust,18/06/2021,(81700) Lab Equipment Purchase,(id:41874) Evelina Medicine & Neonatology,NHS SUPPLY CHAIN (MAIDSTONE),id:13990034    ,   9.77
Department of Health,Guys and St Thomas NHS Foundation Trust,25/06/2021,(84500) Establishment,(id:41874) Evelina Medicine & Neonatology,CDP  PRINT MANAGEMENT,id:14196250, 750.00
Department of Health,Guys and St Thomas NHS Foundation Trust,11/06/2021,(89595) Non-Healthcare from Foundation Trusts,(id:42326) Evelina Medicine & Neonatology,SHEFFIELD TEACHING HOSPITALS NHS FOUNDATION TRUST,id:13306937   ,-945.00
Department of Health,Guys and St Thomas NHS Foundation Trust,18/06/2021,(89595) Non-Healthcare from Foundation Trusts,(id:42326) Evelina Medicine & Neonatology,GREAT ORMOND STREET HOSPITAL FOR CHILDREN NHS FOUNDATION TRUST,id:13226614,2369.47
Department of Health,Guys and St Thomas NHS Foundation Trust,25/06/2021,(50552) Qualified Nursing Staff,(id:2495419) Evelina Medicine & Neonatology,MSI GROUP LTD,id:14203562 , 304.08
Department of Health,Guys and St Thomas NHS Foundation Trust,11/06/2021,(83610) IT Costs,(id:2495419) Evelina Medicine & Neonatology,OFFICE DEPOT UK LTD,id:14114889, 528.00
Department of Health,Guys and St Thomas NHS Foundation Trust,18/06/2021,(81100) Dressings,(id:42323) Evelina Medicine & Neonatology,NHS SUPPLY CHAIN (MAIDSTONE),id:14109556  ,  20.99
Department of Health,Guys and St Thomas NHS Foundation Trust,18/06/2021,(81700) Lab Equipment Purchase,(id:42323) Evelina Medicine & Neonatology,NHS SUPPLY CHAIN (MAIDSTONE),id:13990034    ,  27.63
Department of Health,Guys and St Thomas NHS Foundation Trust,18/06/2021,(81200) Medical Surgical Supplies & Equipment,(id:42323) Evelina Medicine & Neonatology,NHS SUPPLY CHAIN (MAIDSTONE),id:14136574    ,  49.47
Department of Health,Guys and St Thomas NHS Foundation Trust,18/06/2021,(82800) Bedding & Linen,(id:42315) Evelina Medicine & Neonatology,NHS SUPPLY CHAIN (MAIDSTONE),id:14136574 ,  49.18
Department of Health,Guys and St Thomas NHS Foundation Trust,18/06/2021,(81100) Dressings,(id:42315) Evelina Medicine & Neonatology,NHS SUPPLY CHAIN (MAIDSTONE),id:14136574  , 460.76
Department of Health,Guys and St Thomas NHS Foundation Trust,18/06/2021,(81100) Dressings,(id:42315) Evelina Medicine & Neonatology,NHS SUPPLY CHAIN (MAIDSTONE),id:14077336  , 434.54
Department of Health,Guys and St Thomas NHS Foundation Trust,18/06/2021,(81200) Medical Surgical Supplies & Equipment,(id:42315) Evelina Medicine & Neonatology,NHS SUPPLY CHAIN (MAIDSTONE),id:13990034    ,  94.84
Department of Health,Guys and St Thomas NHS Foundation Trust,18/06/2021,(83400) Office Equipment,(id:42315) Evelina Medicine & Neonatology,NHS SUPPLY CHAIN (MAIDSTONE),id:14136574, 167.36
Department of Health,Guys and St Thomas NHS Foundation Trust,25/06/2021,(89270) Establishment,(id:42058) Evelina Medicine & Neonatology,GSTT PROCUREMENT CARD,id:14203742, 115.00
Department of Health,Guys and St Thomas NHS Foundation Trust,25/06/2021,(55072) Admin & Clerical,(id:42058) Evelina Medicine & Neonatology,DICT8 LIMITED,id:14202814, 659.40
Department of Health,Guys and St Thomas NHS Foundation Trust,25/06/2021,(84500) Establishment,(id:2499419) Evelina Surgery Theatres & PICU,CDP  PRINT MANAGEMENT,id:14178056  ,  98.80
Department of Health,Guys and St Thomas NHS Foundation Trust,18/06/2021,(84500) Establishment,(id:42312) Evelina Surgery Theatres & PICU,CLARITY TRAVEL MANAGEMENT,id:14178078, 229.96
Department of Health,Guys and St Thomas NHS Foundation Trust,25/06/2021,(81200) Medical Surgical Supplies & Equipment,(id:42312) Evelina Surgery Theatres & PICU,WL GORE & ASSOCIATES (UK) LTD,id:14161895  ,1188.00
Department of Health,Guys and St Thomas NHS Foundation Trust,18/06/2021,(81200) Medical Surgical Supplies & Equipment,(id:42312) Evelina Surgery Theatres & PICU,MEDTRONIC LTD,id:14143929   ,6960.00
Department of Health,Guys and St Thomas NHS Foundation Trust,18/06/2021,(81230) Medical Surgical Supplies & Equipment,(id:42312) Evelina Surgery Theatres & PICU,NHS SUPPLY CHAIN (MAIDSTONE),id:14077336   , 806.54
Department of Health,Guys and St Thomas NHS Foundation Trust,18/06/2021,(81230) Medical Surgical Supplies & Equipment,(id:42312) Evelina Surgery Theatres & PICU,NHS SUPPLY CHAIN (MAIDSTONE),id:14109556   , 554.72
Department of Health,Guys and St Thomas NHS Foundation Trust,18/06/2021,(81100) Dressings,(id:42312) Evelina Surgery Theatres & PICU,NHS SUPPLY CHAIN (MAIDSTONE),id:14093474 , 322.56
Department of Health,Guys and St Thomas NHS Foundation Trust,18/06/2021,(82700) Uniforms & Clothing,(id:4082419) Evelina Surgery Theatres & PICU,NHS SUPPLY CHAIN (MAIDSTONE),id:14093474    ,   9.15
Department of Health,Guys and St Thomas NHS Foundation Trust,18/06/2021,(82700) Uniforms & Clothing,(id:4082419) Evelina Surgery Theatres & PICU,NHS SUPPLY CHAIN (MAIDSTONE),id:14136574    ,  16.21
Department of Health,Guys and St Thomas NHS Foundation Trust,18/06/2021,(82000) Provisions & Kitchens,(id:4082419) Evelina Surgery Theatres & PICU,NHS SUPPLY CHAIN (MAIDSTONE),id:14077336  , 117.62
Department of Health,Guys and St Thomas NHS Foundation Trust,18/06/2021,(81100) Dressings,(id:4082419) Evelina Surgery Theatres & PICU,NHS SUPPLY CHAIN (MAIDSTONE),id:14077336    , 594.83
Department of Health,Guys and St Thomas NHS Foundation Trust,18/06/2021,(81100) Dressings,(id:4082419) Evelina Surgery Theatres & PICU,NHS SUPPLY CHAIN (MAIDSTONE),id:14093474    , 100.87
Department of Health,Guys and St Thomas NHS Foundation Trust,18/06/2021,(82600) Uniforms & Clothing,(id:41914) Evelina Surgery Theatres & PICU,NHS SUPPLY CHAIN (MAIDSTONE),id:14077336 , 158.69
Department of Health,Guys and St Thomas NHS Foundation Trust,18/06/2021,(82800) Bedding & Linen,(id:41914) Evelina Surgery Theatres & PICU,NHS SUPPLY CHAIN (MAIDSTONE),id:14093474, 274.62
Department of Health,Guys and St Thomas NHS Foundation Trust,25/06/2021,(50562) Qualified Nursing Staff,(id:41914) Evelina Surgery Theatres & PICU,MEDICSPRO LTD,id:14203530  ,1110.54
Department of Health,Guys and St Thomas NHS Foundation Trust,18/06/2021,(81225) Medical Surgical Supplies & Equipment,(id:41914) Evelina Surgery Theatres & PICU,NHS SUPPLY CHAIN (MAIDSTONE),id:14077336   ,  66.09
Department of Health,Guys and St Thomas NHS Foundation Trust,18/06/2021,(82600) Uniforms & Clothing,(id:41910) Evelina Surgery Theatres & PICU,NHS SUPPLY CHAIN (MAIDSTONE),id:14109556 ,   7.92
Department of Health,Guys and St Thomas NHS Foundation Trust,11/06/2021,(81200) Medical Surgical Supplies & Equipment,(id:1196421) Evelina Surgery Theatres & PICU,JOHNSON & JOHNSON MEDICAL LTD,id:14114959, 902.58
Department of Health,Guys and St Thomas NHS Foundation Trust,18/06/2021,(81200) Medical Surgical Supplies & Equipment,(id:1196421) Evelina Surgery Theatres & PICU,NUVASIVE UK LTD,id:14180155    ,    10485.60
Department of Health,Guys and St Thomas NHS Foundation Trust,18/06/2021,(82800) Bedding & Linen,(id:1196421) Evelina Surgery Theatres & PICU,NHS SUPPLY CHAIN (MAIDSTONE),id:14093474   , 258.16
Department of Health,Guys and St Thomas NHS Foundation Trust,18/06/2021,(81700) Lab Equipment Purchase,(id:2498419) Evelina Surgery Theatres & PICU,NHS SUPPLY CHAIN (MAIDSTONE),id:14109556 ,  33.12
Department of Health,Guys and St Thomas NHS Foundation Trust,11/06/2021,(81200) Medical Surgical Supplies & Equipment,(id:431409) Evelina Surgery Theatres & PICU,ORTHOPEDIATRICS EU LIMITED,id:14165176    ,3407.40
Department of Health,Guys and St Thomas NHS Foundation Trust,11/06/2021,(81200) Medical Surgical Supplies & Equipment,(id:431409) Evelina Surgery Theatres & PICU,JOHNSON & JOHNSON MEDICAL LTD,id:14137598 ,1240.74
Department of Health,Guys and St Thomas NHS Foundation Trust,11/06/2021,(81200) Medical Surgical Supplies & Equipment,(id:431409) Evelina Surgery Theatres & PICU,ORTHOFIX LTD,id:14158634   ,-920.45
Department of Health,Guys and St Thomas NHS Foundation Trust,11/06/2021,(81000) Surgical Appliances,(id:431409) Evelina Surgery Theatres & PICU,JOHN FLORENCE LTD,id:14159863 , 857.96
Department of Health,Guys and St Thomas NHS Foundation Trust,11/06/2021,(81000) Surgical Appliances,(id:431409) Evelina Surgery Theatres & PICU,JOHN FLORENCE LTD,id:14159864 , 997.55
Department of Health,Guys and St Thomas NHS Foundation Trust,23/06/2021,(81000) Surgical Appliances,(id:431409) Evelina Surgery Theatres & PICU,JOHN FLORENCE LTD,id:14195799 , 830.20
Department of Health,Guys and St Thomas NHS Foundation Trust,23/06/2021,(81000) Surgical Appliances,(id:431409) Evelina Surgery Theatres & PICU,JOHN FLORENCE LTD,id:14195803 ,1012.02
Department of Health,Guys and St Thomas NHS Foundation Trust,25/06/2021,(81000) Surgical Appliances,(id:431409) Evelina Surgery Theatres & PICU,TALAR MADE ORTHOTICS LTD,id:14193180    , 190.00
Department of Health,Guys and St Thomas NHS Foundation Trust,18/06/2021,(81200) Medical Surgical Supplies & Equipment,(id:468410) Evelina Surgery Theatres & PICU,NHS SUPPLY CHAIN (MAIDSTONE),id:14093474  ,   1.46
Department of Health,Guys and St Thomas NHS Foundation Trust,18/06/2021,(81100) Dressings,(id:468410) Evelina Surgery Theatres & PICU,NHS SUPPLY CHAIN (MAIDSTONE),id:14109556, 128.29
Department of Health,Guys and St Thomas NHS Foundation Trust,25/06/2021,(81200) Medical Surgical Supplies & Equipment,(id:468409) Evelina Surgery Theatres & PICU,T J SMITH & NEPHEW LTD,id:14197474   , 874.66
Department of Health,Guys and St Thomas NHS Foundation Trust,25/06/2021,(84500) Establishment,(id:2495421) Evelina Surgery Theatres & PICU,CDP  PRINT MANAGEMENT,id:14178052  ,  16.00
Department of Health,Guys and St Thomas NHS Foundation Trust,18/06/2021,(81200) Medical Surgical Supplies & Equipment,(id:42347) Evelina Surgery Theatres & PICU,NHS SUPPLY CHAIN (MAIDSTONE),id:13990034   ,6097.74
Department of Health,Guys and St Thomas NHS Foundation Trust,18/06/2021,(81200) Medical Surgical Supplies & Equipment,(id:42347) Evelina Surgery Theatres & PICU,GEISTLICH SONS LTD,id:14183218   , 546.38
Department of Health,Guys and St Thomas NHS Foundation Trust,25/06/2021,(81200) Medical Surgical Supplies & Equipment,(id:42347) Evelina Surgery Theatres & PICU,FRESENIUS KABI LTD,id:14152459   ,1206.58
Department of Health,Guys and St Thomas NHS Foundation Trust,25/06/2021,(81200) Medical Surgical Supplies & Equipment,(id:42347) Evelina Surgery Theatres & PICU,FRESENIUS KABI LTD,id:14152460   , 775.66
Department of Health,Guys and St Thomas NHS Foundation Trust,18/06/2021,(82800) Bedding & Linen,(id:42339) Evelina Surgery Theatres & PICU,NHS SUPPLY CHAIN (MAIDSTONE),id:14093474, 154.09
Department of Health,Guys and St Thomas NHS Foundation Trust,25/06/2021,(84500) Establishment,(id:42339) Evelina Surgery Theatres & PICU,CDP  PRINT MANAGEMENT,id:14178053    ,   3.10
Department of Health,Guys and St Thomas NHS Foundation Trust,11/06/2021,(81400) Medical Surgical Supplies & Equipment,(id:42339) Evelina Surgery Theatres & PICU,AQUILANT CRITICAL CARE,id:14165164    ,1484.00
Department of Health,Guys and St Thomas NHS Foundation Trust,18/06/2021,(80150) Drug Costs,(id:42339) Evelina Surgery Theatres & PICU,NHS SUPPLY CHAIN (MAIDSTONE),id:14077336, 302.40
Department of Health,Guys and St Thomas NHS Foundation Trust,18/06/2021,(81225) Medical Surgical Supplies & Equipment,(id:42339) Evelina Surgery Theatres & PICU,NHS SUPPLY CHAIN (MAIDSTONE),id:14109556   ,  73.68
Department of Health,Guys and St Thomas NHS Foundation Trust,18/06/2021,(81700) Lab Equipment Purchase,(id:42339) Evelina Surgery Theatres & PICU,NHS SUPPLY CHAIN (MAIDSTONE),id:14136574   ,  75.42
Department of Health,Guys and St Thomas NHS Foundation Trust,25/06/2021,(84500) Establishment,(id:42399) Evelina R&D and Charity,CDP  PRINT MANAGEMENT,id:14178054  ,  15.50
Department of Health,Guys and St Thomas NHS Foundation Trust,24/06/2021,(81200) Medical Surgical Supplies & Equipment,(id:3951419) Evelina R&D and Charity,GSTT PROCUREMENT CARD,id:13944835 ,  88.12
Department of Health,Guys and St Thomas NHS Foundation Trust,18/06/2021,(81200) Medical Surgical Supplies & Equipment,(id:2626419) Evelina R&D and Charity,NHS SUPPLY CHAIN (MAIDSTONE),id:14109556    ,   7.30
Department of Health,Guys and St Thomas NHS Foundation Trust,18/06/2021,(81700) Lab Equipment Purchase,(id:2626419) Evelina R&D and Charity,NHS SUPPLY CHAIN (MAIDSTONE),id:14109556    ,   9.48
Department of Health,Guys and St Thomas NHS Foundation Trust,25/06/2021,(84200) Rental under Operating Lease,(id:42994) Evelina R&D and Charity,MARSH LTD,id:14199548    , 172.02
Department of Health,Guys and St Thomas NHS Foundation Trust,18/06/2021,(82800) Bedding & Linen,(id:2634419) Evelina R&D and Charity,NHS SUPPLY CHAIN (MAIDSTONE),id:14136574 ,  40.20
Department of Health,Guys and St Thomas NHS Foundation Trust,18/06/2021,(81900) Lab Equipment Purchase,(id:111406) Pathology,VIAPATH SERVICES LLP,id:14180726  ,    27543.83
Department of Health,Guys and St Thomas NHS Foundation Trust,18/06/2021,(81900) Lab Equipment Purchase,(id:111406) Pathology,VIAPATH ANALYTICS LLP,id:14180729 ,    52178.58
Department of Health,Guys and St Thomas NHS Foundation Trust,18/06/2021,(81900) Lab Equipment Purchase,(id:111406) Pathology,VIAPATH ANALYTICS LLP,id:14180724 ,  2212813.58
Department of Health,Guys and St Thomas NHS Foundation Trust,25/06/2021,(84500) Establishment,(id:42299) Cardiovascular Services,CDP  PRINT MANAGEMENT,id:14178054  ,   7.20
Department of Health,Guys and St Thomas NHS Foundation Trust,04/06/2021,(81230) Medical Surgical Supplies & Equipment,(id:639421) Cardiovascular Services,COOK UK LTD,id:14110779  , 660.00
Department of Health,Guys and St Thomas NHS Foundation Trust,25/06/2021,(81250) Medical Surgical Supplies & Equipment,(id:639421) Cardiovascular Services,COOK UK LTD,id:14199397  ,    -3960.00
Department of Health,Guys and St Thomas NHS Foundation Trust,25/06/2021,(81250) Medical Surgical Supplies & Equipment,(id:639421) Cardiovascular Services,COOK UK LTD,id:14094129  ,    19200.00
Department of Health,Guys and St Thomas NHS Foundation Trust,25/06/2021,(81250) Medical Surgical Supplies & Equipment,(id:639421) Cardiovascular Services,COOK UK LTD,id:14199194  ,   -19200.00
Department of Health,Guys and St Thomas NHS Foundation Trust,04/06/2021,(81200) Medical Surgical Supplies & Equipment,(id:639421) Cardiovascular Services,COOK UK LTD,id:13887732  ,3960.00
Department of Health,Guys and St Thomas NHS Foundation Trust,18/06/2021,(81200) Medical Surgical Supplies & Equipment,(id:639421) Cardiovascular Services,NHS SUPPLY CHAIN (MAIDSTONE),id:14077336, 546.00
Department of Health,Guys and St Thomas NHS Foundation Trust,18/06/2021,(81200) Medical Surgical Supplies & Equipment,(id:639421) Cardiovascular Services,NHS SUPPLY CHAIN (MAIDSTONE),id:14093474,1198.80
Department of Health,Guys and St Thomas NHS Foundation Trust,18/06/2021,(81200) Medical Surgical Supplies & Equipment,(id:639421) Cardiovascular Services,VASCULAR PERSPECTIVES LTD,id:14179870   ,1140.00
Department of Health,Guys and St Thomas NHS Foundation Trust,18/06/2021,(81200) Medical Surgical Supplies & Equipment,(id:639421) Cardiovascular Services,COOK UK LTD,id:13752381  ,1980.00
Department of Health,Guys and St Thomas NHS Foundation Trust,18/06/2021,(81200) Medical Surgical Supplies & Equipment,(id:639421) Cardiovascular Services,NHS SUPPLY CHAIN (MAIDSTONE),id:13990034, 240.00
Department of Health,Guys and St Thomas NHS Foundation Trust,11/06/2021,(81200) Medical Surgical Supplies & Equipment,(id:639421) Cardiovascular Services,ABBOTT MEDICAL UK LTD,id:14131814  ,1332.00
Department of Health,Guys and St Thomas NHS Foundation Trust,11/06/2021,(81200) Medical Surgical Supplies & Equipment,(id:639421) Cardiovascular Services,WL GORE & ASSOCIATES (UK) LTD,id:14118856    ,    10800.00
Department of Health,Guys and St Thomas NHS Foundation Trust,18/06/2021,(81100) Dressings,(id:780420) Cardiovascular Services,NHS SUPPLY CHAIN (MAIDSTONE),id:14093474   ,3198.92
Department of Health,Guys and St Thomas NHS Foundation Trust,04/06/2021,(81100) Dressings,(id:780420) Cardiovascular Services,KCI MEDICAL LTD,id:14150975 , 733.97
Department of Health,Guys and St Thomas NHS Foundation Trust,18/06/2021,(81225) Medical Surgical Supplies & Equipment,(id:780420) Cardiovascular Services,NHS SUPPLY CHAIN (MAIDSTONE),id:14136574,   4.85
Department of Health,Guys and St Thomas NHS Foundation Trust,18/06/2021,(81225) Medical Surgical Supplies & Equipment,(id:780420) Cardiovascular Services,NHS SUPPLY CHAIN (MAIDSTONE),id:14077336,   9.70
Department of Health,Guys and St Thomas NHS Foundation Trust,18/06/2021,(81200) Medical Surgical Supplies & Equipment,(id:780420) Cardiovascular Services,NHS SUPPLY CHAIN (MAIDSTONE),id:14136574, 914.64
Department of Health,Guys and St Thomas NHS Foundation Trust,18/06/2021,(81700) Lab Equipment Purchase,(id:780420) Cardiovascular Services,NHS SUPPLY CHAIN (MAIDSTONE),id:13990034,  99.20
Department of Health,Guys and St Thomas NHS Foundation Trust,04/06/2021,(50552) Qualified Nursing Staff,(id:780420) Cardiovascular Services,CARE PROVIDERS HEALTHCARE,id:14149326  , 339.93
Department of Health,Guys and St Thomas NHS Foundation Trust,18/06/2021,(81200) Medical Surgical Supplies & Equipment,(id:41952) Cardiovascular Services,NHS SUPPLY CHAIN (MAIDSTONE),id:14109556 , 122.92
Department of Health,Guys and St Thomas NHS Foundation Trust,18/06/2021,(81200) Medical Surgical Supplies & Equipment,(id:41952) Cardiovascular Services,NHS SUPPLY CHAIN (MAIDSTONE),id:13990034 ,   2.70
Department of Health,Guys and St Thomas NHS Foundation Trust,18/06/2021,(82800) Bedding & Linen,(id:41952) Cardiovascular Services,NHS SUPPLY CHAIN (MAIDSTONE),id:14093474   , 108.60
Department of Health,Guys and St Thomas NHS Foundation Trust,18/06/2021,(81100) Dressings,(id:41952) Cardiovascular Services,NHS SUPPLY CHAIN (MAIDSTONE),id:14093474    ,1552.22
Department of Health,Guys and St Thomas NHS Foundation Trust,18/06/2021,(83400) Office Equipment,(id:41952) Cardiovascular Services,NHS SUPPLY CHAIN (MAIDSTONE),id:14077336  ,  71.96
Department of Health,Guys and St Thomas NHS Foundation Trust,25/06/2021,(84500) Establishment,(id:41950) Cardiovascular Services,CDP  PRINT MANAGEMENT,id:14178053  ,   6.70
Department of Health,Guys and St Thomas NHS Foundation Trust,18/06/2021,(81200) Medical Surgical Supplies & Equipment,(id:41950) Cardiovascular Services,NHS SUPPLY CHAIN (MAIDSTONE),id:13990034 ,2518.13
Department of Health,Guys and St Thomas NHS Foundation Trust,18/06/2021,(81200) Medical Surgical Supplies & Equipment,(id:41950) Cardiovascular Services,AQUILANT LTD,id:14182454  , 990.00
Department of Health,Guys and St Thomas NHS Foundation Trust,25/06/2021,(81200) Medical Surgical Supplies & Equipment,(id:41950) Cardiovascular Services,BOSTON SCIENTIFIC LTD,id:14152621   ,1074.00
Department of Health,Guys and St Thomas NHS Foundation Trust,25/06/2021,(81200) Medical Surgical Supplies & Equipment,(id:41950) Cardiovascular Services,WL GORE & ASSOCIATES (UK) LTD,id:14196139,2802.00
Department of Health,Guys and St Thomas NHS Foundation Trust,11/06/2021,(81235) Medical Surgical Supplies & Equipment,(id:41950) Cardiovascular Services,BOSTON SCIENTIFIC LTD,id:14134873   , 306.00
Department of Health,Guys and St Thomas NHS Foundation Trust,25/06/2021,(81000) Surgical Appliances,(id:41950) Cardiovascular Services,MEDI UK LTD,id:14193117 ,  49.38
Department of Health,Guys and St Thomas NHS Foundation Trust,18/06/2021,(81225) Medical Surgical Supplies & Equipment,(id:41950) Cardiovascular Services,NHS SUPPLY CHAIN (MAIDSTONE),id:14109556 ,  48.48
Department of Health,Guys and St Thomas NHS Foundation Trust,18/06/2021,(83400) Office Equipment,(id:41948) Cardiovascular Services,NHS SUPPLY CHAIN (MAIDSTONE),id:14136574  ,   2.88
Department of Health,Guys and St Thomas NHS Foundation Trust,25/06/2021,(80010) Drug Costs,(id:42305) Cardiovascular Services,KINGS COLLEGE LONDON:03529700,id:14104074  ,   133772.40
Department of Health,Guys and St Thomas NHS Foundation Trust,04/06/2021,(84656) Establishment,(id:42305) Cardiovascular Services,DICT8 LIMITED,id:14146654,7579.68
Department of Health,Guys and St Thomas NHS Foundation Trust,18/06/2021,(82700) Uniforms & Clothing,(id:42300) Cardiovascular Services,NHS SUPPLY CHAIN (MAIDSTONE),id:14109556    ,  79.76
Department of Health,Guys and St Thomas NHS Foundation Trust,18/06/2021,(83400) Office Equipment,(id:42300) Cardiovascular Services,NHS SUPPLY CHAIN (MAIDSTONE),id:13990034  , 200.77
Department of Health,Guys and St Thomas NHS Foundation Trust,18/06/2021,(83400) Office Equipment,(id:42300) Cardiovascular Services,NHS SUPPLY CHAIN (MAIDSTONE),id:14109556  , 207.99
Department of Health,Guys and St Thomas NHS Foundation Trust,18/06/2021,(82800) Bedding & Linen,(id:42300) Cardiovascular Services,NHS SUPPLY CHAIN (MAIDSTONE),id:13990034   , 132.80
Department of Health,Guys and St Thomas NHS Foundation Trust,18/06/2021,(82800) Bedding & Linen,(id:42300) Cardiovascular Services,NHS SUPPLY CHAIN (MAIDSTONE),id:14093474   , 111.14
Department of Health,Guys and St Thomas NHS Foundation Trust,18/06/2021,(81225) Medical Surgical Supplies & Equipment,(id:42300) Cardiovascular Services,NHS SUPPLY CHAIN (MAIDSTONE),id:14109556 ,  22.52
Department of Health,Guys and St Thomas NHS Foundation Trust,18/06/2021,(81200) Medical Surgical Supplies & Equipment,(id:42300) Cardiovascular Services,NHS SUPPLY CHAIN (MAIDSTONE),id:14077336 , 409.10
Department of Health,Guys and St Thomas NHS Foundation Trust,18/06/2021,(81200) Medical Surgical Supplies & Equipment,(id:42300) Cardiovascular Services,NHS SUPPLY CHAIN (MAIDSTONE),id:13990034 , 993.60
Department of Health,Guys and St Thomas NHS Foundation Trust,18/06/2021,(50552) Qualified Nursing Staff,(id:42300) Cardiovascular Services,CONTINENTAL NURSE LTD,id:14180544  ,1979.92
Department of Health,Guys and St Thomas NHS Foundation Trust,18/06/2021,(81700) Lab Equipment Purchase,(id:42300) Cardiovascular Services,NHS SUPPLY CHAIN (MAIDSTONE),id:13990034 ,  68.97
Department of Health,Guys and St Thomas NHS Foundation Trust,18/06/2021,(81700) Lab Equipment Purchase,(id:42300) Cardiovascular Services,NHS SUPPLY CHAIN (MAIDSTONE),id:14136574 ,  29.27
Department of Health,Guys and St Thomas NHS Foundation Trust,18/06/2021,(81700) Lab Equipment Purchase,(id:42300) Cardiovascular Services,NHS SUPPLY CHAIN (MAIDSTONE),id:14077336 , 117.45
Department of Health,Guys and St Thomas NHS Foundation Trust,18/06/2021,(81280) Medical Surgical Supplies & Equipment,(id:42302) Cardiovascular Services,NHS SUPPLY CHAIN (MAIDSTONE),id:14136574 ,   765900.00
Department of Health,Guys and St Thomas NHS Foundation Trust,18/06/2021,(81200) Medical Surgical Supplies & Equipment,(id:42302) Cardiovascular Services,TERUMO UK LTD,id:14153774 ,1080.00
Department of Health,Guys and St Thomas NHS Foundation Trust,18/06/2021,(81200) Medical Surgical Supplies & Equipment,(id:42302) Cardiovascular Services,VOLCANO EUROPE BVBA/SPRL,id:14178084, 792.00
Department of Health,Guys and St Thomas NHS Foundation Trust,25/06/2021,(81200) Medical Surgical Supplies & Equipment,(id:42302) Cardiovascular Services,VOLCANO EUROPE BVBA/SPRL,id:14196855, 540.00
Department of Health,Guys and St Thomas NHS Foundation Trust,25/06/2021,(81200) Medical Surgical Supplies & Equipment,(id:42302) Cardiovascular Services,BOSTON SCIENTIFIC LTD,id:14163793   , 990.00
Department of Health,Guys and St Thomas NHS Foundation Trust,25/06/2021,(81200) Medical Surgical Supplies & Equipment,(id:42302) Cardiovascular Services,TERUMO UK LTD,id:14197654 ,1140.00
Department of Health,Guys and St Thomas NHS Foundation Trust,25/06/2021,(81200) Medical Surgical Supplies & Equipment,(id:42302) Cardiovascular Services,VOLCANO EUROPE BVBA/SPRL,id:14196934,1620.00
Department of Health,Guys and St Thomas NHS Foundation Trust,18/06/2021,(81200) Medical Surgical Supplies & Equipment,(id:42303) Cardiovascular Services,NHS SUPPLY CHAIN (MAIDSTONE),id:14109556 ,1688.52
Department of Health,Guys and St Thomas NHS Foundation Trust,18/06/2021,(81200) Medical Surgical Supplies & Equipment,(id:42303) Cardiovascular Services,SPACELABS HEALTHCARE LTD,id:14169378,4732.68
Department of Health,Guys and St Thomas NHS Foundation Trust,15/06/2021,(51832) Physiotherapists,(id:42303) Cardiovascular Services,PRICEWATERHOUSECOOPERS LLP,id:14174621    ,1196.36
Department of Health,Guys and St Thomas NHS Foundation Trust,18/06/2021,(81200) Medical Surgical Supplies & Equipment,(id:3923419) Cardiovascular Services,NHS SUPPLY CHAIN (MAIDSTONE),id:14093474    , 349.32
Department of Health,Guys and St Thomas NHS Foundation Trust,18/06/2021,(82000) Provisions & Kitchens,(id:3923419) Cardiovascular Services,NHS SUPPLY CHAIN (MAIDSTONE),id:14136574,  18.60
Department of Health,Guys and St Thomas NHS Foundation Trust,18/06/2021,(82800) Bedding & Linen,(id:1243420) Cardiovascular Services,NHS SUPPLY CHAIN (MAIDSTONE),id:13990034 , 140.47
Department of Health,Guys and St Thomas NHS Foundation Trust,25/06/2021,(82600) Uniforms & Clothing,(id:1243419) Cardiovascular Services,WSR MEDICAL SOLUTIONS T/A ROTHBAND,id:14192574 , 683.08
Department of Health,Guys and St Thomas NHS Foundation Trust,11/06/2021,(81200) Medical Surgical Supplies & Equipment,(id:1243419) Cardiovascular Services,EVERYTHING X-RAY LTD,id:14163027  ,  23.40
Department of Health,Guys and St Thomas NHS Foundation Trust,29/06/2021,(52072) Radiographers,(id:1243419) Cardiovascular Services,PRICEWATERHOUSECOOPERS LLP,id:14213836,1155.23
Department of Health,Guys and St Thomas NHS Foundation Trust,04/06/2021,(50522) Unqualified Nursing Staff,(id:42291) Cardiovascular Services,GLOBE LOCUMS LTD,id:14149506, 222.62
Department of Health,Guys and St Thomas NHS Foundation Trust,18/06/2021,(81265) Medical Surgical Supplies & Equipment,(id:42291) Cardiovascular Services,NHS SUPPLY CHAIN (MAIDSTONE),id:14077336 , 545.08
Department of Health,Guys and St Thomas NHS Foundation Trust,18/06/2021,(82000) Provisions & Kitchens,(id:42291) Cardiovascular Services,NHS SUPPLY CHAIN (MAIDSTONE),id:13990034  , 127.96
Department of Health,Guys and St Thomas NHS Foundation Trust,18/06/2021,(82700) Uniforms & Clothing,(id:42290) Cardiovascular Services,NHS SUPPLY CHAIN (MAIDSTONE),id:14077336    ,  21.84
Department of Health,Guys and St Thomas NHS Foundation Trust,18/06/2021,(82700) Uniforms & Clothing,(id:42290) Cardiovascular Services,NHS SUPPLY CHAIN (MAIDSTONE),id:14093474    ,  84.50
Department of Health,Guys and St Thomas NHS Foundation Trust,18/06/2021,(83400) Office Equipment,(id:42290) Cardiovascular Services,NHS SUPPLY CHAIN (MAIDSTONE),id:14136574  , 134.83
Department of Health,Guys and St Thomas NHS Foundation Trust,18/06/2021,(81200) Medical Surgical Supplies & Equipment,(id:42290) Cardiovascular Services,NHS SUPPLY CHAIN (MAIDSTONE),id:14136574 , 618.51
Department of Health,Guys and St Thomas NHS Foundation Trust,18/06/2021,(81100) Dressings,(id:42290) Cardiovascular Services,NHS SUPPLY CHAIN (MAIDSTONE),id:14136574    , 128.35
Department of Health,Guys and St Thomas NHS Foundation Trust,18/06/2021,(50552) Qualified Nursing Staff,(id:42290) Cardiovascular Services,CARE PROVIDERS HEALTHCARE,id:14183155   , 609.50
Department of Health,Guys and St Thomas NHS Foundation Trust,18/06/2021,(83400) Office Equipment,(id:42298) Cardiovascular Services,NHS SUPPLY CHAIN (MAIDSTONE),id:14093474  ,   9.82
Department of Health,Guys and St Thomas NHS Foundation Trust,11/06/2021,(81200) Medical Surgical Supplies & Equipment,(id:42298) Cardiovascular Services,JOHNSON & JOHNSON MEDICAL LTD,id:14137588,5552.56
Department of Health,Guys and St Thomas NHS Foundation Trust,11/06/2021,(81200) Medical Surgical Supplies & Equipment,(id:42298) Cardiovascular Services,WERFEN LIMITED,id:14165749, 996.60
Department of Health,Guys and St Thomas NHS Foundation Trust,11/06/2021,(81200) Medical Surgical Supplies & Equipment,(id:42298) Cardiovascular Services,CARDIAC SERVICES LTD,id:14152379    ,2046.00
Department of Health,Guys and St Thomas NHS Foundation Trust,11/06/2021,(81200) Medical Surgical Supplies & Equipment,(id:42298) Cardiovascular Services,ABBOTT MEDICAL UK LTD,id:14160331   , 702.00
Department of Health,Guys and St Thomas NHS Foundation Trust,18/06/2021,(81200) Medical Surgical Supplies & Equipment,(id:42298) Cardiovascular Services,ABBOTT MEDICAL UK LTD,id:14179815   , 822.00
Department of Health,Guys and St Thomas NHS Foundation Trust,18/06/2021,(81200) Medical Surgical Supplies & Equipment,(id:42298) Cardiovascular Services,MEDTRONIC LTD,id:14143922 , 576.00
Department of Health,Guys and St Thomas NHS Foundation Trust,25/06/2021,(81200) Medical Surgical Supplies & Equipment,(id:42298) Cardiovascular Services,MEDTRONIC LTD,id:14152630 ,5640.00
Department of Health,Guys and St Thomas NHS Foundation Trust,25/06/2021,(81200) Medical Surgical Supplies & Equipment,(id:42298) Cardiovascular Services,ABBOTT MEDICAL UK LTD,id:14193288   ,1488.00
Department of Health,Guys and St Thomas NHS Foundation Trust,04/06/2021,(81200) Medical Surgical Supplies & Equipment,(id:42298) Cardiovascular Services,SPECTRANETICS UK,id:14143517   ,2880.00
Department of Health,Guys and St Thomas NHS Foundation Trust,11/06/2021,(81200) Medical Surgical Supplies & Equipment,(id:42298) Cardiovascular Services,ABBOTT MEDICAL UK LTD,id:14151840   ,4980.00
Department of Health,Guys and St Thomas NHS Foundation Trust,11/06/2021,(81200) Medical Surgical Supplies & Equipment,(id:42298) Cardiovascular Services,TELEFLEX MEDICAL,id:14137326   ,2220.00
Department of Health,Guys and St Thomas NHS Foundation Trust,11/06/2021,(81200) Medical Surgical Supplies & Equipment,(id:42298) Cardiovascular Services,AQUILANT CRITICAL CARE,id:14157034  ,2520.00
Department of Health,Guys and St Thomas NHS Foundation Trust,11/06/2021,(81200) Medical Surgical Supplies & Equipment,(id:42298) Cardiovascular Services,JOHNSON & JOHNSON MEDICAL LTD,id:14118812,1500.00
Department of Health,Guys and St Thomas NHS Foundation Trust,18/06/2021,(81100) Dressings,(id:42298) Cardiovascular Services,NHS SUPPLY CHAIN (MAIDSTONE),id:13990034    ,  96.63
Department of Health,Guys and St Thomas NHS Foundation Trust,18/06/2021,(81400) Medical Surgical Supplies & Equipment,(id:42298) Cardiovascular Services,NHS SUPPLY CHAIN (MAIDSTONE),id:14077336 , 154.87
Department of Health,Guys and St Thomas NHS Foundation Trust,18/06/2021,(81230) Medical Surgical Supplies & Equipment,(id:42298) Cardiovascular Services,ABBOTT MEDICAL UK LTD,id:14179815   , 384.00
Department of Health,Guys and St Thomas NHS Foundation Trust,18/06/2021,(82700) Uniforms & Clothing,(id:42298) Cardiovascular Services,NHS SUPPLY CHAIN (MAIDSTONE),id:13990034    ,  23.69
Department of Health,Guys and St Thomas NHS Foundation Trust,18/06/2021,(82600) Uniforms & Clothing,(id:42298) Cardiovascular Services,NHS SUPPLY CHAIN (MAIDSTONE),id:14077336    ,  91.98
Department of Health,Guys and St Thomas NHS Foundation Trust,11/06/2021,(81240) Medical Surgical Supplies & Equipment,(id:42298) Cardiovascular Services,MEDTRONIC LTD,id:14118778 ,5100.00
Department of Health,Guys and St Thomas NHS Foundation Trust,25/06/2021,(81240) Medical Surgical Supplies & Equipment,(id:42298) Cardiovascular Services,ABBOTT MEDICAL UK LTD,id:14195742   ,3286.80
Department of Health,Guys and St Thomas NHS Foundation Trust,11/06/2021,(81200) Medical Surgical Supplies & Equipment,(id:42292) Cardiovascular Services,TERUMO UK LTD,id:14153714 , 672.00
Department of Health,Guys and St Thomas NHS Foundation Trust,18/06/2021,(81200) Medical Surgical Supplies & Equipment,(id:42292) Cardiovascular Services,NHS SUPPLY CHAIN (MAIDSTONE),id:13990034 ,  90.99
Department of Health,Guys and St Thomas NHS Foundation Trust,18/06/2021,(81200) Medical Surgical Supplies & Equipment,(id:42292) Cardiovascular Services,LIVANOVA UK LTD,id:14177494    , 985.15
Department of Health,Guys and St Thomas NHS Foundation Trust,18/06/2021,(81200) Medical Surgical Supplies & Equipment,(id:42292) Cardiovascular Services,LIVANOVA UK LTD,id:14177214    ,1230.48
Department of Health,Guys and St Thomas NHS Foundation Trust,11/06/2021,(81100) Dressings,(id:42292) Cardiovascular Services,GETINGE LTD,id:14160313 , 948.00
Department of Health,Guys and St Thomas NHS Foundation Trust,18/06/2021,(81100) Dressings,(id:42292) Cardiovascular Services,GETINGE LTD,id:14175394 , 366.00
Department of Health,Guys and St Thomas NHS Foundation Trust,25/06/2021,(81270) Medical Surgical Supplies & Equipment,(id:42292) Cardiovascular Services,GETINGE LTD,id:14183654   , 900.00
Department of Health,Guys and St Thomas NHS Foundation Trust,18/06/2021,(82800) Bedding & Linen,(id:42293) Cardiovascular Services,NHS SUPPLY CHAIN (MAIDSTONE),id:13990034   ,  70.23
Department of Health,Guys and St Thomas NHS Foundation Trust,18/06/2021,(82800) Bedding & Linen,(id:42293) Cardiovascular Services,NHS SUPPLY CHAIN (MAIDSTONE),id:14093474   ,  23.41
Department of Health,Guys and St Thomas NHS Foundation Trust,25/06/2021,(83400) Office Equipment,(id:42293) Cardiovascular Services,EXSTENT LIMITED,id:14195736,7500.00
Department of Health,Guys and St Thomas NHS Foundation Trust,25/06/2021,(83400) Office Equipment,(id:42293) Cardiovascular Services,EXSTENT LIMITED,id:14195733,7500.00
Department of Health,Guys and St Thomas NHS Foundation Trust,18/06/2021,(81225) Medical Surgical Supplies & Equipment,(id:42293) Cardiovascular Services,NHS SUPPLY CHAIN (MAIDSTONE),id:14093474 ,   9.70
Department of Health,Guys and St Thomas NHS Foundation Trust,18/06/2021,(81225) Medical Surgical Supplies & Equipment,(id:42293) Cardiovascular Services,NHS SUPPLY CHAIN (MAIDSTONE),id:14136574 ,  24.24
Department of Health,Guys and St Thomas NHS Foundation Trust,04/06/2021,(81200) Medical Surgical Supplies & Equipment,(id:42293) Cardiovascular Services,BARD LTD,id:14098705 ,1442.40
Department of Health,Guys and St Thomas NHS Foundation Trust,04/06/2021,(81200) Medical Surgical Supplies & Equipment,(id:42293) Cardiovascular Services,GETINGE LTD,id:14134544   , 554.40
Department of Health,Guys and St Thomas NHS Foundation Trust,18/06/2021,(81200) Medical Surgical Supplies & Equipment,(id:42293) Cardiovascular Services,VASCUTEK LTD,id:14153614  ,1319.40
Department of Health,Guys and St Thomas NHS Foundation Trust,18/06/2021,(81200) Medical Surgical Supplies & Equipment,(id:42293) Cardiovascular Services,BAXTER HEALTHCARE LTD,id:14182805   ,2747.41
Department of Health,Guys and St Thomas NHS Foundation Trust,11/06/2021,(81200) Medical Surgical Supplies & Equipment,(id:42293) Cardiovascular Services,VASCUTEK LTD,id:14153534  , 970.20
Department of Health,Guys and St Thomas NHS Foundation Trust,11/06/2021,(81200) Medical Surgical Supplies & Equipment,(id:42293) Cardiovascular Services,AQUILANT LTD,id:14165206  , 922.80
Department of Health,Guys and St Thomas NHS Foundation Trust,25/06/2021,(81200) Medical Surgical Supplies & Equipment,(id:42293) Cardiovascular Services,GETINGE LTD,id:14183669   , 516.00
Department of Health,Guys and St Thomas NHS Foundation Trust,25/06/2021,(81200) Medical Surgical Supplies & Equipment,(id:42293) Cardiovascular Services,BAXTER HEALTHCARE LTD,id:14187034   ,5494.82
Department of Health,Guys and St Thomas NHS Foundation Trust,25/06/2021,(81400) Medical Surgical Supplies & Equipment,(id:42293) Cardiovascular Services,NHS SUPPLY CHAIN ( CAPITAL FUND ONLY),id:14192922  , 717.46
Department of Health,Guys and St Thomas NHS Foundation Trust,11/06/2021,(81280) Medical Surgical Supplies & Equipment,(id:42293) Cardiovascular Services,EDWARDS LIFESCIENCES LTD,id:14158120,3420.00
Department of Health,Guys and St Thomas NHS Foundation Trust,18/06/2021,(81700) Lab Equipment Purchase,(id:42293) Cardiovascular Services,NHS SUPPLY CHAIN (MAIDSTONE),id:14136574 ,   5.93
Department of Health,Guys and St Thomas NHS Foundation Trust,18/06/2021,(82600) Uniforms & Clothing,(id:42287) Cardiovascular Services,NHS SUPPLY CHAIN (MAIDSTONE),id:14077336    ,   8.42
Department of Health,Guys and St Thomas NHS Foundation Trust,18/06/2021,(82000) Provisions & Kitchens,(id:42287) Cardiovascular Services,NHS SUPPLY CHAIN (MAIDSTONE),id:14093474  ,  80.88
Department of Health,Guys and St Thomas NHS Foundation Trust,18/06/2021,(82800) Bedding & Linen,(id:42287) Cardiovascular Services,NHS SUPPLY CHAIN (MAIDSTONE),id:14109556   , 188.75
Department of Health,Guys and St Thomas NHS Foundation Trust,18/06/2021,(81100) Dressings,(id:42287) Cardiovascular Services,NHS SUPPLY CHAIN (MAIDSTONE),id:14093474    , 144.57
Department of Health,Guys and St Thomas NHS Foundation Trust,18/06/2021,(81225) Medical Surgical Supplies & Equipment,(id:42287) Cardiovascular Services,NHS SUPPLY CHAIN (MAIDSTONE),id:14077336 ,  14.54
Department of Health,Guys and St Thomas NHS Foundation Trust,18/06/2021,(81700) Lab Equipment Purchase,(id:42287) Cardiovascular Services,NHS SUPPLY CHAIN (MAIDSTONE),id:14093474 ,  79.84
Department of Health,Guys and St Thomas NHS Foundation Trust,18/06/2021,(81255) Medical Surgical Supplies & Equipment,(id:42287) Cardiovascular Services,NHS SUPPLY CHAIN (MAIDSTONE),id:14077336 ,   9.98
Department of Health,Guys and St Thomas NHS Foundation Trust,18/06/2021,(81200) Medical Surgical Supplies & Equipment,(id:41863) PACCS,RESMED (UK) LTD,id:14160834  ,4800.00
Department of Health,Guys and St Thomas NHS Foundation Trust,25/06/2021,(81200) Medical Surgical Supplies & Equipment,(id:41863) PACCS,RESMED (UK) LTD,id:13956054  ,4662.00
Department of Health,Guys and St Thomas NHS Foundation Trust,25/06/2021,(81200) Medical Surgical Supplies & Equipment,(id:41863) PACCS,RESMED (UK) LTD,id:14181955  ,4620.00
Department of Health,Guys and St Thomas NHS Foundation Trust,18/06/2021,(81100) Dressings,(id:41863) PACCS,NHS SUPPLY CHAIN (MAIDSTONE),id:13990034  ,  97.22
Department of Health,Guys and St Thomas NHS Foundation Trust,18/06/2021,(82800) Bedding & Linen,(id:41863) PACCS,NHS SUPPLY CHAIN (MAIDSTONE),id:14109556 ,  80.40
Department of Health,Guys and St Thomas NHS Foundation Trust,11/06/2021,(81255) Medical Surgical Supplies & Equipment,(id:41863) PACCS,REMSERVE MEDICAL SUPPLIES LTD,id:14157819   , 786.00
Department of Health,Guys and St Thomas NHS Foundation Trust,18/06/2021,(82600) Uniforms & Clothing,(id:41935) PACCS,NHS SUPPLY CHAIN (MAIDSTONE),id:14136574  ,  10.80
Department of Health,Guys and St Thomas NHS Foundation Trust,18/06/2021,(82700) Uniforms & Clothing,(id:41935) PACCS,NHS SUPPLY CHAIN (MAIDSTONE),id:14136574  ,  24.89
Department of Health,Guys and St Thomas NHS Foundation Trust,18/06/2021,(82800) Bedding & Linen,(id:41935) PACCS,NHS SUPPLY CHAIN (MAIDSTONE),id:14093474 ,  60.66
